TRANSACTION DATE,SUPPLIER NAME,DIRECTORATE,COST CENTRE DESCRIPTION,GROSS AMOUNT,SUBJECTIVE DESCRIPTION,MERCHANT CATEGORY CODE DESCRIPTION
01 Apr 2015,DARLASTON BUILDERS,ECONOMY & ENVIRONMENT,WALSALL OUTDOOR ADVENTURE CENTRE,153.13,GENERAL MATERIALS,LUMBER & BUILDING MATERIALS STORES
01 Apr 2015,SCREWFIX DIRECT,ECONOMY & ENVIRONMENT,COMMUNITY LIAISON,36.06,GENERAL MATERIALS,LUMBER & BUILDING MATERIALS STORES
01 Apr 2015,TNT UK LTD,ECONOMY & ENVIRONMENT,POLLUTION DIVISION,23.12,POSTAGES AND COURIER SERVICES,MOTOR FREIGHT CARRIERS
01 Apr 2015,TNT UK LTD,ECONOMY & ENVIRONMENT,POLLUTION DIVISION,23.04,POSTAGES AND COURIER SERVICES,MOTOR FREIGHT CARRIERS
01 Apr 2015,WM MORRISON 063,CHILDRENS SERVICES,REDRUTH ROAD,3.74,GENERAL PROVISIONS-PROVISIONS,GROCERY STORES AND SUPERMARKETS
01 Apr 2015,WM MORRISON 063,CHILDRENS SERVICES,REDRUTH ROAD,25.26,GENERAL PROVISIONS-PROVISIONS,GROCERY STORES AND SUPERMARKETS
01 Apr 2015,CO-OPERATIVE FOOD,CHILDRENS SERVICES,REDRUTH ROAD,5.05,GENERAL PROVISIONS-PROVISIONS,GROCERY STORES AND SUPERMARKETS
01 Apr 2015,B & Q PLC,ECONOMY & ENVIRONMENT,OAK PARK,13.87,NEW-FURNITURE & EQUIPMENT,LUMBER & BUILDING MATERIALS STORES
01 Apr 2015,MAPLIN TAMWORTH B78,ECONOMY & ENVIRONMENT,OAK PARK,31.99,NEW-FURNITURE & EQUIPMENT,ELECTRONIC SALES
01 Apr 2015,BT BILL PAYMENT 2,ECONOMY & ENVIRONMENT,WALSALL OUTDOOR ADVENTURE CENTRE,28.19,COSTS (NOT INTERNAL RECHARGES)-TELEPHONES,TELECOMMUNICATION EQUIPMENT & SALES
01 Apr 2015,LONDON MIDLAND TIC,RESOURCES,HOMELESSNESS PREVENTION STRATEGY,4.10,OTHER-TRAVEL ALLOWANCES,PASSENGER RAILWAYS
01 Apr 2015,NEW LOOK 1880,CHILDRENS SERVICES,VIRTUAL SCHOOL CENTRAL PUPIL PREMIUM,200.00,CLOTHING & LAUNDRY,WOMENS READY TO WEAR STORES
01 Apr 2015,"AMAZON SVCS EUROPE,SAR",ECONOMY & ENVIRONMENT,REGISTRAR,3.20,STATIONERY & GENERAL SUPPLIES-OFFICE EXP,BOOK STORES
01 Apr 2015,MNA LTD CARDCHARGE,ECONOMY & ENVIRONMENT,DEVELOPMENT MANAGEMENT,195.60,PERIODICALS/MAGAZINES/NEWSPAPERS-SUBSCRIPTIONS,NEWS DEALERS AND NEWSSTANDS
01 Apr 2015,WEST MID TRAVEL,CHILDRENS SERVICES,SAFEGUARDING & FAMILY SUPPORT,350.00,OTHER-TRAVEL ALLOWANCES,BUS LINES
01 Apr 2015,WEST MID TRAVEL,CHILDRENS SERVICES,SAFEGUARDING & FAMILY SUPPORT,6.20,OTHER-TRAVEL ALLOWANCES,BUS LINES
01 Apr 2015,ASDA STORES,CHILDRENS SERVICES,CLUSTER 5 DARLASTON,5.50,GENERAL PROVISIONS-PROVISIONS,GROCERY STORES AND SUPERMARKETS
01 Apr 2015,ASDA STORES,CHILDRENS SERVICES,CLUSTER 5 DARLASTON,10.06,FOOD AND BEVERAGES-PROVISIONS,GROCERY STORES AND SUPERMARKETS
01 Apr 2015,ASDA STORES,CHILDRENS SERVICES,CLUSTER 5 DARLASTON,36.71,GENERAL PROVISIONS-PROVISIONS,GROCERY STORES AND SUPERMARKETS
01 Apr 2015,TESCO STORES 5503,CHILDRENS SERVICES,CLUSTER 5 DARLASTON,30.00,FOOD AND BEVERAGES-PROVISIONS,GROCERY STORES AND SUPERMARKETS
01 Apr 2015,WWW.BAKERROSS.CO.UK,CHILDRENS SERVICES,CLUSTER 5 DARLASTON,269.13,TOYS & GAMES-MATERIALS,"ARTIST SUPPLY STORES, CRAFT SHOPS"
01 Apr 2015,ASDA SUPERSTORE,CHILDRENS SERVICES,"CLUSTER 3 BLOXWICH,BLAKENALL,HATHERTON,E STAMMERS",13.85,CLEANING-MATERIALS (INC LIGHT BULBS),GROCERY STORES AND SUPERMARKETS
01 Apr 2015,ASDA STORES,ECONOMY & ENVIRONMENT,ACTIVE ENGLAND,31.29,FOOD AND BEVERAGES-PROVISIONS,GROCERY STORES AND SUPERMARKETS
01 Apr 2015,CO-OPERATIVE FOOD,CHILDRENS SERVICES,"43A HILTON ROAD, WILLENHALL",4.76,GENERAL PROVISIONS-PROVISIONS,GROCERY STORES AND SUPERMARKETS
01 Apr 2015,MIGHTY,RESOURCES,TENANCY SERVICE,108.34,GENERAL MATERIALS,LUMBER & BUILDING MATERIALS STORES
01 Apr 2015,TESCO STORES 6161,CHILDRENS SERVICES,LOOKED AFTER CHILDRENS SOCIAL WORK TEAM,5.67,TRANSFER PAYMENTS - SOCIAL SERVICES CLIENTS,GROCERY STORES AND SUPERMARKETS
01 Apr 2015,TESCO STORES 6161,CHILDRENS SERVICES,LOOKED AFTER CHILDRENS SOCIAL WORK TEAM,8.47,TRANSFER PAYMENTS - SOCIAL SERVICES CLIENTS,GROCERY STORES AND SUPERMARKETS
01 Apr 2015,SCREWFIX,ECONOMY & ENVIRONMENT,DEPOT,19.99,GENERAL MATERIALS,LUMBER & BUILDING MATERIALS STORES
01 Apr 2015,W M MORRISONS,ECONOMY & ENVIRONMENT,ALDRIDGE DISTRICT CENTRE,21.00,MISCELLANEOUS SUPPLIES,GROCERY STORES AND SUPERMARKETS
01 Apr 2015,TRAINLINE.COM,ECONOMY & ENVIRONMENT,AP FINANCE & RESOURCES STAFF DEVELOPMENT,76.86,OFFICER/STAFF-PUBLIC TRANSPORT,PASSENGER RAILWAYS
01 Apr 2015,ALEXANDRA WEBSITE,ECONOMY & ENVIRONMENT,AP QUALITY & PERFORMANCE DISCRETIONARY LEARNER SUP,49.18,PROTECTIVE CLOTHING & UNIFORM,"MEN'S, WOMEN'S, AND CHILDREN'S UNIFORMS"
01 Apr 2015,WILKO RETAIL LIMIT,RESOURCES,WALSALL CRISIS SUPPORT SCHEME,101.20,CRISIS SUPPORT PAYMENTS,HOUSEHOLD APPLIANCE STORES
01 Apr 2015,BLAKEMORE FOODSERVICE,ECONOMY & ENVIRONMENT,CA JANE LANE SPECIAL SCHOOL,16.46,DRY FOODS-PROVISIONS,CATERERS
01 Apr 2015,BLAKEMORE FOODSERVICE,ECONOMY & ENVIRONMENT,CA TOWN HALL RESTAURANT - CATERING,92.08,FROZEN FOODS-PROVISIONS,CATERERS
01 Apr 2015,WELSH BROS FOODS LTD,ECONOMY & ENVIRONMENT,CA TOWN HALL RESTAURANT - CATERING,173.58,MEAT-PROVISIONS,FREEZER AND LOCKER MEAT PROVISIONERS
01 Apr 2015,BLAKEMORE FOODSERVICE,ECONOMY & ENVIRONMENT,CA CROFT COMMUNITY PRIMARY SCHOOL,6.34,DRY FOODS-PROVISIONS,CATERERS
01 Apr 2015,BLAKEMORE FOODSERVICE,ECONOMY & ENVIRONMENT,CA CROFT COMMUNITY PRIMARY SCHOOL,-38.04,DRY FOODS-PROVISIONS,CATERERS
01 Apr 2015,BLAKEMORE FOODSERVICE,ECONOMY & ENVIRONMENT,CA LEIGHSWOOD PRIMARY SCHOOL,-16.49,FROZEN FOODS-PROVISIONS,CATERERS
01 Apr 2015,OFFICE DEPOT,CHILDRENS SERVICES,CHILD PROTECTION & REVIEW SERVICES,243.98,STATIONERY & GENERAL SUPPLIES-OFFICE EXP,"STATIONERY, OFFICE SUPPLIES AND WRITING PAPER"
01 Apr 2015,OFFICE DEPOT,CHILDRENS SERVICES,FAMILY PLACEMENTS,109.37,STATIONERY & GENERAL SUPPLIES-OFFICE EXP,"STATIONERY, OFFICE SUPPLIES AND WRITING PAPER"
01 Apr 2015,OFFICE DEPOT,CHILDRENS SERVICES,SAFEGUARDING & FAMILY SUPPORT,232.92,STATIONERY & GENERAL SUPPLIES-OFFICE EXP,"STATIONERY, OFFICE SUPPLIES AND WRITING PAPER"
01 Apr 2015,OFFICE DEPOT,RESOURCES,TENANCY SERVICE,47.69,STATIONERY & GENERAL SUPPLIES-OFFICE EXP,"STATIONERY, OFFICE SUPPLIES AND WRITING PAPER"
02 Apr 2015,WIZZ AIR HUN920WZZW26VQB,CHILDRENS SERVICES,SAFEGUARDING & FAMILY SUPPORT,112.84,OTHER-TRAVEL ALLOWANCES,AIRLINES AND AIR CARRIERS
02 Apr 2015,POUNDLAND LTD 1427,CHILDRENS SERVICES,LOOKED AFTER CHILDRENS SOCIAL WORK TEAM,4.00,TRANSFER PAYMENTS - SOCIAL SERVICES CLIENTS,DISCOUNT STORES
02 Apr 2015,WALSALL COUNCIL,CHILDRENS SERVICES,LOOKED AFTER CHILDRENS SOCIAL WORK TEAM,20.00,SECTION 1/17CHILD CARE ACT 1989-ASSISTANCE TO S/S CLIENTS,GOVERNMENT SERVICES
02 Apr 2015,CO-OPERATIVE FOOD,CHILDRENS SERVICES,"43A HILTON ROAD, WILLENHALL",6.00,EQUIP NEW-CLEANING,GROCERY STORES AND SUPERMARKETS
02 Apr 2015,W M MORRISON PLC,CHILDRENS SERVICES,"43A HILTON ROAD, WILLENHALL",16.18,GENERAL PROVISIONS-PROVISIONS,GROCERY STORES AND SUPERMARKETS
02 Apr 2015,W M MORRISON PLC,CHILDRENS SERVICES,"43A HILTON ROAD, WILLENHALL",58.19,GENERAL PROVISIONS-PROVISIONS,GROCERY STORES AND SUPERMARKETS
02 Apr 2015,W M MORRISON PLC,CHILDRENS SERVICES,"43A HILTON ROAD, WILLENHALL",74.22,GENERAL PROVISIONS-PROVISIONS,GROCERY STORES AND SUPERMARKETS
02 Apr 2015,W M MORRISON PLC,CHILDRENS SERVICES,"43A HILTON ROAD, WILLENHALL",4.50,GENERAL PROVISIONS-PROVISIONS,GROCERY STORES AND SUPERMARKETS
02 Apr 2015,W M MORRISON PLC,CHILDRENS SERVICES,"43A HILTON ROAD, WILLENHALL",1.09,GENERAL PROVISIONS-PROVISIONS,GROCERY STORES AND SUPERMARKETS
02 Apr 2015,WM MORRISON FOOD.COM,CHILDRENS SERVICES,BLUEBELLS,33.66,GENERAL PROVISIONS-PROVISIONS,GROCERY STORES AND SUPERMARKETS
02 Apr 2015,WM MORRISON FOOD.COM,CHILDRENS SERVICES,BLUEBELLS,94.79,GENERAL PROVISIONS-PROVISIONS,GROCERY STORES AND SUPERMARKETS
02 Apr 2015,W M MORRISON PLC,CHILDRENS SERVICES,SPINDLETREE,36.80,RESIDENTS PERSONAL EXPENSES-ALLOWANCES TO S/S CLIENTS,GROCERY STORES AND SUPERMARKETS
02 Apr 2015,W M MORRISON PLC,CHILDRENS SERVICES,SPINDLETREE,9.77,RESIDENTS PERSONAL EXPENSES-ALLOWANCES TO S/S CLIENTS,GROCERY STORES AND SUPERMARKETS
02 Apr 2015,TRAINLINE.COM,ECONOMY & ENVIRONMENT,NEW ART GALLERY - ADMIN,75.99,OFFICER/STAFF-PUBLIC TRANSPORT,PASSENGER RAILWAYS
02 Apr 2015,WALSALL LOCAL HISTORY,ECONOMY & ENVIRONMENT,NAG - TEMPORARY EXHIBITIONS,18.49,LIBRARY BOOKS,OTHER RECREATION SERVICES
02 Apr 2015,AMAZON UK RETAIL,CHILDRENS SERVICES,SAFEGUARDING BOARD,60.22,INTERNAL TRAINING,OTHER DIRECT MARKETING-OTHER DIRECT MARKETERS
02 Apr 2015,THE HEAT X CHANGE,ECONOMY & ENVIRONMENT,ARBORETUM,174.00,"REPAIRS,ALTERATIONS & MAINTENANCE-PREM",PLUMBING AND HEATING EQUIPMENT
02 Apr 2015,ARGOS RETAIL GROUP,CHILDRENS SERVICES,SAFEGUARDING & FAMILY SUPPORT,18.95,BEDDING & LINEN-MATERIALS,DISCOUNT STORES
02 Apr 2015,TRAINLINE.COM,CHILDRENS SERVICES,SAFEGUARDING & FAMILY SUPPORT,72.01,OTHER-TRAVEL ALLOWANCES,PASSENGER RAILWAYS
02 Apr 2015,MNA LTD CARDCHARGE,ECONOMY & ENVIRONMENT,DEVELOPMENT MANAGEMENT,60.00,PERIODICALS/MAGAZINES/NEWSPAPERS-SUBSCRIPTIONS,NEWS DEALERS AND NEWSSTANDS
02 Apr 2015,MSFT *BILLING,ECONOMY & ENVIRONMENT,AP FINANCE & RESOURCES IT,109.99,APPLICATIONS-COMPUTER,COMPUTER NETWORK/INFORMATION SERVICES
02 Apr 2015,NCS*VUE CITB HS&E REV,ECONOMY & ENVIRONMENT,VP SCL VOCATIONAL & SUPPORTED LEARNING,238.46,GENERAL MATERIALS,OTHER SCHOOLS AND EDUCATIONAL SERVICES
02 Apr 2015,MSFT *BILLING,ECONOMY & ENVIRONMENT,AP FINANCE & RESOURCES IT,10.99,APPLICATIONS-COMPUTER,COMPUTER NETWORK/INFORMATION SERVICES
02 Apr 2015,TESCO STORES 6161,CHILDRENS SERVICES,57 LICHFIELD ROAD,5.00,GENERAL PROVISIONS-PROVISIONS,GROCERY STORES AND SUPERMARKETS
02 Apr 2015,TESCO STORES 6161,CHILDRENS SERVICES,57 LICHFIELD ROAD,17.64,GENERAL PROVISIONS-PROVISIONS,GROCERY STORES AND SUPERMARKETS
02 Apr 2015,TESCO STORES 6161,CHILDRENS SERVICES,57 LICHFIELD ROAD,12.30,EQUIP NEW-CLEANING,GROCERY STORES AND SUPERMARKETS
02 Apr 2015,SNOWDOME LTD,CHILDRENS SERVICES,57 LICHFIELD ROAD,30.00,RESIDENTS PERSONAL EXPENSES-ALLOWANCES TO S/S CLIENTS,"CLUBS COUNTRY CLUBS, MEMBERSHIP"
02 Apr 2015,ASDA SUPERSTORE,RESOURCES,ACCOMMODATION SERVICES MANAGEMENT,10.01,FOOD AND BEVERAGES-PROVISIONS,GROCERY STORES AND SUPERMARKETS
02 Apr 2015,ASDA SUPERSTORE,RESOURCES,ACCOMMODATION SERVICES MANAGEMENT,3.70,FOOD AND BEVERAGES-PROVISIONS,GROCERY STORES AND SUPERMARKETS
02 Apr 2015,ASDA SUPERSTORE,RESOURCES,ACCOMMODATION SERVICES MANAGEMENT,8.52,CLEANING MATERIALS,GROCERY STORES AND SUPERMARKETS
02 Apr 2015,"AMAZON SVCS EUROPE,SAR",RESOURCES,SIT-INFRASTRUCTURE,-132.00,COMPUTER EQUIPMENT AND SUPPLIES,BOOK STORES
02 Apr 2015,SCREWFIX,ECONOMY & ENVIRONMENT,POOLFITTERS,48.95,GENERAL MATERIALS,LUMBER & BUILDING MATERIALS STORES
02 Apr 2015,THE WORKS,ECONOMY & ENVIRONMENT,ARBORETUM,24.00,LIBRARY BOOKS,BOOK STORES
02 Apr 2015,POUNDLAND LTD 1055,ECONOMY & ENVIRONMENT,ARBORETUM,20.00,FURNITURE & EQUIPMENT,DISCOUNT STORES
02 Apr 2015,SAINSBURYS PETROL,ECONOMY & ENVIRONMENT,FOREST ARTS CENTRE,80.02,GENERAL MATERIALS,SERVICE STATIONS
02 Apr 2015,ASDA,RESOURCES,WALSALL CRISIS SUPPORT SCHEME,47.67,CRISIS SUPPORT PAYMENTS,GROCERY STORES AND SUPERMARKETS
02 Apr 2015,BORSHCH LIMITED,RESOURCES,WALSALL CRISIS SUPPORT SCHEME,-10.00,CRISIS SUPPORT PAYMENTS,ELECTRONIC SALES
02 Apr 2015,BORSHCH LIMITED,RESOURCES,WALSALL CRISIS SUPPORT SCHEME,665.00,CRISIS SUPPORT PAYMENTS,ELECTRONIC SALES
02 Apr 2015,BORSHCH LIMITED,RESOURCES,WALSALL CRISIS SUPPORT SCHEME,325.00,CRISIS SUPPORT PAYMENTS,ELECTRONIC SALES
02 Apr 2015,BORSHCH LIMITED,RESOURCES,WALSALL CRISIS SUPPORT SCHEME,150.00,CRISIS SUPPORT PAYMENTS,ELECTRONIC SALES
02 Apr 2015,CRAZY HOUSE (BROWNHILL,RESOURCES,WALSALL CRISIS SUPPORT SCHEME,25.00,CRISIS SUPPORT PAYMENTS,"EQUIPMENT, FURNITURE, AND HOME FURNISHINGS STORES "
02 Apr 2015,BORSHCH LIMITED,RESOURCES,WALSALL CRISIS SUPPORT SCHEME,325.00,CRISIS SUPPORT PAYMENTS,ELECTRONIC SALES
02 Apr 2015,CRAZY HOUSE (BROWNHILL,RESOURCES,WALSALL CRISIS SUPPORT SCHEME,95.00,CRISIS SUPPORT PAYMENTS,"EQUIPMENT, FURNITURE, AND HOME FURNISHINGS STORES "
02 Apr 2015,CRAZY HOUSE (BROWNHILL,RESOURCES,WALSALL CRISIS SUPPORT SCHEME,375.00,CRISIS SUPPORT PAYMENTS,"EQUIPMENT, FURNITURE, AND HOME FURNISHINGS STORES "
02 Apr 2015,CRAZY HOUSE (BROWNHILL,RESOURCES,WALSALL CRISIS SUPPORT SCHEME,55.00,CRISIS SUPPORT PAYMENTS,"EQUIPMENT, FURNITURE, AND HOME FURNISHINGS STORES "
02 Apr 2015,WILKO RETAIL LIMIT,RESOURCES,WALSALL CRISIS SUPPORT SCHEME,18.40,CRISIS SUPPORT PAYMENTS,HOUSEHOLD APPLIANCE STORES
02 Apr 2015,JOHAL DAIRIES LTD,CHILDRENS SERVICES,STROUD FAMILY CENTRE,5.97,FOOD AND BEVERAGES-PROVISIONS,OTHER NONDURABLE GOODS
02 Apr 2015,JOHAL DAIRIES LTD,ECONOMY & ENVIRONMENT,CA JANE LANE SPECIAL SCHOOL,11.05,MISC DAIRY PRODUCTS-PROVISIONS,OTHER NONDURABLE GOODS
02 Apr 2015,CHICKEN JOES LTD,ECONOMY & ENVIRONMENT,CA OLD HALL SPECIAL SCHOOL,33.80,FROZEN FOODS-PROVISIONS,CATERERS
02 Apr 2015,CHICKEN JOES LTD,ECONOMY & ENVIRONMENT,CA RADLEYS PRIMARY SCHOOL,152.05,FROZEN FOODS-PROVISIONS,CATERERS
02 Apr 2015,JOHAL DAIRIES LTD,SOCIAL CARE & INCLUSION,FALLINGS HEATH,29.02,MISC DAIRY PRODUCTS-PROVISIONS,OTHER NONDURABLE GOODS
02 Apr 2015,OFFICE DEPOT,ECONOMY & ENVIRONMENT,LIBRARY OPERATIONS CENTRAL,299.71,STATIONERY & GENERAL SUPPLIES-OFFICE EXP,"STATIONERY, OFFICE SUPPLIES AND WRITING PAPER"
02 Apr 2015,CHICKEN JOES LTD,ECONOMY & ENVIRONMENT,CA CASTLEFORT JMI SCHOOL,24.15,FROZEN FOODS-PROVISIONS,CATERERS
02 Apr 2015,JOHAL DAIRIES LTD,ECONOMY & ENVIRONMENT,CA ELMWOOD SPECIAL SCHOOL,4.20,MISC DAIRY PRODUCTS-PROVISIONS,OTHER NONDURABLE GOODS
02 Apr 2015,JOHAL DAIRIES LTD,ECONOMY & ENVIRONMENT,CA RUSHALL JMI SCHOOL,47.13,MISC DAIRY PRODUCTS-PROVISIONS,OTHER NONDURABLE GOODS
02 Apr 2015,CHICKEN JOES LTD,ECONOMY & ENVIRONMENT,CA WATLING STREET PRIMARY SCHOOL,87.40,FROZEN FOODS-PROVISIONS,CATERERS
02 Apr 2015,JOHAL DAIRIES LTD,ECONOMY & ENVIRONMENT,CA BIRCHILLS CE PRIMARY COMMUNITY SCHOOL,36.85,MISC DAIRY PRODUCTS-PROVISIONS,OTHER NONDURABLE GOODS
02 Apr 2015,CHICKEN JOES LTD,ECONOMY & ENVIRONMENT,CA ST JOHNS C.E. PRIMARY SCHOOL,88.10,FROZEN FOODS-PROVISIONS,CATERERS
02 Apr 2015,JOHAL DAIRIES LTD,ECONOMY & ENVIRONMENT,CA BARCROFT D/C,16.50,MISC DAIRY PRODUCTS-PROVISIONS,OTHER NONDURABLE GOODS
02 Apr 2015,JOHAL DAIRIES LTD,ECONOMY & ENVIRONMENT,CA MEADOW VIEW JMI PRIMARY SCHOOL,6.31,MISC DAIRY PRODUCTS-PROVISIONS,OTHER NONDURABLE GOODS
02 Apr 2015,JOHAL DAIRIES LTD,ECONOMY & ENVIRONMENT,CA WATLING STREET PRIMARY SCHOOL,17.71,MISC DAIRY PRODUCTS-PROVISIONS,OTHER NONDURABLE GOODS
02 Apr 2015,OFFICE DEPOT,CHILDRENS SERVICES,"CLUSTER 1 BROWNHILLS,GREENFIELDS,PELSALL",47.18,STATIONERY & GENERAL SUPPLIES-OFFICE EXP,"STATIONERY, OFFICE SUPPLIES AND WRITING PAPER"
02 Apr 2015,JOHAL DAIRIES LTD,SOCIAL CARE & INCLUSION,REABLEMENT TEAM - HOLLY BANK,72.89,MISC DAIRY PRODUCTS-PROVISIONS,OTHER NONDURABLE GOODS
02 Apr 2015,JOHAL DAIRIES LTD,ECONOMY & ENVIRONMENT,CA LINDENS PRIMARY SCHOOL,12.56,MISC DAIRY PRODUCTS-PROVISIONS,OTHER NONDURABLE GOODS
02 Apr 2015,JOHAL DAIRIES LTD,ECONOMY & ENVIRONMENT,CA ST FRANCIS CATHOLIC PRIMARY SCHOOL,5.04,MISC DAIRY PRODUCTS-PROVISIONS,OTHER NONDURABLE GOODS
02 Apr 2015,JOHAL DAIRIES LTD,ECONOMY & ENVIRONMENT,CA ST ANNES CATHOLIC PRIMARY SCHOOL,16.83,MISC DAIRY PRODUCTS-PROVISIONS,OTHER NONDURABLE GOODS
02 Apr 2015,JOHAL DAIRIES LTD,ECONOMY & ENVIRONMENT,CA LEIGHSWOOD PRIMARY SCHOOL,26.48,MISC DAIRY PRODUCTS-PROVISIONS,OTHER NONDURABLE GOODS
02 Apr 2015,JOHAL DAIRIES LTD,ECONOMY & ENVIRONMENT,CA LITTLE BLOXWICH CE PRIMARY SCHOOL,25.65,MISC DAIRY PRODUCTS-PROVISIONS,OTHER NONDURABLE GOODS
02 Apr 2015,OFFICE DEPOT,RESOURCES,PRINTING SERVICES,17.90,STATIONERY & GENERAL SUPPLIES-OFFICE EXP,"STATIONERY, OFFICE SUPPLIES AND WRITING PAPER"
02 Apr 2015,JOHAL DAIRIES LTD,ECONOMY & ENVIRONMENT,CA ABBEY PRIMARY SCHOOL,32.62,MISC DAIRY PRODUCTS-PROVISIONS,OTHER NONDURABLE GOODS
02 Apr 2015,JOHAL DAIRIES LTD,ECONOMY & ENVIRONMENT,CA BLAKENALL HEATH JUNIOR SCHOOL,13.95,MISC DAIRY PRODUCTS-PROVISIONS,OTHER NONDURABLE GOODS
02 Apr 2015,JOHAL DAIRIES LTD,ECONOMY & ENVIRONMENT,CA CALDMORE COMMUNITY PRIMARY SCHOOL,31.24,MISC DAIRY PRODUCTS-PROVISIONS,OTHER NONDURABLE GOODS
02 Apr 2015,JOHAL DAIRIES LTD,ECONOMY & ENVIRONMENT,CA CROFT COMMUNITY PRIMARY SCHOOL,6.37,MISC DAIRY PRODUCTS-PROVISIONS,OTHER NONDURABLE GOODS
02 Apr 2015,JOHAL DAIRIES LTD,ECONOMY & ENVIRONMENT,CA POOL HAYES PRIMARY SCHOOL,10.38,MISC DAIRY PRODUCTS-PROVISIONS,OTHER NONDURABLE GOODS
02 Apr 2015,JOHAL DAIRIES LTD,ECONOMY & ENVIRONMENT,CA ST BERNADETTES CATHOLIC PRIMARY SCHOOL,35.85,MISC DAIRY PRODUCTS-PROVISIONS,OTHER NONDURABLE GOODS
02 Apr 2015,ARTHUR BRETT CATER,ECONOMY & ENVIRONMENT,TOWN HALL RESTAURANT BISTRO,24.04,FRUIT & VEGETABLES OTHER-PROVISIONS,MISCELLANEOUS FOOD STORES & CONVENIENCE STORES
02 Apr 2015,ARTHUR BRETT CATER,ECONOMY & ENVIRONMENT,CA TOWN HALL RESTAURANT - CATERING,44.57,FRUIT & VEGETABLES OTHER-PROVISIONS,MISCELLANEOUS FOOD STORES & CONVENIENCE STORES
02 Apr 2015,CHICKEN JOES LTD,ECONOMY & ENVIRONMENT,CA ST MICHAELS C.E. PRIMARY SCHOOL,44.40,FROZEN FOODS-PROVISIONS,CATERERS
02 Apr 2015,JOHAL DAIRIES LTD,CHILDRENS SERVICES,57 LICHFIELD ROAD,10.61,DRINKS-PROVISIONS,OTHER NONDURABLE GOODS
02 Apr 2015,CHICKEN JOES LTD,ECONOMY & ENVIRONMENT,CA BARCROFT D/C,62.80,FROZEN FOODS-PROVISIONS,CATERERS
02 Apr 2015,JOHAL DAIRIES LTD,ECONOMY & ENVIRONMENT,CA ST MICHAELS C.E. PRIMARY SCHOOL,41.89,MISC DAIRY PRODUCTS-PROVISIONS,OTHER NONDURABLE GOODS
02 Apr 2015,JOHAL DAIRIES LTD,ECONOMY & ENVIRONMENT,CA GREEN ROCK PRIMARY,11.10,MISC DAIRY PRODUCTS-PROVISIONS,OTHER NONDURABLE GOODS
02 Apr 2015,JOHAL DAIRIES LTD,ECONOMY & ENVIRONMENT,CA MOORCROFT WOOD,21.23,MISC DAIRY PRODUCTS-PROVISIONS,OTHER NONDURABLE GOODS
02 Apr 2015,JOHAL DAIRIES LTD,ECONOMY & ENVIRONMENT,CA BROWNHILLS WEST PRIMARY SCHOOL,16.80,MISC DAIRY PRODUCTS-PROVISIONS,OTHER NONDURABLE GOODS
02 Apr 2015,JOHAL DAIRIES LTD,ECONOMY & ENVIRONMENT,CA ST GILES C.E. PRIMARY SCHOOL,54.23,MISC DAIRY PRODUCTS-PROVISIONS,OTHER NONDURABLE GOODS
02 Apr 2015,JOHAL DAIRIES LTD,ECONOMY & ENVIRONMENT,CA TOWN HALL RESTAURANT - CATERING,25.48,MISC DAIRY PRODUCTS-PROVISIONS,OTHER NONDURABLE GOODS
02 Apr 2015,NOBISCO LTD,ECONOMY & ENVIRONMENT,CA TOWN HALL RESTAURANT - CATERING,40.00,PAYMENT TO CONTRACTOR EXTERNAL-CLEANING,"CLEANING AND MAINTENANCE, JANITORIAL SERVICES"
02 Apr 2015,CHICKEN JOES LTD,ECONOMY & ENVIRONMENT,CA MOORCROFT WOOD,50.20,FROZEN FOODS-PROVISIONS,CATERERS
02 Apr 2015,JOHAL DAIRIES LTD,ECONOMY & ENVIRONMENT,CA JOSEPH LECKIE COMMUNITY TECHNOLOGY COLLEGE,34.73,MISC DAIRY PRODUCTS-PROVISIONS,OTHER NONDURABLE GOODS
02 Apr 2015,JOHAL DAIRIES LTD,ECONOMY & ENVIRONMENT,CA BUSILL JONES PRIMARY SCHOOL,49.68,MISC DAIRY PRODUCTS-PROVISIONS,OTHER NONDURABLE GOODS
03 Apr 2015,ASDA SUPERSTORE,CHILDRENS SERVICES,REDRUTH ROAD,81.41,RESIDENTS PERSONAL EXPENSES-ALLOWANCES TO S/S CLIENTS,GROCERY STORES AND SUPERMARKETS
03 Apr 2015,WALSALL CROWN WHAR,CHILDRENS SERVICES,REDRUTH ROAD,194.73,RESIDENTS PERSONAL EXPENSES-ALLOWANCES TO S/S CLIENTS,DISCOUNT STORES
03 Apr 2015,123 REG R/T,RESOURCES,COMMUNICATIONS,-8.38,COMPUTER EQUIPMENT AND SUPPLIES,DIRECT MARKETING CONTINUITY SUBSCRIPTION MERCHANTS
03 Apr 2015,123 REG R/T,RESOURCES,COMMUNICATIONS,-14.26,COMPUTER EQUIPMENT AND SUPPLIES,DIRECT MARKETING CONTINUITY SUBSCRIPTION MERCHANTS
03 Apr 2015,SPORTSDIRECT 153,CHILDRENS SERVICES,"43A HILTON ROAD, WILLENHALL",42.99,RESIDENTS PERSONAL EXPENSES-ALLOWANCES TO S/S CLIENTS,SPORTING GOODS STORES
03 Apr 2015,NEW LOOK 1880,CHILDRENS SERVICES,"43A HILTON ROAD, WILLENHALL",32.98,RESIDENTS PERSONAL EXPENSES-ALLOWANCES TO S/S CLIENTS,WOMENS READY TO WEAR STORES
03 Apr 2015,ASDA,CHILDRENS SERVICES,"43A HILTON ROAD, WILLENHALL",10.00,GENERAL PROVISIONS-PROVISIONS,GROCERY STORES AND SUPERMARKETS
03 Apr 2015,METRO INNS WALSALL,RESOURCES,ACCOMMODATION SERVICES MANAGEMENT,163.80,HOTEL ACCOMMODATION-EMPLOYEES,"HOTELS, MOTELS, RESORTS"
03 Apr 2015,JOHAL DAIRIES LTD,ECONOMY & ENVIRONMENT,CA TOWN HALL RESTAURANT - CATERING,44.62,MISC DAIRY PRODUCTS-PROVISIONS,OTHER NONDURABLE GOODS
03 Apr 2015,JOHAL DAIRIES LTD,ECONOMY & ENVIRONMENT,CA ELMORE GREEN PRIMARY SCHOOL,14.42,MISC DAIRY PRODUCTS-PROVISIONS,OTHER NONDURABLE GOODS
03 Apr 2015,JOHAL DAIRIES LTD,ECONOMY & ENVIRONMENT,CA RADLEYS PRIMARY SCHOOL,33.60,MISC DAIRY PRODUCTS-PROVISIONS,OTHER NONDURABLE GOODS
03 Apr 2015,JOHAL DAIRIES LTD,ECONOMY & ENVIRONMENT,CA CASTLEFORT JMI SCHOOL,36.66,MISC DAIRY PRODUCTS-PROVISIONS,OTHER NONDURABLE GOODS
03 Apr 2015,JOHAL DAIRIES LTD,ECONOMY & ENVIRONMENT,CA BLUE COAT C OF E PERFORMING ARTS COLLEGE,18.50,MISC DAIRY PRODUCTS-PROVISIONS,OTHER NONDURABLE GOODS
03 Apr 2015,OFFICE DEPOT,CHILDRENS SERVICES,"CLUSTER 6 BENTLEY,LIGHTHOUSE,FIBBERSLEY",87.91,STATIONERY & GENERAL SUPPLIES-OFFICE EXP,"STATIONERY, OFFICE SUPPLIES AND WRITING PAPER"
03 Apr 2015,JOHAL DAIRIES LTD,ECONOMY & ENVIRONMENT,CA LEAMORE PRIMARY SCHOOL,3.43,MISC DAIRY PRODUCTS-PROVISIONS,OTHER NONDURABLE GOODS
03 Apr 2015,JOHAL DAIRIES LTD,ECONOMY & ENVIRONMENT,CA OLD HALL SPECIAL SCHOOL,56.04,MISC DAIRY PRODUCTS-PROVISIONS,OTHER NONDURABLE GOODS
03 Apr 2015,JOHAL DAIRIES LTD,ECONOMY & ENVIRONMENT,CA WALSALL WOOD PRIMARY SCHOOL,4.20,MISC DAIRY PRODUCTS-PROVISIONS,OTHER NONDURABLE GOODS
03 Apr 2015,JOHAL DAIRIES LTD,ECONOMY & ENVIRONMENT,CA FIBBERSLEY PARK PRIMARY SCHOOL,56.08,MISC DAIRY PRODUCTS-PROVISIONS,OTHER NONDURABLE GOODS
03 Apr 2015,JOHAL DAIRIES LTD,ECONOMY & ENVIRONMENT,CA ST JOHNS C.E. PRIMARY SCHOOL,6.80,MISC DAIRY PRODUCTS-PROVISIONS,OTHER NONDURABLE GOODS
03 Apr 2015,OFFICE DEPOT,ECONOMY & ENVIRONMENT,RESOURCE MANAGEMENT,4.90,STATIONERY & GENERAL SUPPLIES-OFFICE EXP,"STATIONERY, OFFICE SUPPLIES AND WRITING PAPER"
04 Apr 2015,M&S E COMMERCE,ECONOMY & ENVIRONMENT,DARLASTON LEISURE CENTRE,181.00,FOOD AND BEVERAGES-PROVISIONS,GROCERY STORES AND SUPERMARKETS
04 Apr 2015,AMAZON PRIME,CHILDRENS SERVICES,GENERAL RESOURCES & MISC,79.00,GENERAL MATERIALS,DIRECT MARKETING CONTINUITY SUBSCRIPTION MERCHANTS
04 Apr 2015,WH SMITH,ECONOMY & ENVIRONMENT,ALDRIDGE DISTRICT CENTRE,6.99,MISCELLANEOUS SUPPLIES,NEWS DEALERS AND NEWSSTANDS
06 Apr 2015,WATERSTONES.COM,CHILDRENS SERVICES,CLUSTER 4 ALUMWELL & BIRCHILLS,22.70,PUBLICATIONS/REFERENCE BOOKS-SUBSCRIPTIONS,BOOK STORES
06 Apr 2015,ASDA STORES,CHILDRENS SERVICES,"43A HILTON ROAD, WILLENHALL",7.67,FOOD AND BEVERAGES-PROVISIONS,GROCERY STORES AND SUPERMARKETS
06 Apr 2015,W M MORRISON PLC,CHILDRENS SERVICES,"43A HILTON ROAD, WILLENHALL",11.88,FOOD AND BEVERAGES-PROVISIONS,GROCERY STORES AND SUPERMARKETS
06 Apr 2015,W M MORRISON PLC,CHILDRENS SERVICES,"43A HILTON ROAD, WILLENHALL",12.54,FOOD AND BEVERAGES-PROVISIONS,GROCERY STORES AND SUPERMARKETS
06 Apr 2015,W M MORRISON PLC,CHILDRENS SERVICES,"43A HILTON ROAD, WILLENHALL",20.92,FOOD AND BEVERAGES-PROVISIONS,GROCERY STORES AND SUPERMARKETS
06 Apr 2015,"AMAZON SVCS EUROPE,SAR",CHILDRENS SERVICES,REDRUTH ROAD,14.80,RESIDENTS PERSONAL EXPENSES-ALLOWANCES TO S/S CLIENTS,BOOK STORES
06 Apr 2015,BLAKEMORE FOODSERVICE,ECONOMY & ENVIRONMENT,CA TOWN HALL RESTAURANT - CATERING,118.96,DRY FOODS-PROVISIONS,CATERERS
06 Apr 2015,BLAKEMORE FOODSERVICE,ECONOMY & ENVIRONMENT,CA TOWN HALL RESTAURANT - CATERING,250.58,DRY FOODS-PROVISIONS,CATERERS
07 Apr 2015,ASDA HOME SHOPPING,CHILDRENS SERVICES,"CLUSTER 1 BROWNHILLS,GREENFIELDS,PELSALL",6.90,FOOD AND BEVERAGES-PROVISIONS,GROCERY STORES AND SUPERMARKETS
07 Apr 2015,ASDA HOME SHOPPING,CHILDRENS SERVICES,"CLUSTER 1 BROWNHILLS,GREENFIELDS,PELSALL",21.90,FOOD AND BEVERAGES-PROVISIONS,GROCERY STORES AND SUPERMARKETS
07 Apr 2015,ASDA HOME SHOPPING,CHILDRENS SERVICES,STANLEYS NURSERY,5.98,GENERAL MATERIALS,GROCERY STORES AND SUPERMARKETS
07 Apr 2015,ASDA HOME SHOPPING,CHILDRENS SERVICES,STANLEYS NURSERY,56.61,FOOD AND BEVERAGES-PROVISIONS,GROCERY STORES AND SUPERMARKETS
07 Apr 2015,ASDA HOME SHOPPING,CHILDRENS SERVICES,STANLEYS NURSERY,11.12,FOOD AND BEVERAGES-PROVISIONS,GROCERY STORES AND SUPERMARKETS
07 Apr 2015,GROUPON,CHILDRENS SERVICES,57 LICHFIELD ROAD,13.98,RESIDENTS PERSONAL EXPENSES-ALLOWANCES TO S/S CLIENTS,"SHOPPING CLUBS, SERVICES"
07 Apr 2015,SOUTH STAFFS WATER PLC,ECONOMY & ENVIRONMENT,CFR 942 MARKETS STORAGE-LOWER HALL LANE,81.60,PROFESSIONAL SERVICES-PRIV CONTRACTOR & OTHER AGENCIES,"UTILITIES - ELECTRIC, GAS, SANITARY & WATER"
07 Apr 2015,ASDA SUPERSTORE,CHILDRENS SERVICES,REDRUTH ROAD,68.80,RESIDENTS PERSONAL EXPENSES-ALLOWANCES TO S/S CLIENTS,GROCERY STORES AND SUPERMARKETS
07 Apr 2015,DARLASTON BUILDERS,ECONOMY & ENVIRONMENT,WALSALL CANAL BOATS,67.20,GENERAL MATERIALS,LUMBER & BUILDING MATERIALS STORES
07 Apr 2015,M&S E COMMERCE,ECONOMY & ENVIRONMENT,DARLASTON LEISURE CENTRE,132.00,FOOD AND BEVERAGES-PROVISIONS,GROCERY STORES AND SUPERMARKETS
07 Apr 2015,WM MORRISON 063,CHILDRENS SERVICES,REDRUTH ROAD,8.67,GENERAL PROVISIONS-PROVISIONS,GROCERY STORES AND SUPERMARKETS
07 Apr 2015,WM MORRISON 063,CHILDRENS SERVICES,REDRUTH ROAD,79.80,GENERAL PROVISIONS-PROVISIONS,GROCERY STORES AND SUPERMARKETS
07 Apr 2015,ASDA HOME SHOPPING,CHILDRENS SERVICES,"CLUSTER 1 BROWNHILLS,GREENFIELDS,PELSALL",13.24,FOOD AND BEVERAGES-PROVISIONS,GROCERY STORES AND SUPERMARKETS
07 Apr 2015,ASDA HOME SHOPPING,CHILDRENS SERVICES,"CLUSTER 1 BROWNHILLS,GREENFIELDS,PELSALL",28.93,FOOD AND BEVERAGES-PROVISIONS,GROCERY STORES AND SUPERMARKETS
07 Apr 2015,HOOTSUITE MEDIA INC.,ECONOMY & ENVIRONMENT,PRINCIPAL MARKETING,8.33,PUBLICITY & ADVERTISING (NOT STAFF ADVERTISING),OTHER BUSINESS SERVICES
07 Apr 2015,TRAINLINE.COM,CHILDRENS SERVICES,SAFEGUARDING & FAMILY SUPPORT,127.50,OTHER-TRAVEL ALLOWANCES,PASSENGER RAILWAYS
07 Apr 2015,ASDA HOME SHOPPING,CHILDRENS SERVICES,CLUSTER 4 ALUMWELL & BIRCHILLS,48.12,FOOD AND BEVERAGES-PROVISIONS,GROCERY STORES AND SUPERMARKETS
07 Apr 2015,WWW.PARTYRAMA.CO.UK,ECONOMY & ENVIRONMENT,AP QUALITY & PERFORMANCE INSPIRING LEARNING,40.35,GENERAL MATERIALS,MISCELLANEOUS AND SPECIALTY RETAIL STORES
07 Apr 2015,"AMAZON SVCS EUROPE,SAR",CHILDRENS SERVICES,GENERAL RESOURCES & MISC,31.95,GENERAL MATERIALS,BOOK STORES
07 Apr 2015,ALLPAY.NET VISA AND MAST,RESOURCES,ACCOMMODATION SERVICES MANAGEMENT,20.00,RENTS-OTHER,REAL ESTATE MANAGERS - RENTALS
07 Apr 2015,CO-OPERATIVE FOOD,CHILDRENS SERVICES,"43A HILTON ROAD, WILLENHALL",3.00,GENERAL PROVISIONS-PROVISIONS,GROCERY STORES AND SUPERMARKETS
07 Apr 2015,CO-OPERATIVE FOOD,CHILDRENS SERVICES,"43A HILTON ROAD, WILLENHALL",8.47,GENERAL PROVISIONS-PROVISIONS,GROCERY STORES AND SUPERMARKETS
07 Apr 2015,FINDEL EDUCATION,CHILDRENS SERVICES,SCHOOL IMPROVEMENT,9.76,STATIONERY & GENERAL SUPPLIES-OFFICE EXP,OTHER DIRECT MARKETING-OTHER DIRECT MARKETERS
07 Apr 2015,AMAZON UK RETAIL,CHILDRENS SERVICES,CLUSTER 5 DARLASTON,19.94,CLEANING-MATERIALS (INC LIGHT BULBS),OTHER DIRECT MARKETING-OTHER DIRECT MARKETERS
07 Apr 2015,AMAZON UK RETAIL,CHILDRENS SERVICES,CLUSTER 5 DARLASTON,19.96,CLEANING-MATERIALS (INC LIGHT BULBS),OTHER DIRECT MARKETING-OTHER DIRECT MARKETERS
07 Apr 2015,ARGOS RETAIL GROUP,CHILDRENS SERVICES,SCHOOL IMPROVEMENT,136.94,GENERAL EXPENSES-OFFICE EXP,DISCOUNT STORES
07 Apr 2015,ARGOS RETAIL GROUP,CHILDRENS SERVICES,SAFEGUARDING BOARD,9.99,GENERAL EXPENSES-OFFICE EXP,DISCOUNT STORES
07 Apr 2015,WILKO RETAIL LIMIT,RESOURCES,WALSALL CRISIS SUPPORT SCHEME,7.85,CRISIS SUPPORT PAYMENTS,HOUSEHOLD APPLIANCE STORES
07 Apr 2015,WWW.GIROFOOD.COM,ECONOMY & ENVIRONMENT,CA TOWN HALL RESTAURANT - CATERING,176.18,DISPOSABLES-PROVISIONS,WHOLESALE CLUBS
07 Apr 2015,OFFICE DEPOT,ECONOMY & ENVIRONMENT,FOREST ARTS CENTRE,105.00,GENERAL MATERIALS,"STATIONERY, OFFICE SUPPLIES AND WRITING PAPER"
07 Apr 2015,OFFICE DEPOT,SOCIAL CARE & INCLUSION,INTEGRATED BUSINESS PROCESSES & SERVICES,47.18,STATIONERY & GENERAL SUPPLIES-OFFICE EXP,"STATIONERY, OFFICE SUPPLIES AND WRITING PAPER"
07 Apr 2015,OFFICE DEPOT,CHILDRENS SERVICES,EARLY YEARS AND DISABILITIES SERVICE,231.44,STATIONERY & GENERAL SUPPLIES-OFFICE EXP,"STATIONERY, OFFICE SUPPLIES AND WRITING PAPER"
08 Apr 2015,IKEA SACAT,CHILDRENS SERVICES,CLUSTER 5 DARLASTON,142.25,FURNITURE & EQUIPMENT,MISCELLANEOUS HOUSE FURNISHING SPECIALTY SHOPS
08 Apr 2015,IKEA SACAT,CHILDRENS SERVICES,CLUSTER 5 DARLASTON,35.00,NEW-FURNITURE & EQUIPMENT,MISCELLANEOUS HOUSE FURNISHING SPECIALTY SHOPS
08 Apr 2015,IKEA ONLINE,CHILDRENS SERVICES,CLUSTER 5 DARLASTON,114.50,NEW-FURNITURE & EQUIPMENT,MISCELLANEOUS HOUSE FURNISHING SPECIALTY SHOPS
08 Apr 2015,WWW.NOBLEXP.CO.UK,CHILDRENS SERVICES,CLUSTER 5 DARLASTON,123.29,CLEANING-MATERIALS (INC LIGHT BULBS),OTHER INDUSTRIAL SUPPLIES
08 Apr 2015,IKEA SACAT,CHILDRENS SERVICES,CLUSTER 5 DARLASTON,118.80,NEW-FURNITURE & EQUIPMENT,MISCELLANEOUS HOUSE FURNISHING SPECIALTY SHOPS
08 Apr 2015,PC WORLD T/SALES,CHILDRENS SERVICES,VIRTUAL SCHOOL CENTRAL PUPIL PREMIUM,261.94,FURNITURE & EQUIPMENT,ELECTRONIC SALES
08 Apr 2015,PC WORLD T/SALES,CHILDRENS SERVICES,VIRTUAL SCHOOL CENTRAL PUPIL PREMIUM,838.99,FURNITURE & EQUIPMENT,ELECTRONIC SALES
08 Apr 2015,TRAVEL WEST MIDLAN,CHILDRENS SERVICES,SPINDLETREE,80.00,RESIDENTS PERSONAL EXPENSES-ALLOWANCES TO S/S CLIENTS,BUS LINES
08 Apr 2015,ASDA HOME SHOPPING,CHILDRENS SERVICES,SPINDLETREE,34.18,GENERAL PROVISIONS-PROVISIONS,GROCERY STORES AND SUPERMARKETS
08 Apr 2015,ASDA HOME SHOPPING,CHILDRENS SERVICES,SPINDLETREE,124.75,GENERAL PROVISIONS-PROVISIONS,GROCERY STORES AND SUPERMARKETS
08 Apr 2015,W M MORRISON PLC,CHILDRENS SERVICES,"43A HILTON ROAD, WILLENHALL",4.76,GENERAL PROVISIONS-PROVISIONS,GROCERY STORES AND SUPERMARKETS
08 Apr 2015,W M MORRISON PLC,CHILDRENS SERVICES,"43A HILTON ROAD, WILLENHALL",6.00,EQUIP NEW-CLEANING,GROCERY STORES AND SUPERMARKETS
08 Apr 2015,AKAL NEWS,RESOURCES,ACCOMMODATION SERVICES MANAGEMENT,30.50,FOOD AND BEVERAGES-PROVISIONS,GROCERY STORES AND SUPERMARKETS
08 Apr 2015,MFA BOWL,CHILDRENS SERVICES,LOOKED AFTER CHILDRENS SOCIAL WORK TEAM,60.00,TRANSFER PAYMENTS - SOCIAL SERVICES CLIENTS,"CLUBS COUNTRY CLUBS, MEMBERSHIP"
08 Apr 2015,TRAVEL WEST MIDLAN,CHILDRENS SERVICES,LOOKED AFTER CHILDRENS SOCIAL WORK TEAM,40.00,TRANSFER PAYMENTS - SOCIAL SERVICES CLIENTS,BUS LINES
08 Apr 2015,REGISTRARS OFFICE,CHILDRENS SERVICES,LOOKED AFTER CHILDRENS SOCIAL WORK TEAM,10.00,SECTION 1/17CHILD CARE ACT 1989-ASSISTANCE TO S/S CLIENTS,OTHER SCHOOLS AND EDUCATIONAL SERVICES
08 Apr 2015,REGISTRARS OFFICE,CHILDRENS SERVICES,LOOKED AFTER CHILDRENS SOCIAL WORK TEAM,11.00,SECTION 1/17CHILD CARE ACT 1989-ASSISTANCE TO S/S CLIENTS,OTHER SCHOOLS AND EDUCATIONAL SERVICES
08 Apr 2015,EC PITCHER LTD,ECONOMY & ENVIRONMENT,CFR 1045 GALLERY-ACE SMALL CAPITAL PROJECT,8.10,GENERAL MATERIALS,HARDWARE STORES
08 Apr 2015,MAPLIN WALSALL WS2,ECONOMY & ENVIRONMENT,TECHNICAL/ART HANDLING,31.98,NEW-FURNITURE & EQUIPMENT,ELECTRONIC SALES
08 Apr 2015,GRO HM PASSPORT OFFICE,CHILDRENS SERVICES,SAFEGUARDING & FAMILY SUPPORT,23.40,REGISTRAR OF BIRTHS/DEATHS/MARRIAGES/CIVIL PARTNERSHIPS-SERV-FEES/CHARGES,GOVERNMENT SERVICES
08 Apr 2015,ARGOS RETAIL GROUP,CHILDRENS SERVICES,SAFEGUARDING & FAMILY SUPPORT,156.43,BEDDING & LINEN-MATERIALS,DISCOUNT STORES
08 Apr 2015,MNA LTD CARDCHARGE,ECONOMY & ENVIRONMENT,DEVELOPMENT MANAGEMENT,195.60,PERIODICALS/MAGAZINES/NEWSPAPERS-SUBSCRIPTIONS,NEWS DEALERS AND NEWSSTANDS
08 Apr 2015,WM MORRISON FOOD.COM,CHILDRENS SERVICES,57 LICHFIELD ROAD,32.82,GENERAL PROVISIONS-PROVISIONS,GROCERY STORES AND SUPERMARKETS
08 Apr 2015,WM MORRISON FOOD.COM,CHILDRENS SERVICES,57 LICHFIELD ROAD,133.32,GENERAL PROVISIONS-PROVISIONS,GROCERY STORES AND SUPERMARKETS
08 Apr 2015,WM MORRISONS,CHILDRENS SERVICES,57 LICHFIELD ROAD,4.14,GENERAL PROVISIONS-PROVISIONS,GROCERY STORES AND SUPERMARKETS
08 Apr 2015,CHARGE.PREZI.COM,ECONOMY & ENVIRONMENT,AP FINANCE & RESOURCES IT,110.62,APPLICATIONS-COMPUTER,"COMPUTERS, COMPUTER PERIPHERAL EQUIPMENT, SOFTWARE"
08 Apr 2015,DILLONS HOTEL,ECONOMY & ENVIRONMENT,NEW ART GALLERY - ADMIN,67.00,HOTEL ACCOMMODATION-EMPLOYEES,"HOTELS, MOTELS, RESORTS"
08 Apr 2015,FRIENDS ROYAL ACAD,ECONOMY & ENVIRONMENT,NEW ART GALLERY - ADMIN,107.00,PUBLICATIONS/ORGANISATIONS-SUBSCRIPTIONS,TOURIST ATTRACTIONS AND EXHIBITS
08 Apr 2015,ASDA SUPERSTORE,RESOURCES,ADVICE & GUIDANCE SERVICE,6.61,FOOD AND BEVERAGES-PROVISIONS,GROCERY STORES AND SUPERMARKETS
08 Apr 2015,TRAINLINE.COM,CHILDRENS SERVICES,CENTRAL SUPPORT,113.93,OFFICER/STAFF-PUBLIC TRANSPORT,PASSENGER RAILWAYS
08 Apr 2015,IKEA SACAT,CHILDRENS SERVICES,"43A HILTON ROAD, WILLENHALL",18.80,FURNITURE & EQUIPMENT,MISCELLANEOUS HOUSE FURNISHING SPECIALTY SHOPS
08 Apr 2015,STRIKE ELECTRICAL DIST,ECONOMY & ENVIRONMENT,INFRASTRUCTURE MAINTENANCE,29.99,FURNITURE & EQUIPMENT,HOUSEHOLD APPLIANCE STORES
08 Apr 2015,TRAINLINE.COM,ECONOMY & ENVIRONMENT,NEIGHBOURHOOD SERVICES MANAGEMENT,54.16,OFFICER/STAFF-PUBLIC TRANSPORT,PASSENGER RAILWAYS
08 Apr 2015,TRAINLINE.COM,ECONOMY & ENVIRONMENT,NEIGHBOURHOOD SERVICES MANAGEMENT,107.10,OFFICER/STAFF-PUBLIC TRANSPORT,PASSENGER RAILWAYS
08 Apr 2015,AMAZON UK RETAIL,CHILDRENS SERVICES,ICT LEARNING RESOURCES,68.67,GENERAL MATERIALS,OTHER DIRECT MARKETING-OTHER DIRECT MARKETERS
08 Apr 2015,TESCO STORES 6161,RESOURCES,WALSALL CRISIS SUPPORT SCHEME,5.80,CRISIS SUPPORT PAYMENTS,GROCERY STORES AND SUPERMARKETS
08 Apr 2015,JOHAL DAIRIES LTD,SOCIAL CARE & INCLUSION,FALLINGS HEATH,37.83,MISC DAIRY PRODUCTS-PROVISIONS,OTHER NONDURABLE GOODS
08 Apr 2015,BLAKEMORE FOODSERVICE,ECONOMY & ENVIRONMENT,CA TOWN HALL RESTAURANT - CATERING,111.77,FROZEN FOODS-PROVISIONS,CATERERS
08 Apr 2015,OFFICE DEPOT,CHILDRENS SERVICES,"CLUSTER 6 BENTLEY,LIGHTHOUSE,FIBBERSLEY",17.21,STATIONERY & GENERAL SUPPLIES-OFFICE EXP,"STATIONERY, OFFICE SUPPLIES AND WRITING PAPER"
08 Apr 2015,OFFICE DEPOT,CHILDRENS SERVICES,"CLUSTER 6 BENTLEY,LIGHTHOUSE,FIBBERSLEY",-17.14,STATIONERY & GENERAL SUPPLIES-OFFICE EXP,"STATIONERY, OFFICE SUPPLIES AND WRITING PAPER"
08 Apr 2015,JOHAL DAIRIES LTD,SOCIAL CARE & INCLUSION,REABLEMENT TEAM - HOLLY BANK,102.84,MISC DAIRY PRODUCTS-PROVISIONS,OTHER NONDURABLE GOODS
08 Apr 2015,OFFICE DEPOT,CHILDRENS SERVICES,FAMILY AND FRIENDS,254.02,STATIONERY & GENERAL SUPPLIES-OFFICE EXP,"STATIONERY, OFFICE SUPPLIES AND WRITING PAPER"
08 Apr 2015,OFFICE DEPOT,CHILDRENS SERVICES,SAFEGUARDING & FAMILY SUPPORT,41.52,STATIONERY & GENERAL SUPPLIES-OFFICE EXP,"STATIONERY, OFFICE SUPPLIES AND WRITING PAPER"
08 Apr 2015,WELSH BROS FOODS LTD,ECONOMY & ENVIRONMENT,CA CENTRAL SUPPORT SERVICES,141.53,MEAT-PROVISIONS,FREEZER AND LOCKER MEAT PROVISIONERS
08 Apr 2015,THE TRAINLINE.COM,SOCIAL CARE & INCLUSION,OLDER PEOPLE - CMHT TEAM,64.57,OFFICER/STAFF-PUBLIC TRANSPORT,PASSENGER RAILWAYS
08 Apr 2015,JOHAL DAIRIES LTD,CHILDRENS SERVICES,57 LICHFIELD ROAD,13.34,FOOD AND BEVERAGES-PROVISIONS,OTHER NONDURABLE GOODS
08 Apr 2015,OFFICE DEPOT,RESOURCES,ELECTORAL SERVICES,68.26,STATIONERY & GENERAL SUPPLIES-OFFICE EXP,"STATIONERY, OFFICE SUPPLIES AND WRITING PAPER"
08 Apr 2015,OFFICE DEPOT,RESOURCES,ELECTORAL SERVICES,2.40,STATIONERY & GENERAL SUPPLIES-OFFICE EXP,"STATIONERY, OFFICE SUPPLIES AND WRITING PAPER"
08 Apr 2015,JOHAL DAIRIES LTD,ECONOMY & ENVIRONMENT,CA TOWN HALL RESTAURANT - CATERING,26.13,MISC DAIRY PRODUCTS-PROVISIONS,OTHER NONDURABLE GOODS
08 Apr 2015,JOHAL DAIRIES LTD,ECONOMY & ENVIRONMENT,CA TOWN HALL RESTAURANT - CATERING,12.29,MISC DAIRY PRODUCTS-PROVISIONS,OTHER NONDURABLE GOODS
08 Apr 2015,WELSH BROS FOODS LTD,ECONOMY & ENVIRONMENT,CA TOWN HALL RESTAURANT - CATERING,148.20,MEAT-PROVISIONS,FREEZER AND LOCKER MEAT PROVISIONERS
08 Apr 2015,JOHAL DAIRIES LTD,CHILDRENS SERVICES,STROUD FAMILY CENTRE,3.98,FOOD AND BEVERAGES-PROVISIONS,OTHER NONDURABLE GOODS
09 Apr 2015,DARLASTON BUILDERS,ECONOMY & ENVIRONMENT,COMMUNITY LIAISON,5.76,GENERAL MATERIALS,LUMBER & BUILDING MATERIALS STORES
09 Apr 2015,EUROTOOL HIRE AND SALE,ECONOMY & ENVIRONMENT,COMMUNITY LIAISON,16.68,GENERAL MATERIALS,"GLASS, PAINT AND WALLPAPER STORES"
09 Apr 2015,LYCO DIRECT LTD,ECONOMY & ENVIRONMENT,NAG - TEMPORARY EXHIBITIONS,26.21,LOOSE TOOLS & CONSUMABLES,HOUSEHOLD APPLIANCE STORES
09 Apr 2015,WM MORRISON 063,CHILDRENS SERVICES,REDRUTH ROAD,25.97,GENERAL PROVISIONS-PROVISIONS,GROCERY STORES AND SUPERMARKETS
09 Apr 2015,WM MORRISON 063,CHILDRENS SERVICES,REDRUTH ROAD,20.16,GENERAL PROVISIONS-PROVISIONS,GROCERY STORES AND SUPERMARKETS
09 Apr 2015,WWW.FCO.GOV.UK,CHILDRENS SERVICES,SAFEGUARDING & FAMILY SUPPORT,-4.50,EXTERNAL BARRISTERS-SERVICES-FEES,"CONSULTING, MANAGEMENT, AND PR SERVICES"
09 Apr 2015,TESCO STORES 6161,CHILDRENS SERVICES,PARENTING TEAM,100.00,FOOD AND BEVERAGES-PROVISIONS,GROCERY STORES AND SUPERMARKETS
09 Apr 2015,WWW.FCO.GOV.UK,CHILDRENS SERVICES,SAFEGUARDING & FAMILY SUPPORT,184.50,EXTERNAL BARRISTERS-SERVICES-FEES,"CONSULTING, MANAGEMENT, AND PR SERVICES"
09 Apr 2015,WWW.FCO.GOV.UK,CHILDRENS SERVICES,SAFEGUARDING & FAMILY SUPPORT,124.50,EXTERNAL BARRISTERS-SERVICES-FEES,"CONSULTING, MANAGEMENT, AND PR SERVICES"
09 Apr 2015,DULWICH PICTURE G,ECONOMY & ENVIRONMENT,NEW ART GALLERY - ADMIN,25.00,LIBRARY BOOKS,"CARD, GIFT, NOVELTY, AND SOUVENIR SHOPS"
09 Apr 2015,ASDA 4387,CHILDRENS SERVICES,SAFEGUARDING & FAMILY SUPPORT,208.95,BEDDING & LINEN-MATERIALS,GROCERY STORES AND SUPERMARKETS
09 Apr 2015,EC PITCHER LTD,ECONOMY & ENVIRONMENT,CFR 1045 GALLERY-ACE SMALL CAPITAL PROJECT,18.72,GENERAL MATERIALS,HARDWARE STORES
09 Apr 2015,AMAZON UK MARKETPLACE,ECONOMY & ENVIRONMENT,VP SCL EMPLOYER GATEWAY,98.70,GENERAL MATERIALS,MISCELLANEOUS AND SPECIALTY RETAIL STORES
09 Apr 2015,WILKO RETAIL LIMIT,ECONOMY & ENVIRONMENT,NAG - ARTISTS RESIDENCIES,5.17,MISC DAIRY PRODUCTS-PROVISIONS,HOUSEHOLD APPLIANCE STORES
09 Apr 2015,ASDA,CHILDRENS SERVICES,"43A HILTON ROAD, WILLENHALL",7.48,GENERAL PROVISIONS-PROVISIONS,GROCERY STORES AND SUPERMARKETS
09 Apr 2015,WM MORRISON FOOD.COM,CHILDRENS SERVICES,BLUEBELLS,16.02,GENERAL PROVISIONS-PROVISIONS,GROCERY STORES AND SUPERMARKETS
09 Apr 2015,WM MORRISON FOOD.COM,CHILDRENS SERVICES,BLUEBELLS,104.10,GENERAL PROVISIONS-PROVISIONS,GROCERY STORES AND SUPERMARKETS
09 Apr 2015,TP WALSALL BM,ECONOMY & ENVIRONMENT,COMMUNITY LIAISON,111.55,GENERAL MATERIALS,LUMBER & BUILDING MATERIALS STORES
09 Apr 2015,TP WALSALL BM,ECONOMY & ENVIRONMENT,INFRASTRUCTURE MAINTENANCE,12.12,GENERAL MATERIALS,LUMBER & BUILDING MATERIALS STORES
09 Apr 2015,ALLIANCE ELECTRONICS L,ECONOMY & ENVIRONMENT,FLEET,245.76,PROFESSIONAL SERVICES-PRIV CONTRACTOR & OTHER AGENCIES,OTHER COMMERCIAL EQUIPMENT
09 Apr 2015,WWW.SAFEOPTIONS.CO.UK,ECONOMY & ENVIRONMENT,FLEET,9.59,GENERAL MATERIALS,MISCELLANEOUS AND SPECIALTY RETAIL STORES
09 Apr 2015,TP WALSALL BM,ECONOMY & ENVIRONMENT,COMMUNITY LIAISON,41.21,"REPAIRS,ALTERATIONS & MAINTENANCE-PREM",LUMBER & BUILDING MATERIALS STORES
09 Apr 2015,ASDA SUPERSTORE,CHILDRENS SERVICES,"CLUSTER 3 BLOXWICH,BLAKENALL,HATHERTON,E STAMMERS",2.68,FOOD AND BEVERAGES-PROVISIONS,GROCERY STORES AND SUPERMARKETS
09 Apr 2015,WILKO.COM,RESOURCES,WALSALL CRISIS SUPPORT SCHEME,508.80,CRISIS SUPPORT PAYMENTS,HOUSEHOLD APPLIANCE STORES
09 Apr 2015,OFFICE DEPOT,ECONOMY & ENVIRONMENT,CENTRALISED STATIONERY,258.07,STATIONERY & GENERAL SUPPLIES-OFFICE EXP,"STATIONERY, OFFICE SUPPLIES AND WRITING PAPER"
09 Apr 2015,OFFICE DEPOT,ECONOMY & ENVIRONMENT,LIBRARY OPERATIONS CENTRAL,339.84,STATIONERY & GENERAL SUPPLIES-OFFICE EXP,"STATIONERY, OFFICE SUPPLIES AND WRITING PAPER"
09 Apr 2015,OFFICE DEPOT,RESOURCES,BED & BREAKFAST PAYMENTS,47.40,GENERAL MATERIALS,"STATIONERY, OFFICE SUPPLIES AND WRITING PAPER"
09 Apr 2015,OFFICE DEPOT,ECONOMY & ENVIRONMENT,CL ADMIN,107.09,GENERAL MATERIALS,"STATIONERY, OFFICE SUPPLIES AND WRITING PAPER"
09 Apr 2015,OFFICE DEPOT,RESOURCES,LAW LIBRARY,31.79,GENERAL MATERIALS,"STATIONERY, OFFICE SUPPLIES AND WRITING PAPER"
10 Apr 2015,PARK PLACE SHOE REPAIRS,ECONOMY & ENVIRONMENT,WALSALL MARKET,34.50,MISCELLANEOUS SUPPLIES,"HAT CLEANING SHOPS, SHOE REPAIR SHOPS, SHOE SHINE "
10 Apr 2015,AQUAID FRANCHISING LTD,ECONOMY & ENVIRONMENT,PELSALL EDUCATION DEVELOPMENT CENTRE,454.80,PROFESSIONAL FEES AND SERVICES,OTHER BUSINESS SERVICES
10 Apr 2015,"AMAZON SVCS EUROPE,SAR",ECONOMY & ENVIRONMENT,FLEET,9.09,GENERAL MATERIALS,BOOK STORES
10 Apr 2015,LUL TICKET MACHINE,ECONOMY & ENVIRONMENT,NEW ART GALLERY - ADMIN,10.00,OFFICER/STAFF-PUBLIC TRANSPORT,PASSENGER RAILWAYS
10 Apr 2015,EUROTOOL HIRE AND SALE,ECONOMY & ENVIRONMENT,INFRASTRUCTURE MAINTENANCE,60.00,GENERAL MATERIALS,"GLASS, PAINT AND WALLPAPER STORES"
10 Apr 2015,EUROTOOL HIRE AND SALE,ECONOMY & ENVIRONMENT,INFRASTRUCTURE MAINTENANCE,18.30,GENERAL MATERIALS,"GLASS, PAINT AND WALLPAPER STORES"
10 Apr 2015,EUROTOOL HIRE AND SALE,ECONOMY & ENVIRONMENT,INFRASTRUCTURE MAINTENANCE,183.36,GENERAL MATERIALS,"GLASS, PAINT AND WALLPAPER STORES"
10 Apr 2015,TOOLSTATION LTD,ECONOMY & ENVIRONMENT,DEPOT,119.80,GENERAL MATERIALS,HARDWARE STORES
10 Apr 2015,ASDA SUPERSTORE,RESOURCES,ACCOMMODATION SERVICES MANAGEMENT,17.88,FOOD AND BEVERAGES-PROVISIONS,GROCERY STORES AND SUPERMARKETS
10 Apr 2015,ASDA SUPERSTORE,RESOURCES,ACCOMMODATION SERVICES MANAGEMENT,4.34,FOOD AND BEVERAGES-PROVISIONS,GROCERY STORES AND SUPERMARKETS
10 Apr 2015,W M MORRISON PLC,CHILDRENS SERVICES,"43A HILTON ROAD, WILLENHALL",26.38,GENERAL PROVISIONS-PROVISIONS,GROCERY STORES AND SUPERMARKETS
10 Apr 2015,W M MORRISON PLC,CHILDRENS SERVICES,"43A HILTON ROAD, WILLENHALL",27.72,GENERAL PROVISIONS-PROVISIONS,GROCERY STORES AND SUPERMARKETS
10 Apr 2015,W M MORRISON PLC,CHILDRENS SERVICES,"43A HILTON ROAD, WILLENHALL",95.55,GENERAL PROVISIONS-PROVISIONS,GROCERY STORES AND SUPERMARKETS
10 Apr 2015,W M MORRISON PLC,CHILDRENS SERVICES,"43A HILTON ROAD, WILLENHALL",7.77,EQUIP NEW-CLEANING,GROCERY STORES AND SUPERMARKETS
10 Apr 2015,W M MORRISON PLC,CHILDRENS SERVICES,"43A HILTON ROAD, WILLENHALL",8.93,GENERAL PROVISIONS-PROVISIONS,GROCERY STORES AND SUPERMARKETS
10 Apr 2015,W M MORRISON PLC,CHILDRENS SERVICES,"43A HILTON ROAD, WILLENHALL",20.60,GENERAL PROVISIONS-PROVISIONS,GROCERY STORES AND SUPERMARKETS
10 Apr 2015,W M MORRISON PLC,CHILDRENS SERVICES,"43A HILTON ROAD, WILLENHALL",12.83,GENERAL PROVISIONS-PROVISIONS,GROCERY STORES AND SUPERMARKETS
10 Apr 2015,WILKO RETAIL LIMIT,CHILDRENS SERVICES,57 LICHFIELD ROAD,5.89,RESIDENTS PERSONAL EXPENSES-ALLOWANCES TO S/S CLIENTS,HOUSEHOLD APPLIANCE STORES
10 Apr 2015,ASDA STORES,SOCIAL CARE & INCLUSION,FALLINGS HEATH,6.13,FOOD AND BEVERAGES-PROVISIONS,GROCERY STORES AND SUPERMARKETS
10 Apr 2015,ASDA STORES,SOCIAL CARE & INCLUSION,FALLINGS HEATH,1.70,FOOD AND BEVERAGES-PROVISIONS,GROCERY STORES AND SUPERMARKETS
10 Apr 2015,REGISTRATION SERVICES,CHILDRENS SERVICES,LOOKED AFTER CHILDRENS SOCIAL WORK TEAM,60.00,REGISTRAR OF BIRTHS/DEATHS/MARRIAGES/CIVIL PARTNERSHIPS-SERV-FEES/CHARGES,OTHER RECREATION SERVICES
10 Apr 2015,TESCO STORES 6161,RESOURCES,ADVICE & GUIDANCE SERVICE,11.50,FOOD AND BEVERAGES-PROVISIONS,GROCERY STORES AND SUPERMARKETS
10 Apr 2015,TESCO STORES 6161,RESOURCES,ADVICE & GUIDANCE SERVICE,10.00,FOOD AND BEVERAGES-PROVISIONS,GROCERY STORES AND SUPERMARKETS
10 Apr 2015,MAUDESPORT LTD,ECONOMY & ENVIRONMENT,DOORSTEP SPORTS CLUBS,-63.86,NEW-FURNITURE & EQUIPMENT,SPORTING GOODS STORES
10 Apr 2015,DARLASTON BUILDERS,ECONOMY & ENVIRONMENT,WALSALL OUTDOOR ADVENTURE CENTRE,47.80,GENERAL MATERIALS,LUMBER & BUILDING MATERIALS STORES
10 Apr 2015,SPORTSDIRECT 153,ECONOMY & ENVIRONMENT,ARBORETUM,39.99,FURNITURE & EQUIPMENT,SPORTING GOODS STORES
10 Apr 2015,IKEA SACAT,CHILDRENS SERVICES,ELMWOOD SECONDARY SPECIAL SCHOOL,10.00,FURNITURE & EQUIPMENT,MISCELLANEOUS HOUSE FURNISHING SPECIALTY SHOPS
10 Apr 2015,WILKO RETAIL LIMIT,CHILDRENS SERVICES,ELMWOOD SECONDARY SPECIAL SCHOOL,16.40,"REPAIRS,ALTERATIONS & MAINTENANCE-PREM",HOUSEHOLD APPLIANCE STORES
10 Apr 2015,LIVERPOOL DIR SIA,ECONOMY & ENVIRONMENT,NAG - FRONT OF HOUSE,110.00,FEES & LICENCES-SERVICES,"DETECTIVE AGENCIES, PROTECTIVE AGENCIES, SECURITY "
10 Apr 2015,TESCO STORES 6161,RESOURCES,WALSALL CRISIS SUPPORT SCHEME,14.81,CRISIS SUPPORT PAYMENTS,GROCERY STORES AND SUPERMARKETS
10 Apr 2015,ARTHUR BRETT CATER,ECONOMY & ENVIRONMENT,CA JOSEPH LECKIE COMMUNITY TECHNOLOGY COLLEGE,188.90,FRUIT & VEGETABLES OTHER-PROVISIONS,MISCELLANEOUS FOOD STORES & CONVENIENCE STORES
10 Apr 2015,ARTHUR BRETT CATER,ECONOMY & ENVIRONMENT,CA TOWN HALL RESTAURANT - CATERING,25.90,FRUIT & VEGETABLES OTHER-PROVISIONS,MISCELLANEOUS FOOD STORES & CONVENIENCE STORES
10 Apr 2015,ARTHUR BRETT CATER,ECONOMY & ENVIRONMENT,TOWN HALL RESTAURANT BISTRO,40.71,FRUIT & VEGETABLES OTHER-PROVISIONS,MISCELLANEOUS FOOD STORES & CONVENIENCE STORES
10 Apr 2015,OFFICE DEPOT,CHILDRENS SERVICES,CHILDRENS RESIDENTIAL SVCS,38.12,STATIONERY & GENERAL SUPPLIES-OFFICE EXP,"STATIONERY, OFFICE SUPPLIES AND WRITING PAPER"
10 Apr 2015,OFFICE DEPOT,RESOURCES,PRINTING SERVICES,20.42,STATIONERY & GENERAL SUPPLIES-OFFICE EXP,"STATIONERY, OFFICE SUPPLIES AND WRITING PAPER"
10 Apr 2015,OFFICE DEPOT,ECONOMY & ENVIRONMENT,PELSALL EDUCATION DEVELOPMENT CENTRE,179.64,STATIONERY & GENERAL SUPPLIES-OFFICE EXP,"STATIONERY, OFFICE SUPPLIES AND WRITING PAPER"
11 Apr 2015,"AMAZON SVCS EUROPE,SAR",ECONOMY & ENVIRONMENT,FLEET,11.54,GENERAL MATERIALS,BOOK STORES
11 Apr 2015,BON MARCHE,CHILDRENS SERVICES,57 LICHFIELD ROAD,14.00,RESIDENTS PERSONAL EXPENSES-ALLOWANCES TO S/S CLIENTS,MENS AND WOMENS CLOTHING STORES
11 Apr 2015,BLUEONE LIMITED,CHILDRENS SERVICES,57 LICHFIELD ROAD,15.00,CLOTHING & LAUNDRY,WOMENS READY TO WEAR STORES
11 Apr 2015,MCDONALDS REST.,CHILDRENS SERVICES,57 LICHFIELD ROAD,2.68,SUBSISTENCE OFFICERS-EXPENSES,QUICK PAYMENT SERVICE-FAST-FOOD RESTAURANTS
11 Apr 2015,ASDA STORES LTD 4225,CHILDRENS SERVICES,57 LICHFIELD ROAD,23.00,RESIDENTS PERSONAL EXPENSES-ALLOWANCES TO S/S CLIENTS,GROCERY STORES AND SUPERMARKETS
11 Apr 2015,TESCO STORES 6161,CHILDRENS SERVICES,57 LICHFIELD ROAD,25.00,FOOD AND BEVERAGES-PROVISIONS,GROCERY STORES AND SUPERMARKETS
11 Apr 2015,TESCO STORES 6161,CHILDRENS SERVICES,57 LICHFIELD ROAD,21.00,RESIDENTS PERSONAL EXPENSES-ALLOWANCES TO S/S CLIENTS,GROCERY STORES AND SUPERMARKETS
11 Apr 2015,AMAZON UK RETAIL,ECONOMY & ENVIRONMENT,LIBRARY STOCK AND PERFORMANCE,12.43,LIBRARY BOOKS,OTHER DIRECT MARKETING-OTHER DIRECT MARKETERS
11 Apr 2015,TESCO STORES 6161,CHILDRENS SERVICES,57 LICHFIELD ROAD,3.50,GENERAL PROVISIONS-PROVISIONS,GROCERY STORES AND SUPERMARKETS
11 Apr 2015,TESCO STORES 6161,CHILDRENS SERVICES,57 LICHFIELD ROAD,11.89,GENERAL PROVISIONS-PROVISIONS,GROCERY STORES AND SUPERMARKETS
11 Apr 2015,WILKO RETAIL LIMIT,CHILDRENS SERVICES,57 LICHFIELD ROAD,12.49,RESIDENTS PERSONAL EXPENSES-ALLOWANCES TO S/S CLIENTS,HOUSEHOLD APPLIANCE STORES
11 Apr 2015,TRAVEL WEST MIDLAN,CHILDRENS SERVICES,57 LICHFIELD ROAD,58.50,RESIDENTS PERSONAL EXPENSES-ALLOWANCES TO S/S CLIENTS,BUS LINES
11 Apr 2015,POUNDLAND LTD 1055,ECONOMY & ENVIRONMENT,ARBORETUM,5.00,FURNITURE & EQUIPMENT,DISCOUNT STORES
11 Apr 2015,OFFICE DEPOT,RESOURCES,ELECTORAL SERVICES,278.69,STATIONERY & GENERAL SUPPLIES-OFFICE EXP,"STATIONERY, OFFICE SUPPLIES AND WRITING PAPER"
11 Apr 2015,OFFICE DEPOT,ECONOMY & ENVIRONMENT,WALSALL GALA CENTRE,194.56,STATIONERY & GENERAL SUPPLIES-OFFICE EXP,"STATIONERY, OFFICE SUPPLIES AND WRITING PAPER"
11 Apr 2015,OFFICE DEPOT,CHILDRENS SERVICES,ACCESS TEAM,119.76,STATIONERY & GENERAL SUPPLIES-OFFICE EXP,"STATIONERY, OFFICE SUPPLIES AND WRITING PAPER"
11 Apr 2015,OFFICE DEPOT,CHILDRENS SERVICES,ACCESS TEAM,65.21,STATIONERY & GENERAL SUPPLIES-OFFICE EXP,"STATIONERY, OFFICE SUPPLIES AND WRITING PAPER"
12 Apr 2015,AMAZON UK RETAIL,ECONOMY & ENVIRONMENT,LIBRARY STOCK AND PERFORMANCE,4.99,LIBRARY BOOKS,OTHER DIRECT MARKETING-OTHER DIRECT MARKETERS
12 Apr 2015,TESCO STORES 5503,CHILDRENS SERVICES,"43A HILTON ROAD, WILLENHALL",13.32,GENERAL PROVISIONS-PROVISIONS,GROCERY STORES AND SUPERMARKETS
12 Apr 2015,DUNELM LTD,CHILDRENS SERVICES,REDRUTH ROAD,19.98,FURNITURE & EQUIPMENT,"DRAPERY, UPHOLSTERY, AND WINDOW COVERINGS STORES"
12 Apr 2015,123 REG R/T,RESOURCES,COMMUNICATIONS,14.26,COMPUTER EQUIPMENT AND SUPPLIES,DIRECT MARKETING CONTINUITY SUBSCRIPTION MERCHANTS
13 Apr 2015,EBUYER (UK) LTD,CHILDRENS SERVICES,INFORMATION SERVICES,31.47,FURNITURE & EQUIPMENT,HOUSEHOLD APPLIANCE STORES
13 Apr 2015,TV LICENSING,CHILDRENS SERVICES,CENTRAL SUPPORT,145.50,CONSULTANTS FEES,"CONSULTING, MANAGEMENT, AND PR SERVICES"
13 Apr 2015,SAINSBURYS PETROL,ECONOMY & ENVIRONMENT,FOREST ARTS CENTRE,70.01,GENERAL MATERIALS,SERVICE STATIONS
13 Apr 2015,TESCO STORES 6161,RESOURCES,ACCOMMODATION SERVICES MANAGEMENT,15.00,FOOD AND BEVERAGES-PROVISIONS,GROCERY STORES AND SUPERMARKETS
13 Apr 2015,CURRYS ONLINE,ECONOMY & ENVIRONMENT,SMARTER WORKPLACES WORKPLACE SOLUTIONS,197.00,MISCELLANEOUS SUPPLIES,ELECTRONIC SALES
13 Apr 2015,ROYAL MAIL 0845606040,ECONOMY & ENVIRONMENT,NEW ART GALLERY - ADMIN,1.11,POSTAGES AND COURIER SERVICES,POSTAL SERVICES - GOVERNMENT ONLY
13 Apr 2015,"AMAZON SVCS EUROPE,SAR",CHILDRENS SERVICES,OUTDOOR EDUCATION,14.49,NEW-FURNITURE & EQUIPMENT,BOOK STORES
13 Apr 2015,AMAZON UK RETAIL,CHILDRENS SERVICES,ADMINISTRATIVE SUPPLIES,81.66,STATIONERY & GENERAL SUPPLIES-OFFICE EXP,OTHER DIRECT MARKETING-OTHER DIRECT MARKETERS
13 Apr 2015,THE TRAINLINE.COM,ECONOMY & ENVIRONMENT,CAPITAL-REGENERATION STRATEGIC TRANSPORTATION,80.68,OFFICER/STAFF-PUBLIC TRANSPORT,PASSENGER RAILWAYS
13 Apr 2015,WM MORRISON 063,CHILDRENS SERVICES,REDRUTH ROAD,2.00,GENERAL PROVISIONS-PROVISIONS,GROCERY STORES AND SUPERMARKETS
13 Apr 2015,WM MORRISON 063,CHILDRENS SERVICES,REDRUTH ROAD,43.42,GENERAL PROVISIONS-PROVISIONS,GROCERY STORES AND SUPERMARKETS
13 Apr 2015,SAINSBURYS PETROL,ECONOMY & ENVIRONMENT,WALSALL OUTDOOR ADVENTURE CENTRE,25.17,FUEL-TRANSPORT RUN COSTS,SERVICE STATIONS
13 Apr 2015,ARGOS,ECONOMY & ENVIRONMENT,FLEET,249.98,GENERAL MATERIALS,DISCOUNT STORES
13 Apr 2015,VODAFONE,CHILDRENS SERVICES,ADMINISTRATIVE SUPPLIES,18.00,TELEPHONES MOBILE/PAGERS-TELEPHONES,TELECOMMUNICATION SERVICES
13 Apr 2015,VODAFONE,CHILDRENS SERVICES,ADMINISTRATIVE SUPPLIES,119.68,TELEPHONES MOBILE/PAGERS-TELEPHONES,TELECOMMUNICATION SERVICES
13 Apr 2015,B&M RETAIL LTD,RESOURCES,ACCOMMODATION SERVICES MANAGEMENT,91.26,FURNITURE & EQUIPMENT,DISCOUNT STORES
13 Apr 2015,ASDA HOME SHOPPING,CHILDRENS SERVICES,"CLUSTER 3 BLOXWICH,BLAKENALL,HATHERTON,E STAMMERS",41.96,FOOD AND BEVERAGES-PROVISIONS,GROCERY STORES AND SUPERMARKETS
13 Apr 2015,ASDA HOME SHOPPING,CHILDRENS SERVICES,"CLUSTER 3 BLOXWICH,BLAKENALL,HATHERTON,E STAMMERS",8.25,FOOD AND BEVERAGES-PROVISIONS,GROCERY STORES AND SUPERMARKETS
13 Apr 2015,ASDA HOME SHOPPING,CHILDRENS SERVICES,"CLUSTER 3 BLOXWICH,BLAKENALL,HATHERTON,E STAMMERS",27.03,FOOD AND BEVERAGES-PROVISIONS,GROCERY STORES AND SUPERMARKETS
13 Apr 2015,ASDA HOME SHOPPING,CHILDRENS SERVICES,"CLUSTER 3 BLOXWICH,BLAKENALL,HATHERTON,E STAMMERS",24.07,FOOD AND BEVERAGES-PROVISIONS,GROCERY STORES AND SUPERMARKETS
13 Apr 2015,ASDA HOME SHOPPING,CHILDRENS SERVICES,"CLUSTER 1 BROWNHILLS,GREENFIELDS,PELSALL",26.13,FOOD AND BEVERAGES-PROVISIONS,GROCERY STORES AND SUPERMARKETS
13 Apr 2015,ASDA HOME SHOPPING,CHILDRENS SERVICES,"CLUSTER 1 BROWNHILLS,GREENFIELDS,PELSALL",41.06,FOOD AND BEVERAGES-PROVISIONS,GROCERY STORES AND SUPERMARKETS
13 Apr 2015,REGISTRATION SERVICES,CHILDRENS SERVICES,LOOKED AFTER CHILDRENS SOCIAL WORK TEAM,22.00,REGISTRAR OF BIRTHS/DEATHS/MARRIAGES/CIVIL PARTNERSHIPS-SERV-FEES/CHARGES,OTHER RECREATION SERVICES
13 Apr 2015,MNA LTD CARDCHARGE,ECONOMY & ENVIRONMENT,DEVELOPMENT MANAGEMENT,72.00,PERIODICALS/MAGAZINES/NEWSPAPERS-SUBSCRIPTIONS,NEWS DEALERS AND NEWSSTANDS
13 Apr 2015,ASDA STORES,CHILDRENS SERVICES,CLUSTER 5 DARLASTON,3.78,FOOD AND BEVERAGES-PROVISIONS,GROCERY STORES AND SUPERMARKETS
13 Apr 2015,WWW.FLYBE.COBM6JHB,CHILDRENS SERVICES,SAFEGUARDING & FAMILY SUPPORT,318.98,OTHER-TRAVEL ALLOWANCES,AIRLINES AND AIR CARRIERS
13 Apr 2015,TESCO STORES 6161,CHILDRENS SERVICES,57 LICHFIELD ROAD,1.00,GENERAL PROVISIONS-PROVISIONS,GROCERY STORES AND SUPERMARKETS
13 Apr 2015,TESCO STORES 6161,CHILDRENS SERVICES,57 LICHFIELD ROAD,4.23,GENERAL PROVISIONS-PROVISIONS,GROCERY STORES AND SUPERMARKETS
13 Apr 2015,WILKO RETAIL LIMIT,CHILDRENS SERVICES,57 LICHFIELD ROAD,12.75,RESIDENTS PERSONAL EXPENSES-ALLOWANCES TO S/S CLIENTS,HOUSEHOLD APPLIANCE STORES
13 Apr 2015,PARENTPAY.COM,CHILDRENS SERVICES,57 LICHFIELD ROAD,13.20,GENERAL PROVISIONS-PROVISIONS,"COLLEGES, UNIVERSITIES, PROFESSIONAL SCHOOLS"
13 Apr 2015,ASDA HOME SHOPPING,ECONOMY & ENVIRONMENT,VP SCL VOCATIONAL & SUPPORTED LEARNING,14.81,CATERING,GROCERY STORES AND SUPERMARKETS
13 Apr 2015,ASDA HOME SHOPPING,ECONOMY & ENVIRONMENT,VP SCL VOCATIONAL & SUPPORTED LEARNING,325.56,CATERING,GROCERY STORES AND SUPERMARKETS
13 Apr 2015,ASDA HOME SHOPPING,ECONOMY & ENVIRONMENT,PRINCIPAL BOARD OF GOVERNORS,28.50,CATERING,GROCERY STORES AND SUPERMARKETS
13 Apr 2015,ASDA HOME SHOPPING,ECONOMY & ENVIRONMENT,VP SCL VOCATIONAL & SUPPORTED LEARNING,4.00,CATERING,GROCERY STORES AND SUPERMARKETS
13 Apr 2015,ASDA HOME SHOPPING,CHILDRENS SERVICES,CLUSTER 4 ALUMWELL & BIRCHILLS,9.96,FOOD AND BEVERAGES-PROVISIONS,GROCERY STORES AND SUPERMARKETS
13 Apr 2015,ASDA HOME SHOPPING,CHILDRENS SERVICES,STANLEYS NURSERY,66.95,FOOD AND BEVERAGES-PROVISIONS,GROCERY STORES AND SUPERMARKETS
13 Apr 2015,ASDA HOME SHOPPING,CHILDRENS SERVICES,CLUSTER 4 ALUMWELL & BIRCHILLS,1.58,FOOD AND BEVERAGES-PROVISIONS,GROCERY STORES AND SUPERMARKETS
13 Apr 2015,WM MORRISON FOOD.COM,CHILDRENS SERVICES,"CLUSTER 6 BENTLEY,LIGHTHOUSE,FIBBERSLEY",19.02,FOOD AND BEVERAGES-PROVISIONS,GROCERY STORES AND SUPERMARKETS
13 Apr 2015,WM MORRISON FOOD.COM,CHILDRENS SERVICES,"CLUSTER 6 BENTLEY,LIGHTHOUSE,FIBBERSLEY",86.32,FOOD AND BEVERAGES-PROVISIONS,GROCERY STORES AND SUPERMARKETS
13 Apr 2015,POST OFFICE COUNTER,ECONOMY & ENVIRONMENT,BLOXWICH DISTRICT CENTRE,1.73,MISCELLANEOUS SUPPLIES,POSTAL SERVICES - GOVERNMENT ONLY
13 Apr 2015,ASDA STORES LTD 4225,CHILDRENS SERVICES,ALUMWELL NURSERY,53.00,GENERAL MATERIALS,GROCERY STORES AND SUPERMARKETS
13 Apr 2015,"AMAZON SVCS EUROPE,SAR",CHILDRENS SERVICES,STANLEYS NURSERY,10.84,CATERING,BOOK STORES
13 Apr 2015,ASDA HOME SHOPPING,CHILDRENS SERVICES,"CLUSTER 1 BROWNHILLS,GREENFIELDS,PELSALL",20.78,FOOD AND BEVERAGES-PROVISIONS,GROCERY STORES AND SUPERMARKETS
13 Apr 2015,ASDA HOME SHOPPING,CHILDRENS SERVICES,"CLUSTER 1 BROWNHILLS,GREENFIELDS,PELSALL",27.60,FOOD AND BEVERAGES-PROVISIONS,GROCERY STORES AND SUPERMARKETS
13 Apr 2015,CONNEVANS LTD,CHILDRENS SERVICES,SEN,211.14,MISCELLANEOUS SUPPLIES,MISCELLANEOUS AND SPECIALTY RETAIL STORES
13 Apr 2015,WM MORRISON FOOD.COM,CHILDRENS SERVICES,CLUSTER 5 DARLASTON,1.02,GENERAL PROVISIONS-PROVISIONS,GROCERY STORES AND SUPERMARKETS
13 Apr 2015,WM MORRISON FOOD.COM,CHILDRENS SERVICES,CLUSTER 5 DARLASTON,92.94,FOOD AND BEVERAGES-PROVISIONS,GROCERY STORES AND SUPERMARKETS
13 Apr 2015,WM MORRISON FOOD.COM,CHILDRENS SERVICES,"CLUSTER 3 BLOXWICH,BLAKENALL,HATHERTON,E STAMMERS",19.86,FOOD AND BEVERAGES-PROVISIONS,GROCERY STORES AND SUPERMARKETS
13 Apr 2015,WM MORRISON FOOD.COM,CHILDRENS SERVICES,"CLUSTER 3 BLOXWICH,BLAKENALL,HATHERTON,E STAMMERS",33.39,FOOD AND BEVERAGES-PROVISIONS,GROCERY STORES AND SUPERMARKETS
13 Apr 2015,BORSHCH LIMITED,RESOURCES,WALSALL CRISIS SUPPORT SCHEME,30.00,CRISIS SUPPORT PAYMENTS,ELECTRONIC SALES
13 Apr 2015,TESCO STORES 6161,RESOURCES,WALSALL CRISIS SUPPORT SCHEME,14.17,CRISIS SUPPORT PAYMENTS,GROCERY STORES AND SUPERMARKETS
13 Apr 2015,BORSHCH LIMITED,RESOURCES,WALSALL CRISIS SUPPORT SCHEME,520.00,CRISIS SUPPORT PAYMENTS,ELECTRONIC SALES
13 Apr 2015,BORSHCH LIMITED,RESOURCES,WALSALL CRISIS SUPPORT SCHEME,270.00,CRISIS SUPPORT PAYMENTS,ELECTRONIC SALES
13 Apr 2015,BORSHCH LIMITED,RESOURCES,WALSALL CRISIS SUPPORT SCHEME,270.00,CRISIS SUPPORT PAYMENTS,ELECTRONIC SALES
13 Apr 2015,ARTHUR BRETT CATER,ECONOMY & ENVIRONMENT,CA MEADOW VIEW JMI PRIMARY SCHOOL,-8.67,FRUIT & VEGETABLES OTHER-PROVISIONS,MISCELLANEOUS FOOD STORES & CONVENIENCE STORES
13 Apr 2015,OFFICE DEPOT,SOCIAL CARE & INCLUSION,INTEGRATED BUSINESS PROCESSES & SERVICES,41.21,STATIONERY & GENERAL SUPPLIES-OFFICE EXP,"STATIONERY, OFFICE SUPPLIES AND WRITING PAPER"
13 Apr 2015,ARTHUR BRETT CATER,ECONOMY & ENVIRONMENT,CA ST BERNADETTES CATHOLIC PRIMARY SCHOOL,33.50,FRUIT & VEGETABLES OTHER-PROVISIONS,MISCELLANEOUS FOOD STORES & CONVENIENCE STORES
13 Apr 2015,WELSH BROS FOODS LTD,ECONOMY & ENVIRONMENT,CA BLUE COAT C OF E PERFORMING ARTS COLLEGE,249.21,MEAT-PROVISIONS,FREEZER AND LOCKER MEAT PROVISIONERS
13 Apr 2015,WELSH BROS FOODS LTD,ECONOMY & ENVIRONMENT,CA FIBBERSLEY PARK PRIMARY SCHOOL,124.50,MEAT-PROVISIONS,FREEZER AND LOCKER MEAT PROVISIONERS
13 Apr 2015,WELSH BROS FOODS LTD,ECONOMY & ENVIRONMENT,CA OAKWOOD SPECIAL SCHOOL,50.80,MEAT-PROVISIONS,FREEZER AND LOCKER MEAT PROVISIONERS
13 Apr 2015,ARTHUR BRETT CATER,ECONOMY & ENVIRONMENT,CA OAKWOOD SPECIAL SCHOOL,35.07,FRUIT & VEGETABLES OTHER-PROVISIONS,MISCELLANEOUS FOOD STORES & CONVENIENCE STORES
13 Apr 2015,WELSH BROS FOODS LTD,ECONOMY & ENVIRONMENT,CA COOPER JORDAN CE PRIMARY SCHOOL,128.61,MEAT-PROVISIONS,FREEZER AND LOCKER MEAT PROVISIONERS
13 Apr 2015,ARTHUR BRETT CATER,ECONOMY & ENVIRONMENT,CA CASTLEFORT JMI SCHOOL,74.78,FRUIT & VEGETABLES OTHER-PROVISIONS,MISCELLANEOUS FOOD STORES & CONVENIENCE STORES
13 Apr 2015,WELSH BROS FOODS LTD,ECONOMY & ENVIRONMENT,CA CASTLEFORT JMI SCHOOL,145.21,MEAT-PROVISIONS,FREEZER AND LOCKER MEAT PROVISIONERS
13 Apr 2015,WELSH BROS FOODS LTD,ECONOMY & ENVIRONMENT,CA ELMWOOD SPECIAL SCHOOL,86.48,MEAT-PROVISIONS,FREEZER AND LOCKER MEAT PROVISIONERS
13 Apr 2015,WELSH BROS FOODS LTD,ECONOMY & ENVIRONMENT,CA RUSHALL JMI SCHOOL,59.84,MEAT-PROVISIONS,FREEZER AND LOCKER MEAT PROVISIONERS
13 Apr 2015,BLAKEMORE FOODSERVICE,ECONOMY & ENVIRONMENT,CA TOWN HALL RESTAURANT - CATERING,100.48,FROZEN FOODS-PROVISIONS,CATERERS
13 Apr 2015,BLAKEMORE FOODSERVICE,ECONOMY & ENVIRONMENT,CA TOWN HALL RESTAURANT - CATERING,182.35,DRY FOODS-PROVISIONS,CATERERS
13 Apr 2015,BLAKEMORE FOODSERVICE,ECONOMY & ENVIRONMENT,TOWN HALL RESTAURANT BISTRO,146.71,DRY FOODS-PROVISIONS,CATERERS
13 Apr 2015,WELSH BROS FOODS LTD,ECONOMY & ENVIRONMENT,CA BARCROFT D/C,106.30,MEAT-PROVISIONS,FREEZER AND LOCKER MEAT PROVISIONERS
13 Apr 2015,WELSH BROS FOODS LTD,ECONOMY & ENVIRONMENT,CA WATLING STREET PRIMARY SCHOOL,191.85,MEAT-PROVISIONS,FREEZER AND LOCKER MEAT PROVISIONERS
13 Apr 2015,ARTHUR BRETT CATER,ECONOMY & ENVIRONMENT,CA WATLING STREET PRIMARY SCHOOL,36.92,FRUIT & VEGETABLES OTHER-PROVISIONS,MISCELLANEOUS FOOD STORES & CONVENIENCE STORES
13 Apr 2015,ARTHUR BRETT CATER,ECONOMY & ENVIRONMENT,CA WATLING STREET PRIMARY SCHOOL,110.88,FRUIT & VEGETABLES OTHER-PROVISIONS,MISCELLANEOUS FOOD STORES & CONVENIENCE STORES
13 Apr 2015,ARTHUR BRETT CATER,ECONOMY & ENVIRONMENT,CA WALSALL WOOD PRIMARY SCHOOL,97.22,FRUIT & VEGETABLES OTHER-PROVISIONS,MISCELLANEOUS FOOD STORES & CONVENIENCE STORES
13 Apr 2015,ARTHUR BRETT CATER,ECONOMY & ENVIRONMENT,CA ST JOHNS C.E. PRIMARY SCHOOL,185.16,FRUIT & VEGETABLES OTHER-PROVISIONS,MISCELLANEOUS FOOD STORES & CONVENIENCE STORES
13 Apr 2015,WELSH BROS FOODS LTD,ECONOMY & ENVIRONMENT,CA ST JOHNS C.E. PRIMARY SCHOOL,148.92,MEAT-PROVISIONS,FREEZER AND LOCKER MEAT PROVISIONERS
13 Apr 2015,WELSH BROS FOODS LTD,ECONOMY & ENVIRONMENT,CA BEACON PRIMARY SCHOOL,109.70,MEAT-PROVISIONS,FREEZER AND LOCKER MEAT PROVISIONERS
13 Apr 2015,OFFICE DEPOT,ECONOMY & ENVIRONMENT,NEW ART GALLERY - ADMIN,36.23,STATIONERY & GENERAL SUPPLIES-OFFICE EXP,"STATIONERY, OFFICE SUPPLIES AND WRITING PAPER"
13 Apr 2015,WELSH BROS FOODS LTD,ECONOMY & ENVIRONMENT,CA ST MICHAELS C.E. PRIMARY SCHOOL,140.17,MEAT-PROVISIONS,FREEZER AND LOCKER MEAT PROVISIONERS
13 Apr 2015,ARTHUR BRETT CATER,ECONOMY & ENVIRONMENT,CA MEADOW VIEW JMI PRIMARY SCHOOL,66.91,FRUIT & VEGETABLES OTHER-PROVISIONS,MISCELLANEOUS FOOD STORES & CONVENIENCE STORES
13 Apr 2015,WELSH BROS FOODS LTD,ECONOMY & ENVIRONMENT,CA MEADOW VIEW JMI PRIMARY SCHOOL,130.99,MEAT-PROVISIONS,FREEZER AND LOCKER MEAT PROVISIONERS
13 Apr 2015,OFFICE DEPOT,RESOURCES,ELECTORAL SERVICES,457.06,STATIONERY & GENERAL SUPPLIES-OFFICE EXP,"STATIONERY, OFFICE SUPPLIES AND WRITING PAPER"
13 Apr 2015,WELSH BROS FOODS LTD,ECONOMY & ENVIRONMENT,CA ELMORE GREEN PRIMARY SCHOOL,261.93,MEAT-PROVISIONS,FREEZER AND LOCKER MEAT PROVISIONERS
13 Apr 2015,ARTHUR BRETT CATER,ECONOMY & ENVIRONMENT,CA LEIGHSWOOD PRIMARY SCHOOL,128.88,FRUIT & VEGETABLES OTHER-PROVISIONS,MISCELLANEOUS FOOD STORES & CONVENIENCE STORES
13 Apr 2015,WELSH BROS FOODS LTD,ECONOMY & ENVIRONMENT,CA LEIGHSWOOD PRIMARY SCHOOL,89.33,MEAT-PROVISIONS,FREEZER AND LOCKER MEAT PROVISIONERS
13 Apr 2015,ARTHUR BRETT CATER,ECONOMY & ENVIRONMENT,CA LINDENS PRIMARY SCHOOL,87.72,FRUIT & VEGETABLES OTHER-PROVISIONS,MISCELLANEOUS FOOD STORES & CONVENIENCE STORES
13 Apr 2015,WELSH BROS FOODS LTD,ECONOMY & ENVIRONMENT,CA LINDENS PRIMARY SCHOOL,61.19,MEAT-PROVISIONS,FREEZER AND LOCKER MEAT PROVISIONERS
13 Apr 2015,WELSH BROS FOODS LTD,ECONOMY & ENVIRONMENT,CA BUSILL JONES PRIMARY SCHOOL,475.30,MEAT-PROVISIONS,FREEZER AND LOCKER MEAT PROVISIONERS
13 Apr 2015,WELSH BROS FOODS LTD,ECONOMY & ENVIRONMENT,CA TOWN HALL RESTAURANT - CATERING,175.85,MEAT-PROVISIONS,FREEZER AND LOCKER MEAT PROVISIONERS
13 Apr 2015,ARTHUR BRETT CATER,ECONOMY & ENVIRONMENT,CA MOORCROFT WOOD,91.12,FRUIT & VEGETABLES OTHER-PROVISIONS,MISCELLANEOUS FOOD STORES & CONVENIENCE STORES
13 Apr 2015,WELSH BROS FOODS LTD,ECONOMY & ENVIRONMENT,CA BROWNHILLS WEST PRIMARY SCHOOL,109.13,MEAT-PROVISIONS,FREEZER AND LOCKER MEAT PROVISIONERS
13 Apr 2015,ARTHUR BRETT CATER,ECONOMY & ENVIRONMENT,CA BROWNHILLS WEST PRIMARY SCHOOL,127.13,FRUIT & VEGETABLES OTHER-PROVISIONS,MISCELLANEOUS FOOD STORES & CONVENIENCE STORES
13 Apr 2015,ARTHUR BRETT CATER,ECONOMY & ENVIRONMENT,CA COOPER JORDAN CE PRIMARY SCHOOL,145.43,FRUIT & VEGETABLES OTHER-PROVISIONS,MISCELLANEOUS FOOD STORES & CONVENIENCE STORES
13 Apr 2015,WELSH BROS FOODS LTD,ECONOMY & ENVIRONMENT,CA ST ANNES CATHOLIC PRIMARY SCHOOL,80.30,MEAT-PROVISIONS,FREEZER AND LOCKER MEAT PROVISIONERS
13 Apr 2015,ARTHUR BRETT CATER,ECONOMY & ENVIRONMENT,CA ST ANNES CATHOLIC PRIMARY SCHOOL,83.30,FRUIT & VEGETABLES OTHER-PROVISIONS,MISCELLANEOUS FOOD STORES & CONVENIENCE STORES
13 Apr 2015,WELSH BROS FOODS LTD,ECONOMY & ENVIRONMENT,CA JOSEPH LECKIE COMMUNITY TECHNOLOGY COLLEGE,379.29,MEAT-PROVISIONS,FREEZER AND LOCKER MEAT PROVISIONERS
13 Apr 2015,WELSH BROS FOODS LTD,ECONOMY & ENVIRONMENT,CA RADLEYS PRIMARY SCHOOL,205.12,MEAT-PROVISIONS,FREEZER AND LOCKER MEAT PROVISIONERS
13 Apr 2015,ARTHUR BRETT CATER,ECONOMY & ENVIRONMENT,CA BLUE COAT C OF E PERFORMING ARTS COLLEGE,59.12,FRUIT & VEGETABLES OTHER-PROVISIONS,MISCELLANEOUS FOOD STORES & CONVENIENCE STORES
14 Apr 2015,SPORTSDIRECT 153,ECONOMY & ENVIRONMENT,ARBORETUM,27.99,FURNITURE & EQUIPMENT,SPORTING GOODS STORES
14 Apr 2015,TVLICENSING.CO.UK,CHILDRENS SERVICES,ADMINISTRATIVE SUPPLIES,145.50,GENERAL MATERIALS,"CONSULTING, MANAGEMENT, AND PR SERVICES"
14 Apr 2015,TOP UP,CHILDRENS SERVICES,CLUSTER 5 DARLASTON,20.99,TELEPHONES MOBILE/PAGERS-TELEPHONES,TELECOMMUNICATION SERVICES
14 Apr 2015,LOCKS & FITTINGS,ECONOMY & ENVIRONMENT,ARBORETUM,50.05,"REPAIRS,ALTERATIONS & MAINTENANCE-PREM",HARDWARE EQUIPMENT AND SUPPLIES
14 Apr 2015,SIM MAYOU HARDWARE,ECONOMY & ENVIRONMENT,DEPOT,71.31,GENERAL MATERIALS,OTHER CONSTRUCTION MATERIALS
14 Apr 2015,TP WALSALL BM,ECONOMY & ENVIRONMENT,COMMUNITY LIAISON,72.43,"REPAIRS,ALTERATIONS & MAINTENANCE-PREM",LUMBER & BUILDING MATERIALS STORES
14 Apr 2015,SCREWFIX,ECONOMY & ENVIRONMENT,COMMUNITY LIAISON,34.94,"REPAIRS,ALTERATIONS & MAINTENANCE-PREM",LUMBER & BUILDING MATERIALS STORES
14 Apr 2015,ASDA STORES,CHILDRENS SERVICES,CLUSTER 5 DARLASTON,3.00,TOYS & GAMES-MATERIALS,GROCERY STORES AND SUPERMARKETS
14 Apr 2015,ASDA STORES,CHILDRENS SERVICES,CLUSTER 5 DARLASTON,27.55,FOOD AND BEVERAGES-PROVISIONS,GROCERY STORES AND SUPERMARKETS
14 Apr 2015,"AMAZON SVCS EUROPE,SAR",CHILDRENS SERVICES,SAFEGUARDING BOARD,24.39,GENERAL EXPENSES-OFFICE EXP,BOOK STORES
14 Apr 2015,"AMAZON SVCS EUROPE,SAR",CHILDRENS SERVICES,SAFEGUARDING BOARD,17.90,GENERAL EXPENSES-OFFICE EXP,BOOK STORES
14 Apr 2015,ALVAR KARTING AND LASE,CHILDRENS SERVICES,NEW LEAF PUPIL REFERRAL UNIT,125.00,GENERAL MATERIALS,OTHER RECREATION SERVICES
14 Apr 2015,"AMAZON SVCS EUROPE,SAR",CHILDRENS SERVICES,INFORMATION SERVICES,14.99,LIBRARY BOOKS,BOOK STORES
14 Apr 2015,APPLE ONLINE STORE GBP,CHILDRENS SERVICES,INFORMATION SERVICES,118.00,FURNITURE & EQUIPMENT,ELECTRONIC SALES
14 Apr 2015,AMAZON UK RETAIL,CHILDRENS SERVICES,INFORMATION SERVICES,8.65,HARDWARE ACQ-COMPUTER,OTHER DIRECT MARKETING-OTHER DIRECT MARKETERS
14 Apr 2015,ASDA STORES,CHILDRENS SERVICES,PARENTING TEAM,8.06,FOOD AND BEVERAGES-PROVISIONS,GROCERY STORES AND SUPERMARKETS
14 Apr 2015,WWW.GOMPELS.CO.UK,CHILDRENS SERVICES,SPINDLETREE,65.58,EQUIP NEW-CLEANING,OTHER INDUSTRIAL SUPPLIES
14 Apr 2015,W M MORRISON PLC,CHILDRENS SERVICES,SPINDLETREE,11.76,GENERAL PROVISIONS-PROVISIONS,GROCERY STORES AND SUPERMARKETS
14 Apr 2015,W M MORRISON PLC,CHILDRENS SERVICES,SPINDLETREE,145.65,GENERAL PROVISIONS-PROVISIONS,GROCERY STORES AND SUPERMARKETS
14 Apr 2015,EUROTOOL HIRE AND SALE,ECONOMY & ENVIRONMENT,COMMUNITY LIAISON,93.60,"REPAIRS,ALTERATIONS & MAINTENANCE-PREM","GLASS, PAINT AND WALLPAPER STORES"
14 Apr 2015,CUPSDIRECTCOUK,CHILDRENS SERVICES,CLUSTER 4 ALUMWELL & BIRCHILLS,99.44,MISCELLANEOUS SUPPLIES,MISCELLANEOUS AND SPECIALTY RETAIL STORES
14 Apr 2015,BRAKES (ASHFORD),CHILDRENS SERVICES,STANLEYS NURSERY,142.50,CATERING,CATERERS
14 Apr 2015,ASDA HOME SHOPPING,CHILDRENS SERVICES,CLUSTER 4 ALUMWELL & BIRCHILLS,17.12,FOOD AND BEVERAGES-PROVISIONS,GROCERY STORES AND SUPERMARKETS
14 Apr 2015,ASDA HOME SHOPPING,CHILDRENS SERVICES,CLUSTER 4 ALUMWELL & BIRCHILLS,1.00,GENERAL MATERIALS,GROCERY STORES AND SUPERMARKETS
14 Apr 2015,ASDA HOME SHOPPING,CHILDRENS SERVICES,CLUSTER 4 ALUMWELL & BIRCHILLS,1.58,GENERAL MATERIALS,GROCERY STORES AND SUPERMARKETS
14 Apr 2015,ASDA HOME SHOPPING,CHILDRENS SERVICES,STANLEYS NURSERY,16.50,CLEANING MATERIALS,GROCERY STORES AND SUPERMARKETS
14 Apr 2015,ASDA HOME SHOPPING,CHILDRENS SERVICES,STANLEYS NURSERY,1.00,GENERAL MATERIALS,GROCERY STORES AND SUPERMARKETS
14 Apr 2015,"AMAZON SVCS EUROPE,SAR",CHILDRENS SERVICES,LOOKED AFTER CHILDRENS SOCIAL WORK TEAM,6.50,TRANSFER PAYMENTS - SOCIAL SERVICES CLIENTS,BOOK STORES
14 Apr 2015,EE & T-MOBILE,CHILDRENS SERVICES,"CLUSTER 1 BROWNHILLS,GREENFIELDS,PELSALL",116.60,COSTS (NOT INTERNAL RECHARGES)-TELEPHONES,TELECOMMUNICATION SERVICES
14 Apr 2015,WM MORRISON 063,CHILDRENS SERVICES,CLUSTER 4 ALUMWELL & BIRCHILLS,0.79,FOOD AND BEVERAGES-PROVISIONS,GROCERY STORES AND SUPERMARKETS
14 Apr 2015,WM MORRISON 063,CHILDRENS SERVICES,CLUSTER 4 ALUMWELL & BIRCHILLS,13.61,FOOD AND BEVERAGES-PROVISIONS,GROCERY STORES AND SUPERMARKETS
14 Apr 2015,TESCO STORES 6161,CHILDRENS SERVICES,FOOD TECHNOLOGY/HOSPITALITY,3.30,GENERAL MATERIALS,GROCERY STORES AND SUPERMARKETS
14 Apr 2015,TESCO STORES 6161,CHILDRENS SERVICES,FOOD TECHNOLOGY/HOSPITALITY,26.76,GENERAL MATERIALS,GROCERY STORES AND SUPERMARKETS
14 Apr 2015,TESCO STORES 6161,CHILDRENS SERVICES,FOOD TECHNOLOGY/HOSPITALITY,3.40,GENERAL MATERIALS,GROCERY STORES AND SUPERMARKETS
14 Apr 2015,TESCO STORES 6161,CHILDRENS SERVICES,FOOD TECHNOLOGY/HOSPITALITY,14.42,GENERAL MATERIALS,GROCERY STORES AND SUPERMARKETS
14 Apr 2015,ASDA,CHILDRENS SERVICES,57 LICHFIELD ROAD,10.00,RESIDENTS PERSONAL EXPENSES-ALLOWANCES TO S/S CLIENTS,GROCERY STORES AND SUPERMARKETS
14 Apr 2015,WM MORRISON FOOD.COM,CHILDRENS SERVICES,57 LICHFIELD ROAD,15.72,GENERAL PROVISIONS-PROVISIONS,GROCERY STORES AND SUPERMARKETS
14 Apr 2015,WM MORRISON FOOD.COM,CHILDRENS SERVICES,57 LICHFIELD ROAD,124.76,GENERAL PROVISIONS-PROVISIONS,GROCERY STORES AND SUPERMARKETS
14 Apr 2015,GRO HM PASSPORT OFFICE,CHILDRENS SERVICES,SAFEGUARDING & FAMILY SUPPORT,46.80,REGISTRAR OF BIRTHS/DEATHS/MARRIAGES/CIVIL PARTNERSHIPS-SERV-FEES/CHARGES,GOVERNMENT SERVICES
14 Apr 2015,WM MORRISON 063,CHILDRENS SERVICES,TRANSITION AND LEAVING CARE,1.39,FOOD AND BEVERAGES-PROVISIONS,GROCERY STORES AND SUPERMARKETS
14 Apr 2015,WM MORRISON 063,CHILDRENS SERVICES,TRANSITION AND LEAVING CARE,11.44,FOOD AND BEVERAGES-PROVISIONS,GROCERY STORES AND SUPERMARKETS
14 Apr 2015,TRAINLINE.COM,ECONOMY & ENVIRONMENT,LEISURE - MANAGEMENT AND ADMIN,129.54,OFFICER/STAFF-PUBLIC TRANSPORT,PASSENGER RAILWAYS
14 Apr 2015,WWW.DVLA.GOV.UK,ECONOMY & ENVIRONMENT,FLEET,142.50,LICENCES-TRANSPORT RUN COSTS,GOVERNMENT SERVICES
14 Apr 2015,WWW.DVLA.GOV.UK,ECONOMY & ENVIRONMENT,FLEET,227.50,LICENCES-TRANSPORT RUN COSTS,GOVERNMENT SERVICES
14 Apr 2015,WWW.DVLA.GOV.UK,ECONOMY & ENVIRONMENT,FLEET,227.50,LICENCES-TRANSPORT RUN COSTS,GOVERNMENT SERVICES
14 Apr 2015,WWW.DVLA.GOV.UK,ECONOMY & ENVIRONMENT,FLEET,227.50,LICENCES-TRANSPORT RUN COSTS,GOVERNMENT SERVICES
14 Apr 2015,REDFUNNEL.CO.UK,CHILDRENS SERVICES,LOOKED AFTER CHILDRENS SOCIAL WORK TEAM,41.00,OFFICER/STAFF-PUBLIC TRANSPORT,STEAMSHIP LINES AND CRUISE LINES
14 Apr 2015,"AMAZON SVCS EUROPE,SAR",ECONOMY & ENVIRONMENT,STREET CLEANSING,14.37,GENERAL MATERIALS,BOOK STORES
14 Apr 2015,BT BILL PAYMENT 2,ECONOMY & ENVIRONMENT,WALSALL OUTDOOR ADVENTURE CENTRE,-22.73,COSTS (NOT INTERNAL RECHARGES)-TELEPHONES,TELECOMMUNICATION EQUIPMENT & SALES
14 Apr 2015,WM MORRISONS,ECONOMY & ENVIRONMENT,ARBORETUM,15.51,FOOD AND BEVERAGES-PROVISIONS,GROCERY STORES AND SUPERMARKETS
14 Apr 2015,THE TRAINLINE.COM,RESOURCES,CHARGING & PAYMENTS,84.76,OFFICER/STAFF-PUBLIC TRANSPORT,PASSENGER RAILWAYS
14 Apr 2015,B & Q,CHILDRENS SERVICES,"43A HILTON ROAD, WILLENHALL",66.77,RESIDENTS PERSONAL EXPENSES-ALLOWANCES TO S/S CLIENTS,LUMBER & BUILDING MATERIALS STORES
14 Apr 2015,EA CARBON REDUCTION,ECONOMY & ENVIRONMENT,CENTRALISED ENERGY,70.00,CRC ALLOWANCES,GOVERNMENT SERVICES
14 Apr 2015,POUNDSTRETCHER 385,RESOURCES,LINK SERVICE,49.97,FURNITURE & EQUIPMENT,"DRAPERY, UPHOLSTERY, AND WINDOW COVERINGS STORES"
14 Apr 2015,"AMAZON SVCS EUROPE,SAR",CHILDRENS SERVICES,ELMWOOD SECONDARY SPECIAL SCHOOL,6.10,OTHER-OP MTCE,BOOK STORES
14 Apr 2015,TRAVELODGE WEBSITE,CHILDRENS SERVICES,CHILDRENS RESIDENTIAL SVCS,227.95,EXTERNAL TRAINING,TRAVELODGE
14 Apr 2015,CRAZY HOUSE (BROWNHILL,RESOURCES,WALSALL CRISIS SUPPORT SCHEME,375.00,CRISIS SUPPORT PAYMENTS,"EQUIPMENT, FURNITURE, AND HOME FURNISHINGS STORES "
14 Apr 2015,CRAZY HOUSE (BROWNHILL,RESOURCES,WALSALL CRISIS SUPPORT SCHEME,85.00,CRISIS SUPPORT PAYMENTS,"EQUIPMENT, FURNITURE, AND HOME FURNISHINGS STORES "
14 Apr 2015,CRAZY HOUSE (BROWNHILL,RESOURCES,WALSALL CRISIS SUPPORT SCHEME,55.00,CRISIS SUPPORT PAYMENTS,"EQUIPMENT, FURNITURE, AND HOME FURNISHINGS STORES "
14 Apr 2015,CRAZY HOUSE (BROWNHILL,RESOURCES,WALSALL CRISIS SUPPORT SCHEME,85.00,CRISIS SUPPORT PAYMENTS,"EQUIPMENT, FURNITURE, AND HOME FURNISHINGS STORES "
14 Apr 2015,CRAZY HOUSE (BROWNHILL,RESOURCES,WALSALL CRISIS SUPPORT SCHEME,60.00,CRISIS SUPPORT PAYMENTS,"EQUIPMENT, FURNITURE, AND HOME FURNISHINGS STORES "
14 Apr 2015,ARTHUR BRETT CATER,ECONOMY & ENVIRONMENT,CA JANE LANE SPECIAL SCHOOL,78.56,FRUIT & VEGETABLES OTHER-PROVISIONS,MISCELLANEOUS FOOD STORES & CONVENIENCE STORES
14 Apr 2015,ARTHUR BRETT CATER,ECONOMY & ENVIRONMENT,CA LEAMORE PRIMARY SCHOOL,46.61,FRUIT & VEGETABLES OTHER-PROVISIONS,MISCELLANEOUS FOOD STORES & CONVENIENCE STORES
14 Apr 2015,ARTHUR BRETT CATER,ECONOMY & ENVIRONMENT,CA RADLEYS PRIMARY SCHOOL,150.65,FRUIT & VEGETABLES OTHER-PROVISIONS,MISCELLANEOUS FOOD STORES & CONVENIENCE STORES
14 Apr 2015,ARTHUR BRETT CATER,ECONOMY & ENVIRONMENT,CA ELMORE GREEN PRIMARY SCHOOL,131.89,FRUIT & VEGETABLES OTHER-PROVISIONS,MISCELLANEOUS FOOD STORES & CONVENIENCE STORES
14 Apr 2015,JOHAL DAIRIES LTD,ECONOMY & ENVIRONMENT,TOWN HALL RESTAURANT BISTRO,30.73,MISC DAIRY PRODUCTS-PROVISIONS,OTHER NONDURABLE GOODS
14 Apr 2015,JOHAL DAIRIES LTD,ECONOMY & ENVIRONMENT,CA TOWN HALL RESTAURANT - CATERING,22.41,MISC DAIRY PRODUCTS-PROVISIONS,OTHER NONDURABLE GOODS
14 Apr 2015,ARTHUR BRETT CATER,ECONOMY & ENVIRONMENT,CA ABBEY PRIMARY SCHOOL,56.25,FRUIT & VEGETABLES OTHER-PROVISIONS,MISCELLANEOUS FOOD STORES & CONVENIENCE STORES
14 Apr 2015,ARTHUR BRETT CATER,ECONOMY & ENVIRONMENT,CA BUSILL JONES PRIMARY SCHOOL,146.23,FRUIT & VEGETABLES OTHER-PROVISIONS,MISCELLANEOUS FOOD STORES & CONVENIENCE STORES
14 Apr 2015,ARTHUR BRETT CATER,ECONOMY & ENVIRONMENT,CA BLAKENALL HEATH JUNIOR SCHOOL,55.63,FRUIT & VEGETABLES OTHER-PROVISIONS,MISCELLANEOUS FOOD STORES & CONVENIENCE STORES
14 Apr 2015,ARTHUR BRETT CATER,ECONOMY & ENVIRONMENT,CA POOL HAYES PRIMARY SCHOOL,44.99,FRUIT & VEGETABLES OTHER-PROVISIONS,MISCELLANEOUS FOOD STORES & CONVENIENCE STORES
14 Apr 2015,ARTHUR BRETT CATER,ECONOMY & ENVIRONMENT,CA CROFT COMMUNITY PRIMARY SCHOOL,92.96,FRUIT & VEGETABLES OTHER-PROVISIONS,MISCELLANEOUS FOOD STORES & CONVENIENCE STORES
14 Apr 2015,OFFICE DEPOT,RESOURCES,ELECTORAL SERVICES,83.98,STATIONERY & GENERAL SUPPLIES-OFFICE EXP,"STATIONERY, OFFICE SUPPLIES AND WRITING PAPER"
14 Apr 2015,ARTHUR BRETT CATER,ECONOMY & ENVIRONMENT,CA ST MICHAELS C.E. PRIMARY SCHOOL,12.60,FRUIT & VEGETABLES OTHER-PROVISIONS,MISCELLANEOUS FOOD STORES & CONVENIENCE STORES
14 Apr 2015,ARTHUR BRETT CATER,ECONOMY & ENVIRONMENT,CA ST MICHAELS C.E. PRIMARY SCHOOL,60.88,FRUIT & VEGETABLES OTHER-PROVISIONS,MISCELLANEOUS FOOD STORES & CONVENIENCE STORES
14 Apr 2015,ARTHUR BRETT CATER,ECONOMY & ENVIRONMENT,CA TOWN HALL RESTAURANT - CATERING,47.29,FRUIT & VEGETABLES OTHER-PROVISIONS,MISCELLANEOUS FOOD STORES & CONVENIENCE STORES
14 Apr 2015,ARTHUR BRETT CATER,ECONOMY & ENVIRONMENT,TOWN HALL RESTAURANT BISTRO,54.09,FRUIT & VEGETABLES OTHER-PROVISIONS,MISCELLANEOUS FOOD STORES & CONVENIENCE STORES
14 Apr 2015,ARTHUR BRETT CATER,ECONOMY & ENVIRONMENT,CA LITTLE BLOXWICH CE PRIMARY SCHOOL,40.91,FRUIT & VEGETABLES OTHER-PROVISIONS,MISCELLANEOUS FOOD STORES & CONVENIENCE STORES
14 Apr 2015,JOHAL DAIRIES LTD,CHILDRENS SERVICES,57 LICHFIELD ROAD,13.34,FOOD AND BEVERAGES-PROVISIONS,OTHER NONDURABLE GOODS
14 Apr 2015,THE TRAINLINE.COM,RESOURCES,BUSINESS IMPROVEMENT SERVICE,62.73,OFFICER/STAFF-PUBLIC TRANSPORT,PASSENGER RAILWAYS
14 Apr 2015,ARTHUR BRETT CATER,ECONOMY & ENVIRONMENT,CA BEACON PRIMARY SCHOOL,151.91,FRUIT & VEGETABLES OTHER-PROVISIONS,MISCELLANEOUS FOOD STORES & CONVENIENCE STORES
14 Apr 2015,ARTHUR BRETT CATER,ECONOMY & ENVIRONMENT,CA BARCROFT D/C,90.48,FRUIT & VEGETABLES OTHER-PROVISIONS,MISCELLANEOUS FOOD STORES & CONVENIENCE STORES
14 Apr 2015,ARTHUR BRETT CATER,ECONOMY & ENVIRONMENT,CA NEW INVENTION INFANT,110.43,FRUIT & VEGETABLES OTHER-PROVISIONS,MISCELLANEOUS FOOD STORES & CONVENIENCE STORES
14 Apr 2015,ARTHUR BRETT CATER,ECONOMY & ENVIRONMENT,CA ST GILES C.E. PRIMARY SCHOOL,34.18,FRUIT & VEGETABLES OTHER-PROVISIONS,MISCELLANEOUS FOOD STORES & CONVENIENCE STORES
14 Apr 2015,ARTHUR BRETT CATER,ECONOMY & ENVIRONMENT,CA ST FRANCIS CATHOLIC PRIMARY SCHOOL,54.09,FRUIT & VEGETABLES OTHER-PROVISIONS,MISCELLANEOUS FOOD STORES & CONVENIENCE STORES
14 Apr 2015,ARTHUR BRETT CATER,ECONOMY & ENVIRONMENT,CA RUSHALL JMI SCHOOL,89.59,FRUIT & VEGETABLES OTHER-PROVISIONS,MISCELLANEOUS FOOD STORES & CONVENIENCE STORES
14 Apr 2015,ARTHUR BRETT CATER,ECONOMY & ENVIRONMENT,CA ELMWOOD SPECIAL SCHOOL,42.97,FRUIT & VEGETABLES OTHER-PROVISIONS,MISCELLANEOUS FOOD STORES & CONVENIENCE STORES
14 Apr 2015,OFFICE DEPOT,ECONOMY & ENVIRONMENT,LIBRARY OPERATIONS CENTRAL,7.19,STATIONERY & GENERAL SUPPLIES-OFFICE EXP,"STATIONERY, OFFICE SUPPLIES AND WRITING PAPER"
14 Apr 2015,JOHAL DAIRIES LTD,SOCIAL CARE & INCLUSION,FALLINGS HEATH,48.89,MISC DAIRY PRODUCTS-PROVISIONS,OTHER NONDURABLE GOODS
14 Apr 2015,OFFICE DEPOT,CHILDRENS SERVICES,CHILDRENS RESIDENTIAL SVCS,138.06,STATIONERY & GENERAL SUPPLIES-OFFICE EXP,"STATIONERY, OFFICE SUPPLIES AND WRITING PAPER"
14 Apr 2015,OFFICE DEPOT,ECONOMY & ENVIRONMENT,VP SCL ESSENTIAL SKILLS S4L IT ESOL,57.88,STATIONERY & GENERAL SUPPLIES-OFFICE EXP,"STATIONERY, OFFICE SUPPLIES AND WRITING PAPER"
14 Apr 2015,OFFICE DEPOT,ECONOMY & ENVIRONMENT,AP FINANCE & RESOURCES ADMINISTRATION,59.66,STATIONERY & GENERAL SUPPLIES-OFFICE EXP,"STATIONERY, OFFICE SUPPLIES AND WRITING PAPER"
14 Apr 2015,ARTHUR BRETT CATER,ECONOMY & ENVIRONMENT,CA FIBBERSLEY PARK PRIMARY SCHOOL,135.65,FRUIT & VEGETABLES OTHER-PROVISIONS,MISCELLANEOUS FOOD STORES & CONVENIENCE STORES
14 Apr 2015,JOHAL DAIRIES LTD,SOCIAL CARE & INCLUSION,REABLEMENT TEAM - HOLLY BANK,108.21,MISC DAIRY PRODUCTS-PROVISIONS,OTHER NONDURABLE GOODS
14 Apr 2015,ARTHUR BRETT CATER,ECONOMY & ENVIRONMENT,CA BLOXWICH C.E. JMI PRIMARY SCHOOL,69.56,FRUIT & VEGETABLES OTHER-PROVISIONS,MISCELLANEOUS FOOD STORES & CONVENIENCE STORES
14 Apr 2015,ARTHUR BRETT CATER,ECONOMY & ENVIRONMENT,CA CALDMORE COMMUNITY PRIMARY SCHOOL,129.04,FRUIT & VEGETABLES OTHER-PROVISIONS,MISCELLANEOUS FOOD STORES & CONVENIENCE STORES
14 Apr 2015,ARTHUR BRETT CATER,ECONOMY & ENVIRONMENT,CA BIRCHILLS CE PRIMARY COMMUNITY SCHOOL,23.44,FRUIT & VEGETABLES OTHER-PROVISIONS,MISCELLANEOUS FOOD STORES & CONVENIENCE STORES
14 Apr 2015,ARTHUR BRETT CATER,ECONOMY & ENVIRONMENT,CA BIRCHILLS CE PRIMARY COMMUNITY SCHOOL,72.85,FRUIT & VEGETABLES OTHER-PROVISIONS,MISCELLANEOUS FOOD STORES & CONVENIENCE STORES
14 Apr 2015,JOHAL DAIRIES LTD,CHILDRENS SERVICES,STROUD FAMILY CENTRE,3.98,FOOD AND BEVERAGES-PROVISIONS,OTHER NONDURABLE GOODS
14 Apr 2015,SPENDVISION,RESOURCES,FINANCE ADMIN,600.00,SERVICE AGREEMENTS-SERVICES,
15 Apr 2015,PREMIER INN44533745,RESOURCES,ACCOMMODATION SERVICES MANAGEMENT,203.00,BED & BREAKFAST PAYMENTS,PREMIER INN
15 Apr 2015,SCREWFIX DIRECT,ECONOMY & ENVIRONMENT,COMMUNITY LIAISON,34.37,GENERAL MATERIALS,LUMBER & BUILDING MATERIALS STORES
15 Apr 2015,THE TRAINLINE.COM,RESOURCES,NETWORKS,278.97,OFFICER/STAFF-PUBLIC TRANSPORT,PASSENGER RAILWAYS
15 Apr 2015,PAYPAL,SOCIAL CARE & INCLUSION,TELE-HEALTH,23.53,GENERAL MATERIALS,ELECTRONIC SALES
15 Apr 2015,MIDLAND CHANDLERS,ECONOMY & ENVIRONMENT,WALSALL OUTDOOR ADVENTURE CENTRE,45.80,GENERAL MATERIALS,BOAT DEALERS
15 Apr 2015,ALLIANCE DISPOSABLES,ECONOMY & ENVIRONMENT,WALSALL TOWN HALL,-19.65,FROZEN FOODS-PROVISIONS,CATERERS
15 Apr 2015,MARKS & SPENCER,ECONOMY & ENVIRONMENT,DARLASTON LEISURE CENTRE,14.00,FOOD AND BEVERAGES-PROVISIONS,GROCERY STORES AND SUPERMARKETS
15 Apr 2015,TESCO STORE 3351,CHILDRENS SERVICES,PARENTING TEAM,9.55,FOOD AND BEVERAGES-PROVISIONS,GROCERY STORES AND SUPERMARKETS
15 Apr 2015,TESCO STORE 3351,CHILDRENS SERVICES,PARENTING TEAM,7.00,FOOD AND BEVERAGES-PROVISIONS,GROCERY STORES AND SUPERMARKETS
15 Apr 2015,KINDWATER LIMITED,ECONOMY & ENVIRONMENT,WALSALL GALA CENTRE,550.54,CHEMICALS & SCIENTIFIC MATS-MATERIALS,OTHER BUSINESS SERVICES
15 Apr 2015,ARGOS LTD,ECONOMY & ENVIRONMENT,WALSALL WOOD LIBRARY,47.49,MISCELLANEOUS SUPPLIES,DISCOUNT STORES
15 Apr 2015,GRO HM PASSPORT OFFICE,CHILDRENS SERVICES,SAFEGUARDING & FAMILY SUPPORT,70.20,REGISTRAR OF BIRTHS/DEATHS/MARRIAGES/CIVIL PARTNERSHIPS-SERV-FEES/CHARGES,GOVERNMENT SERVICES
15 Apr 2015,TESCO STORES 6161,CHILDRENS SERVICES,57 LICHFIELD ROAD,5.64,GENERAL PROVISIONS-PROVISIONS,GROCERY STORES AND SUPERMARKETS
15 Apr 2015,AMAZON UK RETAIL,CHILDRENS SERVICES,GENERAL RESOURCES & MISC,3.85,GENERAL MATERIALS,OTHER DIRECT MARKETING-OTHER DIRECT MARKETERS
15 Apr 2015,"AMAZON SVCS EUROPE,SAR",CHILDRENS SERVICES,GENERAL RESOURCES & MISC,69.80,GENERAL MATERIALS,BOOK STORES
15 Apr 2015,AMAZON UK RETAIL,CHILDRENS SERVICES,HISTORY/GEOG/SOCIAL EDUC,4.99,GENERAL MATERIALS,OTHER DIRECT MARKETING-OTHER DIRECT MARKETERS
15 Apr 2015,WWW.INSECTLORE-EUROPE.CO,CHILDRENS SERVICES,FOUNDATION PHASE RESOURCES,28.93,GENERAL MATERIALS,DIRECT MARKETING CATALOG MERCHANTS
15 Apr 2015,WILKO RETAIL LIMIT,ECONOMY & ENVIRONMENT,NAG - TEMPORARY EXHIBITIONS,1.00,MISC DAIRY PRODUCTS-PROVISIONS,HOUSEHOLD APPLIANCE STORES
15 Apr 2015,WILKO RETAIL LIMIT,ECONOMY & ENVIRONMENT,NAG - TEMPORARY EXHIBITIONS,0.50,MISC DAIRY PRODUCTS-PROVISIONS,HOUSEHOLD APPLIANCE STORES
15 Apr 2015,TRAVEL WEST MIDLAN,CHILDRENS SERVICES,LOOKED AFTER CHILDRENS SOCIAL WORK TEAM,80.00,TRANSFER PAYMENTS - SOCIAL SERVICES CLIENTS,BUS LINES
15 Apr 2015,TESCO STORES 6161,CHILDRENS SERVICES,LOOKED AFTER CHILDRENS SOCIAL WORK TEAM,1.67,TRANSFER PAYMENTS - SOCIAL SERVICES CLIENTS,GROCERY STORES AND SUPERMARKETS
15 Apr 2015,TESCO STORES 6161,CHILDRENS SERVICES,LOOKED AFTER CHILDRENS SOCIAL WORK TEAM,19.18,TRANSFER PAYMENTS - SOCIAL SERVICES CLIENTS,GROCERY STORES AND SUPERMARKETS
15 Apr 2015,ASDA STORES,ECONOMY & ENVIRONMENT,ACTIVE ENGLAND,7.16,FOOD AND BEVERAGES-PROVISIONS,GROCERY STORES AND SUPERMARKETS
15 Apr 2015,YORKSHIRE PURCHASING O,CHILDRENS SERVICES,CLUSTER 4 ALUMWELL & BIRCHILLS,219.00,CLEANING MATERIALS,"STATIONERY, OFFICE SUPPLIES AND WRITING PAPER"
15 Apr 2015,YORKSHIRE PURCHASING O,CHILDRENS SERVICES,CLUSTER 4 ALUMWELL & BIRCHILLS,219.00,CLEANING MATERIALS,"STATIONERY, OFFICE SUPPLIES AND WRITING PAPER"
15 Apr 2015,WWW.INSECTLORE-EUROPE.CO,CHILDRENS SERVICES,STANLEYS NURSERY,24.95,GENERAL MATERIALS,DIRECT MARKETING CATALOG MERCHANTS
15 Apr 2015,YORKSHIRE PURCHASING O,CHILDRENS SERVICES,CLUSTER 4 ALUMWELL & BIRCHILLS,52.48,GENERAL MATERIALS,"STATIONERY, OFFICE SUPPLIES AND WRITING PAPER"
15 Apr 2015,ARGOS LTD,CHILDRENS SERVICES,SPINDLETREE,256.48,RESIDENTS PERSONAL EXPENSES-ALLOWANCES TO S/S CLIENTS,DISCOUNT STORES
15 Apr 2015,ARGOS LTD,CHILDRENS SERVICES,SPINDLETREE,285.44,RESIDENTS PERSONAL EXPENSES-ALLOWANCES TO S/S CLIENTS,DISCOUNT STORES
15 Apr 2015,"AMAZON SVCS EUROPE,SAR",CHILDRENS SERVICES,INFORMATION SERVICES,14.50,LIBRARY BOOKS,BOOK STORES
15 Apr 2015,WM MORRISON FOOD.COM,CHILDRENS SERVICES,NEW LEAF PUPIL REFERRAL UNIT,47.00,FOOD AND BEVERAGES-PROVISIONS,GROCERY STORES AND SUPERMARKETS
15 Apr 2015,"AMAZON SVCS EUROPE,SAR",CHILDRENS SERVICES,SCHOOL IMPROVEMENT,22.49,GENERAL EXPENSES-OFFICE EXP,BOOK STORES
15 Apr 2015,WM MORRISON FOOD.COM,CHILDRENS SERVICES,CLUSTER 5 DARLASTON,41.40,GENERAL PROVISIONS-PROVISIONS,GROCERY STORES AND SUPERMARKETS
15 Apr 2015,WM MORRISON FOOD.COM,CHILDRENS SERVICES,CLUSTER 5 DARLASTON,83.56,FOOD AND BEVERAGES-PROVISIONS,GROCERY STORES AND SUPERMARKETS
15 Apr 2015,"AMAZON SVCS EUROPE,SAR",CHILDRENS SERVICES,HEALTH AND SAFETY,29.98,GENERAL MATERIALS,BOOK STORES
15 Apr 2015,"AMAZON SVCS EUROPE,SAR",ECONOMY & ENVIRONMENT,FLEET,1.99,GENERAL MATERIALS,BOOK STORES
15 Apr 2015,BORSHCH LIMITED,RESOURCES,WALSALL CRISIS SUPPORT SCHEME,325.00,CRISIS SUPPORT PAYMENTS,ELECTRONIC SALES
15 Apr 2015,BORSHCH LIMITED,RESOURCES,WALSALL CRISIS SUPPORT SCHEME,395.00,CRISIS SUPPORT PAYMENTS,ELECTRONIC SALES
15 Apr 2015,BORSHCH LIMITED,RESOURCES,WALSALL CRISIS SUPPORT SCHEME,400.00,CRISIS SUPPORT PAYMENTS,ELECTRONIC SALES
15 Apr 2015,BORSHCH LIMITED,RESOURCES,WALSALL CRISIS SUPPORT SCHEME,270.00,CRISIS SUPPORT PAYMENTS,ELECTRONIC SALES
15 Apr 2015,BORSHCH LIMITED,RESOURCES,WALSALL CRISIS SUPPORT SCHEME,330.00,CRISIS SUPPORT PAYMENTS,ELECTRONIC SALES
15 Apr 2015,BORSHCH LIMITED,RESOURCES,WALSALL CRISIS SUPPORT SCHEME,325.00,CRISIS SUPPORT PAYMENTS,ELECTRONIC SALES
15 Apr 2015,WWW.GIROFOOD.COM,ECONOMY & ENVIRONMENT,CA RADLEYS PRIMARY SCHOOL,188.14,DISPOSABLES-PROVISIONS,WHOLESALE CLUBS
15 Apr 2015,WWW.GIROFOOD.COM,ECONOMY & ENVIRONMENT,CA NEW INVENTION INFANT,23.42,DISPOSABLES-PROVISIONS,WHOLESALE CLUBS
15 Apr 2015,WWW.GIROFOOD.COM,ECONOMY & ENVIRONMENT,CA CASTLEFORT JMI SCHOOL,54.28,DISPOSABLES-PROVISIONS,WHOLESALE CLUBS
15 Apr 2015,OFFICE DEPOT,CHILDRENS SERVICES,CLUSTER 5 DARLASTON,57.71,STATIONERY & GENERAL SUPPLIES-OFFICE EXP,"STATIONERY, OFFICE SUPPLIES AND WRITING PAPER"
15 Apr 2015,OFFICE DEPOT,ECONOMY & ENVIRONMENT,COUNTRYSIDE MANAGEMENT-OTHER,37.79,GENERAL MATERIALS,"STATIONERY, OFFICE SUPPLIES AND WRITING PAPER"
15 Apr 2015,OFFICE DEPOT,ECONOMY & ENVIRONMENT,RESOURCE MANAGEMENT,36.50,STATIONERY & GENERAL SUPPLIES-OFFICE EXP,"STATIONERY, OFFICE SUPPLIES AND WRITING PAPER"
15 Apr 2015,BLAKEMORE FOODSERVICE,ECONOMY & ENVIRONMENT,CA OLD HALL SPECIAL SCHOOL,10.11,DRY FOODS-PROVISIONS,CATERERS
15 Apr 2015,BLAKEMORE FOODSERVICE,ECONOMY & ENVIRONMENT,CA OLD HALL SPECIAL SCHOOL,264.58,DRY FOODS-PROVISIONS,CATERERS
15 Apr 2015,BLAKEMORE FOODSERVICE,ECONOMY & ENVIRONMENT,CA OLD HALL SPECIAL SCHOOL,48.86,DRY FOODS-PROVISIONS,CATERERS
15 Apr 2015,OFFICE DEPOT,SOCIAL CARE & INCLUSION,INTEGRATED BUSINESS PROCESSES & SERVICES,174.28,STATIONERY & GENERAL SUPPLIES-OFFICE EXP,"STATIONERY, OFFICE SUPPLIES AND WRITING PAPER"
15 Apr 2015,BLAKEMORE FOODSERVICE,ECONOMY & ENVIRONMENT,CA BIRCHILLS CE PRIMARY COMMUNITY SCHOOL,238.96,DRY FOODS-PROVISIONS,CATERERS
15 Apr 2015,BLAKEMORE FOODSERVICE,ECONOMY & ENVIRONMENT,CA BIRCHILLS CE PRIMARY COMMUNITY SCHOOL,18.00,DRY FOODS-PROVISIONS,CATERERS
15 Apr 2015,BLAKEMORE FOODSERVICE,ECONOMY & ENVIRONMENT,CA LEIGHSWOOD PRIMARY SCHOOL,52.71,FROZEN FOODS-PROVISIONS,CATERERS
15 Apr 2015,BLAKEMORE FOODSERVICE,ECONOMY & ENVIRONMENT,CA CALDMORE COMMUNITY PRIMARY SCHOOL,7.68,DRY FOODS-PROVISIONS,CATERERS
15 Apr 2015,BLAKEMORE FOODSERVICE,ECONOMY & ENVIRONMENT,CA CALDMORE COMMUNITY PRIMARY SCHOOL,185.82,DRY FOODS-PROVISIONS,CATERERS
15 Apr 2015,OFFICE DEPOT,RESOURCES,PRINT STORES,34.22,STATIONERY & GENERAL SUPPLIES-OFFICE EXP,"STATIONERY, OFFICE SUPPLIES AND WRITING PAPER"
15 Apr 2015,OFFICE DEPOT,CHILDRENS SERVICES,CLUSTER 4 ALUMWELL & BIRCHILLS,163.18,STATIONERY & GENERAL SUPPLIES-OFFICE EXP,"STATIONERY, OFFICE SUPPLIES AND WRITING PAPER"
15 Apr 2015,BLAKEMORE FOODSERVICE,ECONOMY & ENVIRONMENT,CA BLUE COAT C OF E PERFORMING ARTS COLLEGE,391.73,DRY FOODS-PROVISIONS,CATERERS
15 Apr 2015,BLAKEMORE FOODSERVICE,ECONOMY & ENVIRONMENT,CA BLUE COAT C OF E PERFORMING ARTS COLLEGE,8.07,DRY FOODS-PROVISIONS,CATERERS
15 Apr 2015,BLAKEMORE FOODSERVICE,ECONOMY & ENVIRONMENT,CA BLUE COAT C OF E PERFORMING ARTS COLLEGE,234.58,DRY FOODS-PROVISIONS,CATERERS
15 Apr 2015,BLAKEMORE FOODSERVICE,ECONOMY & ENVIRONMENT,CA BLUE COAT C OF E PERFORMING ARTS COLLEGE,92.11,DRY FOODS-PROVISIONS,CATERERS
15 Apr 2015,BLAKEMORE FOODSERVICE,ECONOMY & ENVIRONMENT,CA FIBBERSLEY PARK PRIMARY SCHOOL,54.99,FROZEN FOODS-PROVISIONS,CATERERS
15 Apr 2015,BLAKEMORE FOODSERVICE,ECONOMY & ENVIRONMENT,CA FIBBERSLEY PARK PRIMARY SCHOOL,24.22,FROZEN FOODS-PROVISIONS,CATERERS
15 Apr 2015,BLAKEMORE FOODSERVICE,ECONOMY & ENVIRONMENT,CA FIBBERSLEY PARK PRIMARY SCHOOL,203.55,DRY FOODS-PROVISIONS,CATERERS
15 Apr 2015,BLAKEMORE FOODSERVICE,ECONOMY & ENVIRONMENT,CA FIBBERSLEY PARK PRIMARY SCHOOL,37.57,DRY FOODS-PROVISIONS,CATERERS
15 Apr 2015,BLAKEMORE FOODSERVICE,ECONOMY & ENVIRONMENT,CA OAKWOOD SPECIAL SCHOOL,77.16,FROZEN FOODS-PROVISIONS,CATERERS
15 Apr 2015,BLAKEMORE FOODSERVICE,ECONOMY & ENVIRONMENT,CA OAKWOOD SPECIAL SCHOOL,8.07,FROZEN FOODS-PROVISIONS,CATERERS
15 Apr 2015,OFFICE DEPOT,ECONOMY & ENVIRONMENT,SPORT & LEISURE DEVELOPMENT SERVICES,182.16,STATIONERY & GENERAL SUPPLIES-OFFICE EXP,"STATIONERY, OFFICE SUPPLIES AND WRITING PAPER"
15 Apr 2015,BLAKEMORE FOODSERVICE,ECONOMY & ENVIRONMENT,CA COOPER JORDAN CE PRIMARY SCHOOL,87.98,FROZEN FOODS-PROVISIONS,CATERERS
15 Apr 2015,BLAKEMORE FOODSERVICE,ECONOMY & ENVIRONMENT,CA ST JOHNS C.E. PRIMARY SCHOOL,138.06,FROZEN FOODS-PROVISIONS,CATERERS
15 Apr 2015,BLAKEMORE FOODSERVICE,ECONOMY & ENVIRONMENT,CA ST JOHNS C.E. PRIMARY SCHOOL,40.38,FROZEN FOODS-PROVISIONS,CATERERS
15 Apr 2015,ARTHUR BRETT CATER,ECONOMY & ENVIRONMENT,CA CASTLEFORT JMI SCHOOL,28.32,FRUIT & VEGETABLES OTHER-PROVISIONS,MISCELLANEOUS FOOD STORES & CONVENIENCE STORES
15 Apr 2015,BLAKEMORE FOODSERVICE,ECONOMY & ENVIRONMENT,CA CASTLEFORT JMI SCHOOL,58.68,FROZEN FOODS-PROVISIONS,CATERERS
15 Apr 2015,BLAKEMORE FOODSERVICE,ECONOMY & ENVIRONMENT,CA CASTLEFORT JMI SCHOOL,8.07,FROZEN FOODS-PROVISIONS,CATERERS
15 Apr 2015,BLAKEMORE FOODSERVICE,ECONOMY & ENVIRONMENT,CA ELMWOOD SPECIAL SCHOOL,49.89,FROZEN FOODS-PROVISIONS,CATERERS
15 Apr 2015,BLAKEMORE FOODSERVICE,ECONOMY & ENVIRONMENT,CA ELMWOOD SPECIAL SCHOOL,254.67,DRY FOODS-PROVISIONS,CATERERS
15 Apr 2015,BLAKEMORE FOODSERVICE,ECONOMY & ENVIRONMENT,CA ELMWOOD SPECIAL SCHOOL,17.07,DRY FOODS-PROVISIONS,CATERERS
15 Apr 2015,BLAKEMORE FOODSERVICE,ECONOMY & ENVIRONMENT,CA WATLING STREET PRIMARY SCHOOL,55.58,FROZEN FOODS-PROVISIONS,CATERERS
15 Apr 2015,BLAKEMORE FOODSERVICE,ECONOMY & ENVIRONMENT,CA WATLING STREET PRIMARY SCHOOL,24.22,FROZEN FOODS-PROVISIONS,CATERERS
15 Apr 2015,BLAKEMORE FOODSERVICE,ECONOMY & ENVIRONMENT,CA RUSHALL JMI SCHOOL,50.99,FROZEN FOODS-PROVISIONS,CATERERS
15 Apr 2015,BLAKEMORE FOODSERVICE,ECONOMY & ENVIRONMENT,CA RUSHALL JMI SCHOOL,14.38,FROZEN FOODS-PROVISIONS,CATERERS
15 Apr 2015,BLAKEMORE FOODSERVICE,ECONOMY & ENVIRONMENT,CA BARCROFT D/C,289.99,DRY FOODS-PROVISIONS,CATERERS
15 Apr 2015,WELSH BROS FOODS LTD,ECONOMY & ENVIRONMENT,CA OLD HALL SPECIAL SCHOOL,125.08,MEAT-PROVISIONS,FREEZER AND LOCKER MEAT PROVISIONERS
15 Apr 2015,BLAKEMORE FOODSERVICE,ECONOMY & ENVIRONMENT,CA BEACON PRIMARY SCHOOL,134.16,DRY FOODS-PROVISIONS,CATERERS
15 Apr 2015,BLAKEMORE FOODSERVICE,ECONOMY & ENVIRONMENT,CA BEACON PRIMARY SCHOOL,138.54,DRY FOODS-PROVISIONS,CATERERS
15 Apr 2015,BLAKEMORE FOODSERVICE,ECONOMY & ENVIRONMENT,CA LINDENS PRIMARY SCHOOL,134.21,FROZEN FOODS-PROVISIONS,CATERERS
15 Apr 2015,BLAKEMORE FOODSERVICE,ECONOMY & ENVIRONMENT,CA LINDENS PRIMARY SCHOOL,24.22,FROZEN FOODS-PROVISIONS,CATERERS
15 Apr 2015,BLAKEMORE FOODSERVICE,ECONOMY & ENVIRONMENT,CA ST MICHAELS C.E. PRIMARY SCHOOL,162.00,FROZEN FOODS-PROVISIONS,CATERERS
15 Apr 2015,BLAKEMORE FOODSERVICE,ECONOMY & ENVIRONMENT,CA ST MICHAELS C.E. PRIMARY SCHOOL,14.38,FROZEN FOODS-PROVISIONS,CATERERS
15 Apr 2015,BLAKEMORE FOODSERVICE,ECONOMY & ENVIRONMENT,CA MEADOW VIEW JMI PRIMARY SCHOOL,61.88,FROZEN FOODS-PROVISIONS,CATERERS
15 Apr 2015,BLAKEMORE FOODSERVICE,ECONOMY & ENVIRONMENT,CA MEADOW VIEW JMI PRIMARY SCHOOL,32.30,FROZEN FOODS-PROVISIONS,CATERERS
15 Apr 2015,BLAKEMORE FOODSERVICE,ECONOMY & ENVIRONMENT,CA ELMORE GREEN PRIMARY SCHOOL,89.14,FROZEN FOODS-PROVISIONS,CATERERS
15 Apr 2015,BLAKEMORE FOODSERVICE,ECONOMY & ENVIRONMENT,CA ELMORE GREEN PRIMARY SCHOOL,16.15,FROZEN FOODS-PROVISIONS,CATERERS
15 Apr 2015,BLAKEMORE FOODSERVICE,ECONOMY & ENVIRONMENT,CA ELMORE GREEN PRIMARY SCHOOL,259.25,DRY FOODS-PROVISIONS,CATERERS
15 Apr 2015,BLAKEMORE FOODSERVICE,ECONOMY & ENVIRONMENT,CA ELMORE GREEN PRIMARY SCHOOL,50.71,DRY FOODS-PROVISIONS,CATERERS
15 Apr 2015,BLAKEMORE FOODSERVICE,ECONOMY & ENVIRONMENT,CA ELMORE GREEN PRIMARY SCHOOL,7.13,FROZEN FOODS-PROVISIONS,CATERERS
15 Apr 2015,BLAKEMORE FOODSERVICE,ECONOMY & ENVIRONMENT,CA LEIGHSWOOD PRIMARY SCHOOL,32.30,FROZEN FOODS-PROVISIONS,CATERERS
15 Apr 2015,BLAKEMORE FOODSERVICE,ECONOMY & ENVIRONMENT,CA BROWNHILLS WEST PRIMARY SCHOOL,99.20,FROZEN FOODS-PROVISIONS,CATERERS
15 Apr 2015,BLAKEMORE FOODSERVICE,ECONOMY & ENVIRONMENT,CA BROWNHILLS WEST PRIMARY SCHOOL,16.15,FROZEN FOODS-PROVISIONS,CATERERS
15 Apr 2015,BLAKEMORE FOODSERVICE,ECONOMY & ENVIRONMENT,CA BROWNHILLS WEST PRIMARY SCHOOL,14.26,DRY FOODS-PROVISIONS,CATERERS
15 Apr 2015,BLAKEMORE FOODSERVICE,ECONOMY & ENVIRONMENT,CA BUSILL JONES PRIMARY SCHOOL,133.10,FROZEN FOODS-PROVISIONS,CATERERS
15 Apr 2015,BLAKEMORE FOODSERVICE,ECONOMY & ENVIRONMENT,CA BUSILL JONES PRIMARY SCHOOL,48.45,FROZEN FOODS-PROVISIONS,CATERERS
15 Apr 2015,BLAKEMORE FOODSERVICE,ECONOMY & ENVIRONMENT,CA BUSILL JONES PRIMARY SCHOOL,677.39,DRY FOODS-PROVISIONS,CATERERS
15 Apr 2015,BLAKEMORE FOODSERVICE,ECONOMY & ENVIRONMENT,CA BUSILL JONES PRIMARY SCHOOL,42.43,DRY FOODS-PROVISIONS,CATERERS
15 Apr 2015,BLAKEMORE FOODSERVICE,ECONOMY & ENVIRONMENT,TOWN HALL RESTAURANT BISTRO,49.24,FROZEN FOODS-PROVISIONS,CATERERS
15 Apr 2015,BLAKEMORE FOODSERVICE,ECONOMY & ENVIRONMENT,CA TOWN HALL RESTAURANT - CATERING,95.59,FROZEN FOODS-PROVISIONS,CATERERS
15 Apr 2015,BLAKEMORE FOODSERVICE,ECONOMY & ENVIRONMENT,CA RADLEYS PRIMARY SCHOOL,85.24,FROZEN FOODS-PROVISIONS,CATERERS
15 Apr 2015,BLAKEMORE FOODSERVICE,ECONOMY & ENVIRONMENT,CA RADLEYS PRIMARY SCHOOL,40.38,FROZEN FOODS-PROVISIONS,CATERERS
15 Apr 2015,BLAKEMORE FOODSERVICE,ECONOMY & ENVIRONMENT,CA JOSEPH LECKIE COMMUNITY TECHNOLOGY COLLEGE,786.75,DRY FOODS-PROVISIONS,CATERERS
15 Apr 2015,BLAKEMORE FOODSERVICE,ECONOMY & ENVIRONMENT,CA JOSEPH LECKIE COMMUNITY TECHNOLOGY COLLEGE,293.42,DRY FOODS-PROVISIONS,CATERERS
15 Apr 2015,BLAKEMORE FOODSERVICE,ECONOMY & ENVIRONMENT,CA JOSEPH LECKIE COMMUNITY TECHNOLOGY COLLEGE,354.95,FROZEN FOODS-PROVISIONS,CATERERS
15 Apr 2015,BLAKEMORE FOODSERVICE,ECONOMY & ENVIRONMENT,CA JANE LANE SPECIAL SCHOOL,406.64,DRY FOODS-PROVISIONS,CATERERS
15 Apr 2015,BLAKEMORE FOODSERVICE,ECONOMY & ENVIRONMENT,CA ST ANNES CATHOLIC PRIMARY SCHOOL,195.23,FROZEN FOODS-PROVISIONS,CATERERS
15 Apr 2015,BLAKEMORE FOODSERVICE,ECONOMY & ENVIRONMENT,CA ST ANNES CATHOLIC PRIMARY SCHOOL,16.15,FROZEN FOODS-PROVISIONS,CATERERS
16 Apr 2015,INDESITCOMPANY,CHILDRENS SERVICES,STANLEYS NURSERY,26.98,FURNITURE & EQUIPMENT,ELECTRICAL PARTS AND EQUIPMENT
16 Apr 2015,AMAZON UK RETAIL,CHILDRENS SERVICES,ADMINISTRATIVE SUPPLIES,105.97,GENERAL MATERIALS,OTHER DIRECT MARKETING-OTHER DIRECT MARKETERS
16 Apr 2015,AMAZON UK RETAIL,CHILDRENS SERVICES,MEDIA,19.45,GENERAL MATERIALS,OTHER DIRECT MARKETING-OTHER DIRECT MARKETERS
16 Apr 2015,"AMAZON SVCS EUROPE,SAR",CHILDRENS SERVICES,MEDIA,699.96,GENERAL MATERIALS,BOOK STORES
16 Apr 2015,"AMAZON SVCS EUROPE,SAR",CHILDRENS SERVICES,ADMINISTRATIVE SUPPLIES,11.35,GENERAL MATERIALS,BOOK STORES
16 Apr 2015,WM MORRISON FOOD.COM,CHILDRENS SERVICES,CLUSTER 5 DARLASTON,-4.00,FOOD AND BEVERAGES-PROVISIONS,GROCERY STORES AND SUPERMARKETS
16 Apr 2015,"AMAZON SVCS EUROPE,SAR",CHILDRENS SERVICES,SAFEGUARDING BOARD,14.28,GENERAL EXPENSES-OFFICE EXP,BOOK STORES
16 Apr 2015,"AMAZON SVCS EUROPE,SAR",CHILDRENS SERVICES,INFORMATION SERVICES,1.80,LIBRARY BOOKS,BOOK STORES
16 Apr 2015,WWW.OFFICEDEPOT.COM,CHILDRENS SERVICES,CLUSTER 4 ALUMWELL & BIRCHILLS,232.84,STATIONERY & GENERAL SUPPLIES-OFFICE EXP,"STATIONERY, OFFICE SUPPLIES AND WRITING PAPER"
16 Apr 2015,ASDA SUPERSTORE,CHILDRENS SERVICES,STANLEYS NURSERY,44.96,GENERAL MATERIALS,GROCERY STORES AND SUPERMARKETS
16 Apr 2015,TRAINLINE.COM,CHILDRENS SERVICES,SAFEGUARDING & FAMILY SUPPORT,61.40,OTHER-TRAVEL ALLOWANCES,PASSENGER RAILWAYS
16 Apr 2015,TRAINLINE.COM,ECONOMY & ENVIRONMENT,NEW ART GALLERY - ADMIN,34.68,OFFICER/STAFF-PUBLIC TRANSPORT,PASSENGER RAILWAYS
16 Apr 2015,TRAINLINE.COM,CHILDRENS SERVICES,TROUBLED FAMILIES GRANT (STRENGHTENING FAMILIES),115.77,OFFICER/STAFF-PUBLIC TRANSPORT,PASSENGER RAILWAYS
16 Apr 2015,"AMAZON SVCS EUROPE,SAR",CHILDRENS SERVICES,CHUCKERY PRIMARY SCHOOL,39.78,CLEANING-MATERIALS (INC LIGHT BULBS),BOOK STORES
16 Apr 2015,"AMAZON SVCS EUROPE,SAR",CHILDRENS SERVICES,GENERAL RESOURCES & MISC,3.40,GENERAL MATERIALS,BOOK STORES
16 Apr 2015,"AMAZON SVCS EUROPE,SAR",CHILDRENS SERVICES,CHUCKERY PRIMARY SCHOOL,58.53,LANDSCAPE WORK-OP MTCE,BOOK STORES
16 Apr 2015,AMAZON UK RETAIL,CHILDRENS SERVICES,HISTORY/GEOG/SOCIAL EDUC,6.89,GENERAL MATERIALS,OTHER DIRECT MARKETING-OTHER DIRECT MARKETERS
16 Apr 2015,FRIARY GRANGE SPORTS C,CHILDRENS SERVICES,57 LICHFIELD ROAD,10.00,RESIDENTS PERSONAL EXPENSES-ALLOWANCES TO S/S CLIENTS,GOVERNMENT SERVICES
16 Apr 2015,ARGOS RETAIL GROUP,CHILDRENS SERVICES,SAFEGUARDING & FAMILY SUPPORT,148.43,BEDDING & LINEN-MATERIALS,DISCOUNT STORES
16 Apr 2015,WWW.CARTRIDGESAVE.CO.U,CHILDRENS SERVICES,CENTRAL SUPPORT,114.01,STATIONERY & GENERAL SUPPLIES-OFFICE EXP,"OFFICE, SCHOOL SUPPLY, AND STATIONERY STORES"
16 Apr 2015,CROSS COUNTRY,RESOURCES,LEARNING & MANAGEMENT DEVELOPMENT,32.60,OFFICER/STAFF-PUBLIC TRANSPORT,PASSENGER RAILWAYS
16 Apr 2015,CO-OP GROUP 070342,CHILDRENS SERVICES,"43A HILTON ROAD, WILLENHALL",14.45,FOOD AND BEVERAGES-PROVISIONS,GROCERY STORES AND SUPERMARKETS
16 Apr 2015,ASDA SUPERSTORE,CHILDRENS SERVICES,MARY ELLIOTT SPECIAL SCHOOL,5.20,BREAD-GENERAL-PROVISIONS,GROCERY STORES AND SUPERMARKETS
16 Apr 2015,WM MORRISON 063,CHILDRENS SERVICES,REDRUTH ROAD,6.00,GENERAL PROVISIONS-PROVISIONS,GROCERY STORES AND SUPERMARKETS
16 Apr 2015,WM MORRISON 063,CHILDRENS SERVICES,REDRUTH ROAD,49.74,GENERAL PROVISIONS-PROVISIONS,GROCERY STORES AND SUPERMARKETS
16 Apr 2015,BOC TEL ORDER,ECONOMY & ENVIRONMENT,WALSALL TOWN HALL,5.70,CHEMICALS & SCIENTIFIC MATS-MATERIALS,OTHER CHEMICALS AND ALLIED PRODUCTS
16 Apr 2015,BOC TEL ORDER,ECONOMY & ENVIRONMENT,DARLASTON TOWN HALL,9.24,CHEMICALS & SCIENTIFIC MATS-MATERIALS,OTHER CHEMICALS AND ALLIED PRODUCTS
16 Apr 2015,MCA WALES &WESTERN REG,ECONOMY & ENVIRONMENT,WALSALL OUTDOOR ADVENTURE CENTRE,470.00,GENERAL MATERIALS,GOVERNMENT SERVICES
16 Apr 2015,EC PITCHER LTD,ECONOMY & ENVIRONMENT,POOLFITTERS,60.60,"CROCKERY,HARDWARE & DISPOSABLES-MATERIALS",HARDWARE STORES
16 Apr 2015,EC PITCHER LTD,ECONOMY & ENVIRONMENT,DARLASTON TOWN HALL,14.11,"CROCKERY,HARDWARE & DISPOSABLES-MATERIALS",HARDWARE STORES
16 Apr 2015,EC PITCHER LTD,ECONOMY & ENVIRONMENT,DARLASTON LEISURE CENTRE,29.84,"CROCKERY,HARDWARE & DISPOSABLES-MATERIALS",HARDWARE STORES
16 Apr 2015,TOOLSTATION LTD,ECONOMY & ENVIRONMENT,COMMUNITY LIAISON,27.52,"REPAIRS,ALTERATIONS & MAINTENANCE-PREM",HARDWARE STORES
16 Apr 2015,IKEA,CHILDRENS SERVICES,"43A HILTON ROAD, WILLENHALL",180.00,FURNITURE & EQUIPMENT,MISCELLANEOUS HOUSE FURNISHING SPECIALTY SHOPS
16 Apr 2015,IKEA,CHILDRENS SERVICES,"43A HILTON ROAD, WILLENHALL",184.00,FURNITURE & EQUIPMENT,MISCELLANEOUS HOUSE FURNISHING SPECIALTY SHOPS
16 Apr 2015,MAPLIN CANNOCK WS11,ECONOMY & ENVIRONMENT,COMMUNITY LIAISON,17.98,FURNITURE & EQUIPMENT,ELECTRONIC SALES
16 Apr 2015,B & Q,ECONOMY & ENVIRONMENT,ARBORETUM,136.31,GENERAL MATERIALS,LUMBER & BUILDING MATERIALS STORES
16 Apr 2015,THE CARPET MAN,RESOURCES,WALSALL CRISIS SUPPORT SCHEME,354.00,CRISIS SUPPORT PAYMENTS,FLOOR COVERING STORES
16 Apr 2015,BORSHCH LIMITED,RESOURCES,WALSALL CRISIS SUPPORT SCHEME,-270.00,CRISIS SUPPORT PAYMENTS,ELECTRONIC SALES
16 Apr 2015,TESCO STORES 6161,RESOURCES,WALSALL CRISIS SUPPORT SCHEME,1.50,CRISIS SUPPORT PAYMENTS,GROCERY STORES AND SUPERMARKETS
16 Apr 2015,WWW.GIROFOOD.COM,ECONOMY & ENVIRONMENT,CA BROWNHILLS WEST PRIMARY SCHOOL,61.73,DISPOSABLES-PROVISIONS,WHOLESALE CLUBS
16 Apr 2015,WWW.GIROFOOD.COM,ECONOMY & ENVIRONMENT,CA LEIGHSWOOD PRIMARY SCHOOL,66.13,DISPOSABLES-PROVISIONS,WHOLESALE CLUBS
16 Apr 2015,WWW.GIROFOOD.COM,ECONOMY & ENVIRONMENT,CA BARCROFT D/C,61.22,DISPOSABLES-PROVISIONS,WHOLESALE CLUBS
16 Apr 2015,WWW.GIROFOOD.COM,ECONOMY & ENVIRONMENT,CA ST JOHNS C.E. PRIMARY SCHOOL,85.18,DISPOSABLES-PROVISIONS,WHOLESALE CLUBS
16 Apr 2015,WWW.GIROFOOD.COM,ECONOMY & ENVIRONMENT,CA FIBBERSLEY PARK PRIMARY SCHOOL,71.42,DISPOSABLES-PROVISIONS,WHOLESALE CLUBS
16 Apr 2015,WWW.GIROFOOD.COM,ECONOMY & ENVIRONMENT,CA BIRCHILLS CE PRIMARY COMMUNITY SCHOOL,49.50,DISPOSABLES-PROVISIONS,WHOLESALE CLUBS
16 Apr 2015,ARTHUR BRETT CATER,ECONOMY & ENVIRONMENT,CA MOORCROFT WOOD,13.85,FRUIT & VEGETABLES OTHER-PROVISIONS,MISCELLANEOUS FOOD STORES & CONVENIENCE STORES
16 Apr 2015,ARTHUR BRETT CATER,ECONOMY & ENVIRONMENT,CA BUSILL JONES PRIMARY SCHOOL,149.33,FRUIT & VEGETABLES OTHER-PROVISIONS,MISCELLANEOUS FOOD STORES & CONVENIENCE STORES
16 Apr 2015,OFFICE DEPOT,RESOURCES,ELECTORAL SERVICES,82.81,STATIONERY & GENERAL SUPPLIES-OFFICE EXP,"STATIONERY, OFFICE SUPPLIES AND WRITING PAPER"
16 Apr 2015,ARTHUR BRETT CATER,ECONOMY & ENVIRONMENT,CA BEACON PRIMARY SCHOOL,21.85,FRUIT & VEGETABLES OTHER-PROVISIONS,MISCELLANEOUS FOOD STORES & CONVENIENCE STORES
16 Apr 2015,ARTHUR BRETT CATER,ECONOMY & ENVIRONMENT,CA NEW INVENTION INFANT,106.88,FRUIT & VEGETABLES OTHER-PROVISIONS,MISCELLANEOUS FOOD STORES & CONVENIENCE STORES
16 Apr 2015,OFFICE DEPOT,SOCIAL CARE & INCLUSION,RESPONSE SERVICES,180.46,STATIONERY & GENERAL SUPPLIES-OFFICE EXP,"STATIONERY, OFFICE SUPPLIES AND WRITING PAPER"
16 Apr 2015,OFFICE DEPOT,CHILDRENS SERVICES,CENTRAL SUPPORT,134.33,STATIONERY & GENERAL SUPPLIES-OFFICE EXP,"STATIONERY, OFFICE SUPPLIES AND WRITING PAPER"
16 Apr 2015,OFFICE DEPOT,CHILDRENS SERVICES,SAFEGUARDING & FAMILY SUPPORT,131.95,STATIONERY & GENERAL SUPPLIES-OFFICE EXP,"STATIONERY, OFFICE SUPPLIES AND WRITING PAPER"
16 Apr 2015,OFFICE DEPOT,CHILDRENS SERVICES,"CLUSTER 1 BROWNHILLS,GREENFIELDS,PELSALL",71.86,STATIONERY & GENERAL SUPPLIES-OFFICE EXP,"STATIONERY, OFFICE SUPPLIES AND WRITING PAPER"
17 Apr 2015,TVLICENSING.CO.UK,CHILDRENS SERVICES,CLUSTER 4 ALUMWELL & BIRCHILLS,145.50,OTHER FEES & LICENCES-SERVICES-FEES,"CONSULTING, MANAGEMENT, AND PR SERVICES"
17 Apr 2015,WIX.COM,CHILDRENS SERVICES,EDUCATION BUSINESS PARTNERSHIP (EBP),3.00,SOFTWARE ACQ-COMPUTER,DIRECT MARKETING CONTINUITY SUBSCRIPTION MERCHANTS
17 Apr 2015,SMYTHS TOYS UK LTD,RESOURCES,LINK SERVICE,24.99,TOYS & GAMES-MATERIALS,"GAME, TOY, AND HOBBY SHOPS"
17 Apr 2015,ASDA STORES LTD 4225,RESOURCES,LINK SERVICE,34.00,FOOD AND BEVERAGES-PROVISIONS,GROCERY STORES AND SUPERMARKETS
17 Apr 2015,"AMAZON SVCS EUROPE,SAR",CHILDRENS SERVICES,ADMINISTRATIVE SUPPLIES,12.86,STATIONERY & GENERAL SUPPLIES-OFFICE EXP,BOOK STORES
17 Apr 2015,NOBISCO LTD,ECONOMY & ENVIRONMENT,LIBRARY OPERATIONS CENTRAL,343.92,PAYMENT TO CONTRACTOR EXTERNAL-CLEANING,"CLEANING AND MAINTENANCE, JANITORIAL SERVICES"
17 Apr 2015,B R E LTD,ECONOMY & ENVIRONMENT,DEVELOPMENT MANAGEMENT,66.00,GENERAL MATERIALS,BOOK STORES
17 Apr 2015,RUSHALL PROTECTIVE CLO,SOCIAL CARE & INCLUSION,EMPLOYMENT LINKS TO WORK,42.00,GENERAL MATERIALS,"MEN'S, WOMEN'S, AND CHILDREN'S UNIFORMS"
17 Apr 2015,WM MORRISON 063,CHILDRENS SERVICES,REDRUTH ROAD,3.85,GENERAL PROVISIONS-PROVISIONS,GROCERY STORES AND SUPERMARKETS
17 Apr 2015,HMCOURTS-SERVICE.G,SOCIAL CARE & INCLUSION,MENTAL HEALTH MANAGEMENT TEAM,20.00,MISC FEES AND EXPENSES,FINES
17 Apr 2015,HMCOURTS-SERVICE.G,SOCIAL CARE & INCLUSION,MENTAL HEALTH MANAGEMENT TEAM,20.00,MISC FEES AND EXPENSES,FINES
17 Apr 2015,AMAZON UK RETAIL,CHILDRENS SERVICES,ICT LEARNING RESOURCES,57.50,GENERAL MATERIALS,OTHER DIRECT MARKETING-OTHER DIRECT MARKETERS
17 Apr 2015,ASDA SUPERSTORE,CHILDRENS SERVICES,ADOPTION TEAM,5.00,FOOD AND BEVERAGES-PROVISIONS,GROCERY STORES AND SUPERMARKETS
17 Apr 2015,ASDA SUPERSTORE,CHILDRENS SERVICES,ADOPTION TEAM,12.40,FOOD AND BEVERAGES-PROVISIONS,GROCERY STORES AND SUPERMARKETS
17 Apr 2015,WIZZ AIR HUN920WZZT66Q5P,CHILDRENS SERVICES,SAFEGUARDING & FAMILY SUPPORT,423.96,OTHER-TRAVEL ALLOWANCES,AIRLINES AND AIR CARRIERS
17 Apr 2015,ASDA HOME SHOPPING,ECONOMY & ENVIRONMENT,VP SCL VOCATIONAL & SUPPORTED LEARNING,5.00,CATERING,GROCERY STORES AND SUPERMARKETS
17 Apr 2015,ASDA HOME SHOPPING,ECONOMY & ENVIRONMENT,VP SCL VOCATIONAL & SUPPORTED LEARNING,276.62,CATERING,GROCERY STORES AND SUPERMARKETS
17 Apr 2015,ASDA HOME SHOPPING,ECONOMY & ENVIRONMENT,VP SCL VOCATIONAL & SUPPORTED LEARNING,41.58,CATERING,GROCERY STORES AND SUPERMARKETS
17 Apr 2015,TESCO STORES 6161,CHILDRENS SERVICES,57 LICHFIELD ROAD,9.50,EQUIP NEW-CLEANING,GROCERY STORES AND SUPERMARKETS
17 Apr 2015,TESCO STORES 6161,CHILDRENS SERVICES,57 LICHFIELD ROAD,1.29,GENERAL PROVISIONS-PROVISIONS,GROCERY STORES AND SUPERMARKETS
17 Apr 2015,TESCO STORES 6161,CHILDRENS SERVICES,57 LICHFIELD ROAD,11.42,GENERAL PROVISIONS-PROVISIONS,GROCERY STORES AND SUPERMARKETS
17 Apr 2015,LYCO DIRECT LTD,ECONOMY & ENVIRONMENT,NAG - TEMPORARY EXHIBITIONS,69.18,GENERAL MATERIALS,HOUSEHOLD APPLIANCE STORES
17 Apr 2015,AMAZON UK RETAIL,ECONOMY & ENVIRONMENT,AP FINANCE & RESOURCES IT,144.30,GENERAL MATERIALS,OTHER DIRECT MARKETING-OTHER DIRECT MARKETERS
17 Apr 2015,AMAZON UK MARKETPLACE,ECONOMY & ENVIRONMENT,AP FINANCE & RESOURCES IT,108.40,MISCELLANEOUS SUPPLIES,MISCELLANEOUS AND SPECIALTY RETAIL STORES
17 Apr 2015,EC PITCHER LTD,ECONOMY & ENVIRONMENT,INFRASTRUCTURE MAINTENANCE,5.00,GENERAL MATERIALS,HARDWARE STORES
17 Apr 2015,99P STORES,CHILDRENS SERVICES,LOOKED AFTER CHILDRENS SOCIAL WORK TEAM,3.96,TRANSFER PAYMENTS - SOCIAL SERVICES CLIENTS,GROCERY STORES AND SUPERMARKETS
17 Apr 2015,WM MORRISON FOOD.COM,CHILDRENS SERVICES,BLUEBELLS,11.04,GENERAL PROVISIONS-PROVISIONS,GROCERY STORES AND SUPERMARKETS
17 Apr 2015,WM MORRISON FOOD.COM,CHILDRENS SERVICES,BLUEBELLS,104.49,GENERAL PROVISIONS-PROVISIONS,GROCERY STORES AND SUPERMARKETS
17 Apr 2015,HALFORDS 0870,CHILDRENS SERVICES,57 LICHFIELD ROAD,114.95,RESIDENTS PERSONAL EXPENSES-ALLOWANCES TO S/S CLIENTS,BICYCLE SHOPS-SALES AND SERVICE
17 Apr 2015,ARGOS LTD,CHILDRENS SERVICES,SPINDLETREE,34.18,RESIDENTS PERSONAL EXPENSES-ALLOWANCES TO S/S CLIENTS,DISCOUNT STORES
17 Apr 2015,XEROX UK LTD,CHILDRENS SERVICES,CLUSTER 4 ALUMWELL & BIRCHILLS,90.61,SERVICE AGREEMENTS-SERVICES,"OFFICE SUPPLIES, PHOTOGRAPHIC, PHOTOCOPY EQUIPMENT"
17 Apr 2015,OYSTER COMMUNICATIONS,CHILDRENS SERVICES,CLUSTER 4 ALUMWELL & BIRCHILLS,79.20,RIBBONS & CONSUMABLES-COMPUTER,PROFESSIONAL SERVICES
17 Apr 2015,SPA ENVIRONMENTAL CARE,CHILDRENS SERVICES,PELSALL EDC,432.00,"REPAIRS,ALTERATIONS & MAINTENANCE-PREM",HORTICULTURAL AND LANDSCAPING SERVICES
17 Apr 2015,SPA ENVIRONMENTAL CARE,CHILDRENS SERVICES,PELSALL EDC,14.26,"REPAIRS,ALTERATIONS & MAINTENANCE-PREM",HORTICULTURAL AND LANDSCAPING SERVICES
17 Apr 2015,COLLINS DEBDEN LTD,CHILDRENS SERVICES,SCHOOL IMPROVEMENT,126.35,STATIONERY & GENERAL SUPPLIES-OFFICE EXP,"OFFICE, SCHOOL SUPPLY, AND STATIONERY STORES"
17 Apr 2015,WWW.EPLANBOOKS.COM,CHILDRENS SERVICES,ACCESS TEAM,16.80,LIBRARY BOOKS,BOOK STORES
17 Apr 2015,WWW.TTS-GROUPS.CO.UK,CHILDRENS SERVICES,PUPIL REFERAL UNIT EXCLUSIONS,176.48,STATIONERY & GENERAL SUPPLIES-OFFICE EXP,"OFFICE, SCHOOL SUPPLY, AND STATIONERY STORES"
17 Apr 2015,EB *FUTURE FOOD NEW LO,CHILDRENS SERVICES,SHEPWELL GREEN PUPIL REFERRAL UNIT,180.00,EXTERNAL TRAINING-OTHER,OTHER BUSINESS SERVICES
17 Apr 2015,"AMAZON SVCS EUROPE,SAR",CHILDRENS SERVICES,ADMINISTRATIVE SUPPLIES,4.20,GENERAL MATERIALS,BOOK STORES
17 Apr 2015,AMAZON UK RETAIL,CHILDRENS SERVICES,MEDIA,38.90,GENERAL MATERIALS,OTHER DIRECT MARKETING-OTHER DIRECT MARKETERS
17 Apr 2015,TRAVEL WEST MIDLAN,RESOURCES,WALSALL CRISIS SUPPORT SCHEME,12.50,CRISIS SUPPORT PAYMENTS,BUS LINES
17 Apr 2015,WWW.GIROFOOD.COM,ECONOMY & ENVIRONMENT,CA NEW INVENTION INFANT,36.72,DISPOSABLES-PROVISIONS,WHOLESALE CLUBS
17 Apr 2015,WWW.GIROFOOD.COM,ECONOMY & ENVIRONMENT,CA BEACON PRIMARY SCHOOL,209.36,DISPOSABLES-PROVISIONS,WHOLESALE CLUBS
17 Apr 2015,WWW.GIROFOOD.COM,ECONOMY & ENVIRONMENT,CA BLUE COAT C OF E PERFORMING ARTS COLLEGE,151.73,DISPOSABLES-PROVISIONS,WHOLESALE CLUBS
17 Apr 2015,OFFICE DEPOT,CHILDRENS SERVICES,CLUSTER 5 DARLASTON,127.57,STATIONERY & GENERAL SUPPLIES-OFFICE EXP,"STATIONERY, OFFICE SUPPLIES AND WRITING PAPER"
17 Apr 2015,OFFICE DEPOT,RESOURCES,PRINTING SERVICES,25.73,STATIONERY & GENERAL SUPPLIES-OFFICE EXP,"STATIONERY, OFFICE SUPPLIES AND WRITING PAPER"
17 Apr 2015,OFFICE DEPOT,RESOURCES,PRINT STORES,840.00,STATIONERY & GENERAL SUPPLIES-OFFICE EXP,"STATIONERY, OFFICE SUPPLIES AND WRITING PAPER"
17 Apr 2015,OFFICE DEPOT,CHILDRENS SERVICES,CHILD PROTECTION & REVIEW SERVICES,32.47,STATIONERY & GENERAL SUPPLIES-OFFICE EXP,"STATIONERY, OFFICE SUPPLIES AND WRITING PAPER"
17 Apr 2015,ARTHUR BRETT CATER,ECONOMY & ENVIRONMENT,CA CALDMORE COMMUNITY PRIMARY SCHOOL,85.22,FRUIT & VEGETABLES OTHER-PROVISIONS,MISCELLANEOUS FOOD STORES & CONVENIENCE STORES
17 Apr 2015,OFFICE DEPOT,CHILDRENS SERVICES,SCHOOL IMPROVEMENT,60.14,STATIONERY & GENERAL SUPPLIES-OFFICE EXP,"STATIONERY, OFFICE SUPPLIES AND WRITING PAPER"
17 Apr 2015,OFFICE DEPOT,CHILDRENS SERVICES,SCHOOL IMPROVEMENT,2.72,STATIONERY & GENERAL SUPPLIES-OFFICE EXP,"STATIONERY, OFFICE SUPPLIES AND WRITING PAPER"
17 Apr 2015,OFFICE DEPOT,RESOURCES,TENANCY SERVICE,23.50,STATIONERY & GENERAL SUPPLIES-OFFICE EXP,"STATIONERY, OFFICE SUPPLIES AND WRITING PAPER"
17 Apr 2015,OFFICE DEPOT,ECONOMY & ENVIRONMENT,DIRECTORATE SUPPORT,40.26,STATIONERY & GENERAL SUPPLIES-OFFICE EXP,"STATIONERY, OFFICE SUPPLIES AND WRITING PAPER"
17 Apr 2015,OFFICE DEPOT,ECONOMY & ENVIRONMENT,PUBLIC HEALTH BUSINESS SUPPORT,40.26,GENERAL MATERIALS,"STATIONERY, OFFICE SUPPLIES AND WRITING PAPER"
17 Apr 2015,OFFICE DEPOT,ECONOMY & ENVIRONMENT,CA CENTRAL SUPPORT SERVICES,37.51,STATIONERY & GENERAL SUPPLIES-OFFICE EXP,"STATIONERY, OFFICE SUPPLIES AND WRITING PAPER"
17 Apr 2015,ARTHUR BRETT CATER,ECONOMY & ENVIRONMENT,CA BARCROFT D/C,25.20,FRUIT & VEGETABLES OTHER-PROVISIONS,MISCELLANEOUS FOOD STORES & CONVENIENCE STORES
17 Apr 2015,ARTHUR BRETT CATER,ECONOMY & ENVIRONMENT,TOWN HALL RESTAURANT BISTRO,31.04,FRUIT & VEGETABLES OTHER-PROVISIONS,MISCELLANEOUS FOOD STORES & CONVENIENCE STORES
17 Apr 2015,OFFICE DEPOT,RESOURCES,ELECTORAL SERVICES,118.78,STATIONERY & GENERAL SUPPLIES-OFFICE EXP,"STATIONERY, OFFICE SUPPLIES AND WRITING PAPER"
17 Apr 2015,ARTHUR BRETT CATER,ECONOMY & ENVIRONMENT,CA LEIGHSWOOD PRIMARY SCHOOL,86.44,FRUIT & VEGETABLES OTHER-PROVISIONS,MISCELLANEOUS FOOD STORES & CONVENIENCE STORES
17 Apr 2015,ARTHUR BRETT CATER,ECONOMY & ENVIRONMENT,CA COOPER JORDAN CE PRIMARY SCHOOL,167.05,FRUIT & VEGETABLES OTHER-PROVISIONS,MISCELLANEOUS FOOD STORES & CONVENIENCE STORES
18 Apr 2015,IKEA,CHILDRENS SERVICES,ELMWOOD SECONDARY SPECIAL SCHOOL,13.50,FURNITURE & EQUIPMENT,MISCELLANEOUS HOUSE FURNISHING SPECIALTY SHOPS
18 Apr 2015,MIDLAND CHANDLERS,ECONOMY & ENVIRONMENT,WALSALL OUTDOOR ADVENTURE CENTRE,21.33,GENERAL MATERIALS,BOAT DEALERS
18 Apr 2015,MIDLAND CHANDLERS,ECONOMY & ENVIRONMENT,WALSALL OUTDOOR ADVENTURE CENTRE,-25.48,GENERAL MATERIALS,BOAT DEALERS
18 Apr 2015,MAUDESPORT LTD,ECONOMY & ENVIRONMENT,WALSALL GALA CENTRE,78.34,GENERAL MATERIALS,SPORTING GOODS STORES
18 Apr 2015,"AMAZON SVCS EUROPE,SAR",CHILDRENS SERVICES,GENERAL RESOURCES & MISC,7.82,GENERAL MATERIALS,BOOK STORES
18 Apr 2015,SAINSBURYS S/MKT,CHILDRENS SERVICES,FOOD TECHNOLOGY/HOSPITALITY,3.30,GENERAL MATERIALS,GROCERY STORES AND SUPERMARKETS
18 Apr 2015,AMAZON PRIME,CHILDRENS SERVICES,BLUEBELLS,79.00,FURNITURE & EQUIPMENT,DIRECT MARKETING CONTINUITY SUBSCRIPTION MERCHANTS
18 Apr 2015,AMAZON UK RETAIL,CHILDRENS SERVICES,"CLUSTER 1 BROWNHILLS,GREENFIELDS,PELSALL",16.94,INTERNAL TRAINING,OTHER DIRECT MARKETING-OTHER DIRECT MARKETERS
18 Apr 2015,OFFICE DEPOT,ECONOMY & ENVIRONMENT,RESOURCE MANAGEMENT,19.50,STATIONERY & GENERAL SUPPLIES-OFFICE EXP,"STATIONERY, OFFICE SUPPLIES AND WRITING PAPER"
18 Apr 2015,OFFICE DEPOT,CHILDRENS SERVICES,VIRTUAL SCHOOL,77.75,STATIONERY & GENERAL SUPPLIES-OFFICE EXP,"STATIONERY, OFFICE SUPPLIES AND WRITING PAPER"
18 Apr 2015,OFFICE DEPOT,CHILDRENS SERVICES,FAMILY PLACEMENTS,81.68,STATIONERY & GENERAL SUPPLIES-OFFICE EXP,"STATIONERY, OFFICE SUPPLIES AND WRITING PAPER"
18 Apr 2015,OFFICE DEPOT,ECONOMY & ENVIRONMENT,CENTRALISED STATIONERY,237.55,STATIONERY & GENERAL SUPPLIES-OFFICE EXP,"STATIONERY, OFFICE SUPPLIES AND WRITING PAPER"
19 Apr 2015,ASDA SUPERSTORE,CHILDRENS SERVICES,REDRUTH ROAD,61.00,RESIDENTS PERSONAL EXPENSES-ALLOWANCES TO S/S CLIENTS,GROCERY STORES AND SUPERMARKETS
19 Apr 2015,TESCO STORE 3351,ECONOMY & ENVIRONMENT,REGISTRAR,2.50,FOOD AND BEVERAGES-PROVISIONS,GROCERY STORES AND SUPERMARKETS
19 Apr 2015,TESCO STORE 3351,ECONOMY & ENVIRONMENT,REGISTRAR,4.75,FOOD AND BEVERAGES-PROVISIONS,GROCERY STORES AND SUPERMARKETS
19 Apr 2015,AMAZON UK RETAIL,CHILDRENS SERVICES,MEDIA,19.45,GENERAL MATERIALS,OTHER DIRECT MARKETING-OTHER DIRECT MARKETERS
20 Apr 2015,PEARSON ED LTD,CHILDRENS SERVICES,EDUCATIONAL PSYCHOLOGISTS,70.20,GENERAL MATERIALS,OTHER SCHOOLS AND EDUCATIONAL SERVICES
20 Apr 2015,PEARSON ED LTD,CHILDRENS SERVICES,EDUCATIONAL PSYCHOLOGISTS,4.50,POSTAGES AND COURIER SERVICES,OTHER SCHOOLS AND EDUCATIONAL SERVICES
20 Apr 2015,WM MORRISON FOOD.COM,CHILDRENS SERVICES,CLUSTER 5 DARLASTON,25.98,GENERAL PROVISIONS-PROVISIONS,GROCERY STORES AND SUPERMARKETS
20 Apr 2015,WM MORRISON FOOD.COM,CHILDRENS SERVICES,CLUSTER 5 DARLASTON,60.78,FOOD AND BEVERAGES-PROVISIONS,GROCERY STORES AND SUPERMARKETS
20 Apr 2015,WM MORRISON FOOD.COM,CHILDRENS SERVICES,"CLUSTER 3 BLOXWICH,BLAKENALL,HATHERTON,E STAMMERS",11.46,FOOD AND BEVERAGES-PROVISIONS,GROCERY STORES AND SUPERMARKETS
20 Apr 2015,WM MORRISON FOOD.COM,CHILDRENS SERVICES,"CLUSTER 3 BLOXWICH,BLAKENALL,HATHERTON,E STAMMERS",43.12,FOOD AND BEVERAGES-PROVISIONS,GROCERY STORES AND SUPERMARKETS
20 Apr 2015,TRAINLINE.COM,CHILDRENS SERVICES,EDUCATIONAL PSYCHOLOGISTS,175.95,OFFICER/STAFF-PUBLIC TRANSPORT,PASSENGER RAILWAYS
20 Apr 2015,ASDA HOME SHOPPING,CHILDRENS SERVICES,"CLUSTER 1 BROWNHILLS,GREENFIELDS,PELSALL",10.07,FOOD AND BEVERAGES-PROVISIONS,GROCERY STORES AND SUPERMARKETS
20 Apr 2015,ASDA HOME SHOPPING,CHILDRENS SERVICES,"CLUSTER 1 BROWNHILLS,GREENFIELDS,PELSALL",32.97,FOOD AND BEVERAGES-PROVISIONS,GROCERY STORES AND SUPERMARKETS
20 Apr 2015,CO-OPERATIVE FOOD,CHILDRENS SERVICES,"CLUSTER 1 BROWNHILLS,GREENFIELDS,PELSALL",2.89,FOOD AND BEVERAGES-PROVISIONS,GROCERY STORES AND SUPERMARKETS
20 Apr 2015,W M MORRISON PLC,CHILDRENS SERVICES,"43A HILTON ROAD, WILLENHALL",3.96,EQUIP NEW-CLEANING,GROCERY STORES AND SUPERMARKETS
20 Apr 2015,W M MORRISON PLC,CHILDRENS SERVICES,"43A HILTON ROAD, WILLENHALL",15.15,GENERAL PROVISIONS-PROVISIONS,GROCERY STORES AND SUPERMARKETS
20 Apr 2015,W M MORRISON PLC,CHILDRENS SERVICES,"43A HILTON ROAD, WILLENHALL",35.84,GENERAL PROVISIONS-PROVISIONS,GROCERY STORES AND SUPERMARKETS
20 Apr 2015,W M MORRISON PLC,CHILDRENS SERVICES,"43A HILTON ROAD, WILLENHALL",41.29,GENERAL PROVISIONS-PROVISIONS,GROCERY STORES AND SUPERMARKETS
20 Apr 2015,DUNELM (SOFT FURNISHIN,CHILDRENS SERVICES,"43A HILTON ROAD, WILLENHALL",31.48,RESIDENTS PERSONAL EXPENSES-ALLOWANCES TO S/S CLIENTS,"DRAPERY, UPHOLSTERY, AND WINDOW COVERINGS STORES"
20 Apr 2015,B&M RETAIL LTD,CHILDRENS SERVICES,"43A HILTON ROAD, WILLENHALL",62.41,RESIDENTS PERSONAL EXPENSES-ALLOWANCES TO S/S CLIENTS,DISCOUNT STORES
20 Apr 2015,ALLPAY.NET VISA AND MAST,RESOURCES,ACCOMMODATION SERVICES MANAGEMENT,20.00,RENTS,REAL ESTATE MANAGERS - RENTALS
20 Apr 2015,WM MORRISON FOOD.COM,CHILDRENS SERVICES,"CLUSTER 6 BENTLEY,LIGHTHOUSE,FIBBERSLEY",37.44,FOOD AND BEVERAGES-PROVISIONS,GROCERY STORES AND SUPERMARKETS
20 Apr 2015,WM MORRISON FOOD.COM,CHILDRENS SERVICES,"CLUSTER 6 BENTLEY,LIGHTHOUSE,FIBBERSLEY",74.08,FOOD AND BEVERAGES-PROVISIONS,GROCERY STORES AND SUPERMARKETS
20 Apr 2015,DULUX DECORATOR CENTRE,ECONOMY & ENVIRONMENT,NAG - TEMPORARY EXHIBITIONS,193.33,LOOSE TOOLS & CONSUMABLES,"PAINTS, VARNISHES, AND SUPPLIES"
20 Apr 2015,ASDA HOME SHOPPING,CHILDRENS SERVICES,STANLEYS NURSERY,67.16,FOOD AND BEVERAGES-PROVISIONS,GROCERY STORES AND SUPERMARKETS
20 Apr 2015,ASDA HOME SHOPPING,CHILDRENS SERVICES,ALUMWELL CHILDRENS CENTRE,19.60,FOOD AND BEVERAGES-PROVISIONS,GROCERY STORES AND SUPERMARKETS
20 Apr 2015,ASDA HOME SHOPPING,CHILDRENS SERVICES,STANLEYS NURSERY,5.92,GENERAL MATERIALS,GROCERY STORES AND SUPERMARKETS
20 Apr 2015,ASDA HOME SHOPPING,CHILDRENS SERVICES,BIRCHILLS CHILDREN CENTRE - PREMISES,8.16,FOOD AND BEVERAGES-PROVISIONS,GROCERY STORES AND SUPERMARKETS
20 Apr 2015,ASDA HOME SHOPPING,CHILDRENS SERVICES,STANLEYS NURSERY,8.06,FOOD AND BEVERAGES-PROVISIONS,GROCERY STORES AND SUPERMARKETS
20 Apr 2015,ASDA HOME SHOPPING,CHILDRENS SERVICES,STANLEYS NURSERY,3.08,GENERAL MATERIALS,GROCERY STORES AND SUPERMARKETS
20 Apr 2015,ASDA HOME SHOPPING,CHILDRENS SERVICES,STANLEYS NURSERY,4.00,CLEANING MATERIALS,GROCERY STORES AND SUPERMARKETS
20 Apr 2015,ASDA HOME SHOPPING,CHILDRENS SERVICES,BIRCHILLS CHILDREN CENTRE - PREMISES,1.58,FOOD AND BEVERAGES-PROVISIONS,GROCERY STORES AND SUPERMARKETS
20 Apr 2015,ASDA HOME SHOPPING,CHILDRENS SERVICES,ALUMWELL CHILDRENS CENTRE,4.00,GENERAL MATERIALS,GROCERY STORES AND SUPERMARKETS
20 Apr 2015,ASDA HOME SHOPPING,CHILDRENS SERVICES,ALUMWELL CHILDRENS CENTRE,0.34,FOOD AND BEVERAGES-PROVISIONS,GROCERY STORES AND SUPERMARKETS
20 Apr 2015,ASDA HOME SHOPPING,CHILDRENS SERVICES,ALUMWELL CHILDRENS CENTRE,25.43,FOOD AND BEVERAGES-PROVISIONS,GROCERY STORES AND SUPERMARKETS
20 Apr 2015,ASDA HOME SHOPPING,CHILDRENS SERVICES,ALUMWELL CHILDRENS CENTRE,4.00,FOOD AND BEVERAGES-PROVISIONS,GROCERY STORES AND SUPERMARKETS
20 Apr 2015,ASDA HOME SHOPPING,CHILDRENS SERVICES,ALUMWELL CHILDRENS CENTRE,1.15,GENERAL MATERIALS,GROCERY STORES AND SUPERMARKETS
20 Apr 2015,"AMAZON SVCS EUROPE,SAR",CHILDRENS SERVICES,HISTORY/GEOG/SOCIAL EDUC,34.16,GENERAL MATERIALS,BOOK STORES
20 Apr 2015,"AMAZON SVCS EUROPE,SAR",CHILDRENS SERVICES,GENERAL RESOURCES & MISC,1.10,GENERAL MATERIALS,BOOK STORES
20 Apr 2015,PARCELFORCE WORLDWIDE,CHILDRENS SERVICES,ADMINISTRATIVE SUPPLIES,85.78,GENERAL MATERIALS,MOTOR FREIGHT CARRIERS
20 Apr 2015,PARENTPAY.COM,CHILDRENS SERVICES,57 LICHFIELD ROAD,17.50,GENERAL PROVISIONS-PROVISIONS,"COLLEGES, UNIVERSITIES, PROFESSIONAL SCHOOLS"
20 Apr 2015,ASDA HOME SHOPPING,ECONOMY & ENVIRONMENT,VP SCL VOCATIONAL & SUPPORTED LEARNING,4.00,CATERING,GROCERY STORES AND SUPERMARKETS
20 Apr 2015,ASDA HOME SHOPPING,ECONOMY & ENVIRONMENT,VP SCL VOCATIONAL & SUPPORTED LEARNING,92.79,CATERING,GROCERY STORES AND SUPERMARKETS
20 Apr 2015,ASDA HOME SHOPPING,ECONOMY & ENVIRONMENT,VP SCL VOCATIONAL & SUPPORTED LEARNING,8.00,CATERING,GROCERY STORES AND SUPERMARKETS
20 Apr 2015,WWW.CARTRIDGESAVE.CO.U,CHILDRENS SERVICES,CENTRAL SUPPORT,18.71,STATIONERY & GENERAL SUPPLIES-OFFICE EXP,"OFFICE, SCHOOL SUPPLY, AND STATIONERY STORES"
20 Apr 2015,MNA LTD CARDCHARGE,ECONOMY & ENVIRONMENT,DEVELOPMENT MANAGEMENT,84.00,PERIODICALS/MAGAZINES/NEWSPAPERS-SUBSCRIPTIONS,NEWS DEALERS AND NEWSSTANDS
20 Apr 2015,POST OFFICE COUNTER,ECONOMY & ENVIRONMENT,FLEET,565.00,LICENCES-TRANSPORT RUN COSTS,POSTAL SERVICES - GOVERNMENT ONLY
20 Apr 2015,PRODUCT SUPPORT AG,CHILDRENS SERVICES,"43A HILTON ROAD, WILLENHALL",4.94,FURNITURE & EQUIPMENT,DIRECT MARKETING CONTINUITY SUBSCRIPTION MERCHANTS
20 Apr 2015,PRODUCT SUPPORT AG,CHILDRENS SERVICES,"43A HILTON ROAD, WILLENHALL",4.94,FURNITURE & EQUIPMENT,DIRECT MARKETING CONTINUITY SUBSCRIPTION MERCHANTS
20 Apr 2015,PRODUCT SUPPORT AG,CHILDRENS SERVICES,"43A HILTON ROAD, WILLENHALL",4.94,FURNITURE & EQUIPMENT,DIRECT MARKETING CONTINUITY SUBSCRIPTION MERCHANTS
20 Apr 2015,ASDA HOME SHOPPING,CHILDRENS SERVICES,"CLUSTER 1 BROWNHILLS,GREENFIELDS,PELSALL",10.31,FOOD AND BEVERAGES-PROVISIONS,GROCERY STORES AND SUPERMARKETS
20 Apr 2015,ASDA HOME SHOPPING,CHILDRENS SERVICES,"CLUSTER 1 BROWNHILLS,GREENFIELDS,PELSALL",64.73,FOOD AND BEVERAGES-PROVISIONS,GROCERY STORES AND SUPERMARKETS
20 Apr 2015,PRODUCT SUPPORT AG,CHILDRENS SERVICES,"43A HILTON ROAD, WILLENHALL",4.94,FURNITURE & EQUIPMENT,DIRECT MARKETING CONTINUITY SUBSCRIPTION MERCHANTS
20 Apr 2015,PRODUCT SUPPORT AG,CHILDRENS SERVICES,"43A HILTON ROAD, WILLENHALL",4.94,FURNITURE & EQUIPMENT,DIRECT MARKETING CONTINUITY SUBSCRIPTION MERCHANTS
20 Apr 2015,ASDA HOME SHOPPING,CHILDRENS SERVICES,"CLUSTER 3 BLOXWICH,BLAKENALL,HATHERTON,E STAMMERS",35.78,FOOD AND BEVERAGES-PROVISIONS,GROCERY STORES AND SUPERMARKETS
20 Apr 2015,ASDA HOME SHOPPING,CHILDRENS SERVICES,"CLUSTER 3 BLOXWICH,BLAKENALL,HATHERTON,E STAMMERS",11.30,FOOD AND BEVERAGES-PROVISIONS,GROCERY STORES AND SUPERMARKETS
20 Apr 2015,ASDA HOME SHOPPING,CHILDRENS SERVICES,"CLUSTER 3 BLOXWICH,BLAKENALL,HATHERTON,E STAMMERS",36.47,FOOD AND BEVERAGES-PROVISIONS,GROCERY STORES AND SUPERMARKETS
20 Apr 2015,ASDA HOME SHOPPING,CHILDRENS SERVICES,"CLUSTER 3 BLOXWICH,BLAKENALL,HATHERTON,E STAMMERS",22.00,FOOD AND BEVERAGES-PROVISIONS,GROCERY STORES AND SUPERMARKETS
20 Apr 2015,HOPWELLS LTD,CHILDRENS SERVICES,MARY ELLIOTT SPECIAL SCHOOL,230.26,BREAD-GENERAL-PROVISIONS,CATERERS
20 Apr 2015,WWW.HXPAYMENTS.COM,ECONOMY & ENVIRONMENT,NEW ART GALLERY - ADMIN,32.99,OFFICER/STAFF-PUBLIC TRANSPORT,TRAVEL AGENCIES AND TOUR OPERATORS
20 Apr 2015,PAYPAL,SOCIAL CARE & INCLUSION,EMPLOYMENT LINKS TO WORK,54.40,GENERAL MATERIALS,CAMERA AND PHOTOGRAPHIC SUPPLY STORES
20 Apr 2015,123-REG.CO.UK,ECONOMY & ENVIRONMENT,PLANNING POLICY,8.38,MISCELLANEOUS SUPPLIES,COMPUTER NETWORK/INFORMATION SERVICES
20 Apr 2015,POSTOFFICE SELFSERVICE,ECONOMY & ENVIRONMENT,FOREST ARTS CENTRE,31.85,GENERAL MATERIALS,POSTAL SERVICES - GOVERNMENT ONLY
20 Apr 2015,TESCO STORES 6161,ECONOMY & ENVIRONMENT,COMMUNITY LIAISON,27.00,FOOD AND BEVERAGES-PROVISIONS,GROCERY STORES AND SUPERMARKETS
20 Apr 2015,GREETINGS HOUSE LTD,ECONOMY & ENVIRONMENT,COMMUNITY LIAISON,19.04,MISCELLANEOUS SUPPLIES,MISCELLANEOUS AND SPECIALTY RETAIL STORES
20 Apr 2015,BORSHCH LIMITED,RESOURCES,WALSALL CRISIS SUPPORT SCHEME,325.00,CRISIS SUPPORT PAYMENTS,ELECTRONIC SALES
20 Apr 2015,BORSHCH LIMITED,RESOURCES,WALSALL CRISIS SUPPORT SCHEME,270.00,CRISIS SUPPORT PAYMENTS,ELECTRONIC SALES
20 Apr 2015,BORSHCH LIMITED,RESOURCES,WALSALL CRISIS SUPPORT SCHEME,325.00,CRISIS SUPPORT PAYMENTS,ELECTRONIC SALES
20 Apr 2015,BORSHCH LIMITED,RESOURCES,WALSALL CRISIS SUPPORT SCHEME,325.00,CRISIS SUPPORT PAYMENTS,ELECTRONIC SALES
20 Apr 2015,BORSHCH LIMITED,RESOURCES,WALSALL CRISIS SUPPORT SCHEME,195.00,CRISIS SUPPORT PAYMENTS,ELECTRONIC SALES
20 Apr 2015,BORSHCH LIMITED,RESOURCES,WALSALL CRISIS SUPPORT SCHEME,400.00,CRISIS SUPPORT PAYMENTS,ELECTRONIC SALES
20 Apr 2015,BORSHCH LIMITED,RESOURCES,WALSALL CRISIS SUPPORT SCHEME,195.00,CRISIS SUPPORT PAYMENTS,ELECTRONIC SALES
20 Apr 2015,BORSHCH LIMITED,RESOURCES,WALSALL CRISIS SUPPORT SCHEME,325.00,CRISIS SUPPORT PAYMENTS,ELECTRONIC SALES
20 Apr 2015,BORSHCH LIMITED,RESOURCES,WALSALL CRISIS SUPPORT SCHEME,140.00,CRISIS SUPPORT PAYMENTS,ELECTRONIC SALES
20 Apr 2015,WWW.GIROFOOD.COM,ECONOMY & ENVIRONMENT,CA JOSEPH LECKIE COMMUNITY TECHNOLOGY COLLEGE,8.63,DISPOSABLES-PROVISIONS,WHOLESALE CLUBS
20 Apr 2015,WWW.GIROFOOD.COM,ECONOMY & ENVIRONMENT,CA ELMORE GREEN PRIMARY SCHOOL,182.90,DISPOSABLES-PROVISIONS,WHOLESALE CLUBS
20 Apr 2015,WWW.GIROFOOD.COM,ECONOMY & ENVIRONMENT,CA CROFT COMMUNITY PRIMARY SCHOOL,119.41,DISPOSABLES-PROVISIONS,WHOLESALE CLUBS
20 Apr 2015,ARTHUR BRETT CATER,ECONOMY & ENVIRONMENT,CA MEADOW VIEW JMI PRIMARY SCHOOL,-1.72,FRUIT & VEGETABLES OTHER-PROVISIONS,MISCELLANEOUS FOOD STORES & CONVENIENCE STORES
20 Apr 2015,BLAKEMORE FOODSERVICE,ECONOMY & ENVIRONMENT,CA BUSILL JONES PRIMARY SCHOOL,122.99,FROZEN FOODS-PROVISIONS,CATERERS
20 Apr 2015,ARTHUR BRETT CATER,ECONOMY & ENVIRONMENT,CA BROWNHILLS WEST PRIMARY SCHOOL,112.63,FRUIT & VEGETABLES OTHER-PROVISIONS,MISCELLANEOUS FOOD STORES & CONVENIENCE STORES
20 Apr 2015,BLAKEMORE FOODSERVICE,ECONOMY & ENVIRONMENT,CA MOORCROFT WOOD,68.64,FROZEN FOODS-PROVISIONS,CATERERS
20 Apr 2015,BLAKEMORE FOODSERVICE,ECONOMY & ENVIRONMENT,CA TOWN HALL RESTAURANT - CATERING,332.46,DRY FOODS-PROVISIONS,CATERERS
20 Apr 2015,BLAKEMORE FOODSERVICE,ECONOMY & ENVIRONMENT,CA TOWN HALL RESTAURANT - CATERING,522.76,DRY FOODS-PROVISIONS,CATERERS
20 Apr 2015,WELSH BROS FOODS LTD,ECONOMY & ENVIRONMENT,CA TOWN HALL RESTAURANT - CATERING,117.37,MEAT-PROVISIONS,FREEZER AND LOCKER MEAT PROVISIONERS
20 Apr 2015,BLAKEMORE FOODSERVICE,ECONOMY & ENVIRONMENT,TOWN HALL RESTAURANT BISTRO,438.17,DRY FOODS-PROVISIONS,CATERERS
20 Apr 2015,ARTHUR BRETT CATER,ECONOMY & ENVIRONMENT,CA ST ANNES CATHOLIC PRIMARY SCHOOL,58.28,FRUIT & VEGETABLES OTHER-PROVISIONS,MISCELLANEOUS FOOD STORES & CONVENIENCE STORES
20 Apr 2015,WELSH BROS FOODS LTD,ECONOMY & ENVIRONMENT,CA JANE LANE SPECIAL SCHOOL,84.15,MEAT-PROVISIONS,FREEZER AND LOCKER MEAT PROVISIONERS
20 Apr 2015,BLAKEMORE FOODSERVICE,ECONOMY & ENVIRONMENT,CA JANE LANE SPECIAL SCHOOL,114.23,FROZEN FOODS-PROVISIONS,CATERERS
20 Apr 2015,BLAKEMORE FOODSERVICE,ECONOMY & ENVIRONMENT,CA JOSEPH LECKIE COMMUNITY TECHNOLOGY COLLEGE,308.12,FROZEN FOODS-PROVISIONS,CATERERS
20 Apr 2015,BLAKEMORE FOODSERVICE,ECONOMY & ENVIRONMENT,CA JOSEPH LECKIE COMMUNITY TECHNOLOGY COLLEGE,140.23,FROZEN FOODS-PROVISIONS,CATERERS
20 Apr 2015,BLAKEMORE FOODSERVICE,ECONOMY & ENVIRONMENT,CA RADLEYS PRIMARY SCHOOL,503.23,DRY FOODS-PROVISIONS,CATERERS
20 Apr 2015,BLAKEMORE FOODSERVICE,ECONOMY & ENVIRONMENT,CA RADLEYS PRIMARY SCHOOL,110.22,DRY FOODS-PROVISIONS,CATERERS
20 Apr 2015,WELSH BROS FOODS LTD,ECONOMY & ENVIRONMENT,CA RADLEYS PRIMARY SCHOOL,273.44,MEAT-PROVISIONS,FREEZER AND LOCKER MEAT PROVISIONERS
20 Apr 2015,BLAKEMORE FOODSERVICE,ECONOMY & ENVIRONMENT,CA RADLEYS PRIMARY SCHOOL,91.51,FROZEN FOODS-PROVISIONS,CATERERS
20 Apr 2015,ARTHUR BRETT CATER,ECONOMY & ENVIRONMENT,CA BLUE COAT C OF E PERFORMING ARTS COLLEGE,53.74,FRUIT & VEGETABLES OTHER-PROVISIONS,MISCELLANEOUS FOOD STORES & CONVENIENCE STORES
20 Apr 2015,BLAKEMORE FOODSERVICE,ECONOMY & ENVIRONMENT,CA CROFT COMMUNITY PRIMARY SCHOOL,89.22,FROZEN FOODS-PROVISIONS,CATERERS
20 Apr 2015,BLAKEMORE FOODSERVICE,ECONOMY & ENVIRONMENT,CA LEIGHSWOOD PRIMARY SCHOOL,46.01,FROZEN FOODS-PROVISIONS,CATERERS
20 Apr 2015,WELSH BROS FOODS LTD,ECONOMY & ENVIRONMENT,CA LEIGHSWOOD PRIMARY SCHOOL,68.79,MEAT-PROVISIONS,FREEZER AND LOCKER MEAT PROVISIONERS
20 Apr 2015,BLAKEMORE FOODSERVICE,ECONOMY & ENVIRONMENT,CA LEIGHSWOOD PRIMARY SCHOOL,5.10,DRY FOODS-PROVISIONS,CATERERS
20 Apr 2015,BLAKEMORE FOODSERVICE,ECONOMY & ENVIRONMENT,CA LEIGHSWOOD PRIMARY SCHOOL,507.41,DRY FOODS-PROVISIONS,CATERERS
20 Apr 2015,BLAKEMORE FOODSERVICE,ECONOMY & ENVIRONMENT,CA LEIGHSWOOD PRIMARY SCHOOL,122.16,DRY FOODS-PROVISIONS,CATERERS
20 Apr 2015,WELSH BROS FOODS LTD,ECONOMY & ENVIRONMENT,CA ELMORE GREEN PRIMARY SCHOOL,198.37,MEAT-PROVISIONS,FREEZER AND LOCKER MEAT PROVISIONERS
20 Apr 2015,WELSH BROS FOODS LTD,ECONOMY & ENVIRONMENT,CA ST MICHAELS C.E. PRIMARY SCHOOL,122.22,MEAT-PROVISIONS,FREEZER AND LOCKER MEAT PROVISIONERS
20 Apr 2015,BLAKEMORE FOODSERVICE,ECONOMY & ENVIRONMENT,CA ST MICHAELS C.E. PRIMARY SCHOOL,145.16,DRY FOODS-PROVISIONS,CATERERS
20 Apr 2015,BLAKEMORE FOODSERVICE,ECONOMY & ENVIRONMENT,CA ST MICHAELS C.E. PRIMARY SCHOOL,37.57,DRY FOODS-PROVISIONS,CATERERS
20 Apr 2015,ARTHUR BRETT CATER,ECONOMY & ENVIRONMENT,CA MEADOW VIEW JMI PRIMARY SCHOOL,38.60,FRUIT & VEGETABLES OTHER-PROVISIONS,MISCELLANEOUS FOOD STORES & CONVENIENCE STORES
20 Apr 2015,BLAKEMORE FOODSERVICE,ECONOMY & ENVIRONMENT,CA MEADOW VIEW JMI PRIMARY SCHOOL,-3.14,FROZEN FOODS-PROVISIONS,CATERERS
20 Apr 2015,WELSH BROS FOODS LTD,ECONOMY & ENVIRONMENT,CA BEACON PRIMARY SCHOOL,121.89,MEAT-PROVISIONS,FREEZER AND LOCKER MEAT PROVISIONERS
20 Apr 2015,BLAKEMORE FOODSERVICE,ECONOMY & ENVIRONMENT,CA BEACON PRIMARY SCHOOL,330.03,FROZEN FOODS-PROVISIONS,CATERERS
20 Apr 2015,BLAKEMORE FOODSERVICE,ECONOMY & ENVIRONMENT,CA BEACON PRIMARY SCHOOL,80.24,FROZEN FOODS-PROVISIONS,CATERERS
20 Apr 2015,ARTHUR BRETT CATER,ECONOMY & ENVIRONMENT,CA LINDENS PRIMARY SCHOOL,98.68,FRUIT & VEGETABLES OTHER-PROVISIONS,MISCELLANEOUS FOOD STORES & CONVENIENCE STORES
20 Apr 2015,BLAKEMORE FOODSERVICE,ECONOMY & ENVIRONMENT,CA BARCROFT D/C,192.00,FROZEN FOODS-PROVISIONS,CATERERS
20 Apr 2015,WELSH BROS FOODS LTD,ECONOMY & ENVIRONMENT,CA RUSHALL JMI SCHOOL,53.40,MEAT-PROVISIONS,FREEZER AND LOCKER MEAT PROVISIONERS
20 Apr 2015,WELSH BROS FOODS LTD,ECONOMY & ENVIRONMENT,CA TOWN HALL RESTAURANT - CATERING,70.77,MEAT-PROVISIONS,FREEZER AND LOCKER MEAT PROVISIONERS
20 Apr 2015,WELSH BROS FOODS LTD,ECONOMY & ENVIRONMENT,TOWN HALL RESTAURANT BISTRO,89.96,MEAT-PROVISIONS,FREEZER AND LOCKER MEAT PROVISIONERS
20 Apr 2015,BLAKEMORE FOODSERVICE,ECONOMY & ENVIRONMENT,CA WATLING STREET PRIMARY SCHOOL,39.59,FROZEN FOODS-PROVISIONS,CATERERS
20 Apr 2015,ARTHUR BRETT CATER,ECONOMY & ENVIRONMENT,CA WATLING STREET PRIMARY SCHOOL,88.78,FRUIT & VEGETABLES OTHER-PROVISIONS,MISCELLANEOUS FOOD STORES & CONVENIENCE STORES
20 Apr 2015,BLAKEMORE FOODSERVICE,ECONOMY & ENVIRONMENT,CA WATLING STREET PRIMARY SCHOOL,217.69,DRY FOODS-PROVISIONS,CATERERS
20 Apr 2015,BLAKEMORE FOODSERVICE,ECONOMY & ENVIRONMENT,CA WATLING STREET PRIMARY SCHOOL,24.43,DRY FOODS-PROVISIONS,CATERERS
20 Apr 2015,BLAKEMORE FOODSERVICE,ECONOMY & ENVIRONMENT,CA WATLING STREET PRIMARY SCHOOL,73.08,DRY FOODS-PROVISIONS,CATERERS
20 Apr 2015,ARTHUR BRETT CATER,ECONOMY & ENVIRONMENT,CA WATLING STREET PRIMARY SCHOOL,36.92,FRUIT & VEGETABLES OTHER-PROVISIONS,MISCELLANEOUS FOOD STORES & CONVENIENCE STORES
20 Apr 2015,WELSH BROS FOODS LTD,ECONOMY & ENVIRONMENT,CA WATLING STREET PRIMARY SCHOOL,141.52,MEAT-PROVISIONS,FREEZER AND LOCKER MEAT PROVISIONERS
20 Apr 2015,WELSH BROS FOODS LTD,ECONOMY & ENVIRONMENT,CA WATLING STREET PRIMARY SCHOOL,24.52,MEAT-PROVISIONS,FREEZER AND LOCKER MEAT PROVISIONERS
20 Apr 2015,ARTHUR BRETT CATER,ECONOMY & ENVIRONMENT,CA ST JOHNS C.E. PRIMARY SCHOOL,181.83,FRUIT & VEGETABLES OTHER-PROVISIONS,MISCELLANEOUS FOOD STORES & CONVENIENCE STORES
20 Apr 2015,WELSH BROS FOODS LTD,ECONOMY & ENVIRONMENT,CA ST JOHNS C.E. PRIMARY SCHOOL,228.02,MEAT-PROVISIONS,FREEZER AND LOCKER MEAT PROVISIONERS
20 Apr 2015,ARTHUR BRETT CATER,ECONOMY & ENVIRONMENT,CA WALSALL WOOD PRIMARY SCHOOL,51.76,FRUIT & VEGETABLES OTHER-PROVISIONS,MISCELLANEOUS FOOD STORES & CONVENIENCE STORES
20 Apr 2015,BLAKEMORE FOODSERVICE,ECONOMY & ENVIRONMENT,CA ST JOHNS C.E. PRIMARY SCHOOL,317.34,DRY FOODS-PROVISIONS,CATERERS
20 Apr 2015,OFFICE DEPOT,CHILDRENS SERVICES,TROUBLED FAMILIES GRANT (STRENGHTENING FAMILIES),82.19,COMPUTER STATIONERY-OFFICE EXP,"STATIONERY, OFFICE SUPPLIES AND WRITING PAPER"
20 Apr 2015,OFFICE DEPOT,ECONOMY & ENVIRONMENT,REGISTRAR,148.80,GENERAL MATERIALS,"STATIONERY, OFFICE SUPPLIES AND WRITING PAPER"
20 Apr 2015,OFFICE DEPOT,SOCIAL CARE & INCLUSION,INTEGRATED BUSINESS PROCESSES & SERVICES,21.82,MISCELLANEOUS SUPPLIES,"STATIONERY, OFFICE SUPPLIES AND WRITING PAPER"
20 Apr 2015,OFFICE DEPOT,ECONOMY & ENVIRONMENT,AP FINANCE & RESOURCES ADMINISTRATION,6.24,STATIONERY & GENERAL SUPPLIES-OFFICE EXP,"STATIONERY, OFFICE SUPPLIES AND WRITING PAPER"
20 Apr 2015,OFFICE DEPOT,ECONOMY & ENVIRONMENT,AP FINANCE & RESOURCES ADMINISTRATION,45.42,STATIONERY & GENERAL SUPPLIES-OFFICE EXP,"STATIONERY, OFFICE SUPPLIES AND WRITING PAPER"
20 Apr 2015,WELSH BROS FOODS LTD,ECONOMY & ENVIRONMENT,CA COOPER JORDAN CE PRIMARY SCHOOL,73.68,MEAT-PROVISIONS,FREEZER AND LOCKER MEAT PROVISIONERS
20 Apr 2015,BLAKEMORE FOODSERVICE,ECONOMY & ENVIRONMENT,CA COOPER JORDAN CE PRIMARY SCHOOL,48.72,DRY FOODS-PROVISIONS,CATERERS
20 Apr 2015,BLAKEMORE FOODSERVICE,ECONOMY & ENVIRONMENT,CA COOPER JORDAN CE PRIMARY SCHOOL,302.36,DRY FOODS-PROVISIONS,CATERERS
20 Apr 2015,BLAKEMORE FOODSERVICE,ECONOMY & ENVIRONMENT,CA COOPER JORDAN CE PRIMARY SCHOOL,76.06,DRY FOODS-PROVISIONS,CATERERS
20 Apr 2015,WELSH BROS FOODS LTD,ECONOMY & ENVIRONMENT,CA CASTLEFORT JMI SCHOOL,70.12,MEAT-PROVISIONS,FREEZER AND LOCKER MEAT PROVISIONERS
20 Apr 2015,ARTHUR BRETT CATER,ECONOMY & ENVIRONMENT,CA CASTLEFORT JMI SCHOOL,55.00,FRUIT & VEGETABLES OTHER-PROVISIONS,MISCELLANEOUS FOOD STORES & CONVENIENCE STORES
20 Apr 2015,BLAKEMORE FOODSERVICE,ECONOMY & ENVIRONMENT,CA CASTLEFORT JMI SCHOOL,343.76,DRY FOODS-PROVISIONS,CATERERS
20 Apr 2015,BLAKEMORE FOODSERVICE,ECONOMY & ENVIRONMENT,CA BLUE COAT C OF E PERFORMING ARTS COLLEGE,42.22,FROZEN FOODS-PROVISIONS,CATERERS
20 Apr 2015,BLAKEMORE FOODSERVICE,ECONOMY & ENVIRONMENT,CA BLUE COAT C OF E PERFORMING ARTS COLLEGE,41.04,FROZEN FOODS-PROVISIONS,CATERERS
20 Apr 2015,BLAKEMORE FOODSERVICE,ECONOMY & ENVIRONMENT,CA CALDMORE COMMUNITY PRIMARY SCHOOL,88.09,FROZEN FOODS-PROVISIONS,CATERERS
20 Apr 2015,ARTHUR BRETT CATER,ECONOMY & ENVIRONMENT,CA OAKWOOD SPECIAL SCHOOL,45.13,FRUIT & VEGETABLES OTHER-PROVISIONS,MISCELLANEOUS FOOD STORES & CONVENIENCE STORES
20 Apr 2015,WELSH BROS FOODS LTD,ECONOMY & ENVIRONMENT,CA FIBBERSLEY PARK PRIMARY SCHOOL,118.74,MEAT-PROVISIONS,FREEZER AND LOCKER MEAT PROVISIONERS
20 Apr 2015,ARTHUR BRETT CATER,ECONOMY & ENVIRONMENT,CA ST BERNADETTES CATHOLIC PRIMARY SCHOOL,33.50,FRUIT & VEGETABLES OTHER-PROVISIONS,MISCELLANEOUS FOOD STORES & CONVENIENCE STORES
20 Apr 2015,OFFICE DEPOT,RESOURCES,PRINTING SERVICES,45.84,STATIONERY & GENERAL SUPPLIES-OFFICE EXP,"STATIONERY, OFFICE SUPPLIES AND WRITING PAPER"
20 Apr 2015,OFFICE DEPOT,CHILDRENS SERVICES,LOOKED AFTER CHILDRENS SOCIAL WORK TEAM,17.70,STATIONERY & GENERAL SUPPLIES-OFFICE EXP,"STATIONERY, OFFICE SUPPLIES AND WRITING PAPER"
20 Apr 2015,BLAKEMORE FOODSERVICE,ECONOMY & ENVIRONMENT,CA BIRCHILLS CE PRIMARY COMMUNITY SCHOOL,211.21,FROZEN FOODS-PROVISIONS,CATERERS
20 Apr 2015,WELSH BROS FOODS LTD,ECONOMY & ENVIRONMENT,CA OLD HALL SPECIAL SCHOOL,50.16,MEAT-PROVISIONS,FREEZER AND LOCKER MEAT PROVISIONERS
20 Apr 2015,BLAKEMORE FOODSERVICE,ECONOMY & ENVIRONMENT,CA OLD HALL SPECIAL SCHOOL,73.15,FROZEN FOODS-PROVISIONS,CATERERS
20 Apr 2015,OFFICE DEPOT,CHILDRENS SERVICES,"CLUSTER 1 BROWNHILLS,GREENFIELDS,PELSALL",71.86,STATIONERY & GENERAL SUPPLIES-OFFICE EXP,"STATIONERY, OFFICE SUPPLIES AND WRITING PAPER"
20 Apr 2015,OFFICE DEPOT,CHILDRENS SERVICES,"CLUSTER 1 BROWNHILLS,GREENFIELDS,PELSALL",6.50,STATIONERY & GENERAL SUPPLIES-OFFICE EXP,"STATIONERY, OFFICE SUPPLIES AND WRITING PAPER"
21 Apr 2015,PREMIER INN44513065,CHILDRENS SERVICES,LOOKED AFTER CHILDRENS SOCIAL WORK TEAM,197.50,SECTION 1/17CHILD CARE ACT 1989-ASSISTANCE TO S/S CLIENTS,PREMIER INN
21 Apr 2015,TVLICENSING.CO.UK,ECONOMY & ENVIRONMENT,CENTRAL OFFICE ACCOMMODATION,145.50,PROFESSIONAL SERVICES-PRIV CONTRACTOR & OTHER AGENCIES,"CONSULTING, MANAGEMENT, AND PR SERVICES"
21 Apr 2015,WM MORRISONS,ECONOMY & ENVIRONMENT,LIBRARY OPERATIONS CENTRAL,9.50,FOOD AND BEVERAGES-PROVISIONS,GROCERY STORES AND SUPERMARKETS
21 Apr 2015,TESCO STORES 6161,ECONOMY & ENVIRONMENT,LIBRARY OPERATIONS CENTRAL,10.00,FOOD AND BEVERAGES-PROVISIONS,GROCERY STORES AND SUPERMARKETS
21 Apr 2015,JAMES LISTER & SON,ECONOMY & ENVIRONMENT,LIBRARY OPERATIONS CENTRAL,73.56,SURVEYS & PROF SERVICES-PAYMENT TO CONTRACTOR,"ARCHITECTURAL, ENGINEERING, AND SURVEYING SERVICES"
21 Apr 2015,SHOWCASE CINEMAS DUDLE,CHILDRENS SERVICES,REWARDS,169.00,GENERAL MATERIALS,MOTION PICTURE THEATERS
21 Apr 2015,SHOWCASE CINEMAS DUDLE,CHILDRENS SERVICES,REWARDS,169.00,GENERAL MATERIALS,MOTION PICTURE THEATERS
21 Apr 2015,SILVER BLADES - CA,CHILDRENS SERVICES,REWARDS,97.00,GENERAL MATERIALS,RECREATIONAL AND SPORTING CAMPS
21 Apr 2015,WEST MID TRAVEL,CHILDRENS SERVICES,SAFEGUARDING & FAMILY SUPPORT,420.00,OFFICER/STAFF-PUBLIC TRANSPORT,BUS LINES
21 Apr 2015,WEST MID TRAVEL,CHILDRENS SERVICES,SAFEGUARDING & FAMILY SUPPORT,6.85,OFFICER/STAFF-PUBLIC TRANSPORT,BUS LINES
21 Apr 2015,TRAINLINE.COM,CHILDRENS SERVICES,CHILD PROTECTION & REVIEW SERVICES,209.71,OFFICER/STAFF-PUBLIC TRANSPORT,PASSENGER RAILWAYS
21 Apr 2015,WWW.UKOUG.ORG,RESOURCES,DATA CENTRES,1764.00,PUBLICATIONS/ORGANISATIONS-SUBSCRIPTIONS,"SCHOOLS, TRADE AND VOCATIONAL"
21 Apr 2015,RUSHALL PROTECTIVE CLO,SOCIAL CARE & INCLUSION,EMPLOYMENT LINKS TO WORK,138.72,GENERAL MATERIALS,"MEN'S, WOMEN'S, AND CHILDREN'S UNIFORMS"
21 Apr 2015,GREENHAM TRADING LTD,ECONOMY & ENVIRONMENT,ARBORETUM,39.98,FURNITURE & EQUIPMENT,OTHER INDUSTRIAL SUPPLIES
21 Apr 2015,WM MORRISON 063,CHILDRENS SERVICES,REDRUTH ROAD,10.53,GENERAL PROVISIONS-PROVISIONS,GROCERY STORES AND SUPERMARKETS
21 Apr 2015,WM MORRISON 063,CHILDRENS SERVICES,REDRUTH ROAD,40.77,GENERAL PROVISIONS-PROVISIONS,GROCERY STORES AND SUPERMARKETS
21 Apr 2015,WWW.DAISYGROUPPIC.,CHILDRENS SERVICES,"CLUSTER 3 BLOXWICH,BLAKENALL,HATHERTON,E STAMMERS",102.59,COSTS (NOT INTERNAL RECHARGES)-TELEPHONES,TELECOMMUNICATION EQUIPMENT & SALES
21 Apr 2015,WWW.DAISYGROUPPIC.,CHILDRENS SERVICES,"CLUSTER 3 BLOXWICH,BLAKENALL,HATHERTON,E STAMMERS",2.05,COSTS (NOT INTERNAL RECHARGES)-TELEPHONES,TELECOMMUNICATION EQUIPMENT & SALES
21 Apr 2015,SCREWFIX DIRECT,CHILDRENS SERVICES,"CLUSTER 3 BLOXWICH,BLAKENALL,HATHERTON,E STAMMERS",39.60,GENERAL MATERIALS,LUMBER & BUILDING MATERIALS STORES
21 Apr 2015,IKEA,CHILDRENS SERVICES,"43A HILTON ROAD, WILLENHALL",216.95,FURNITURE & EQUIPMENT,MISCELLANEOUS HOUSE FURNISHING SPECIALTY SHOPS
21 Apr 2015,WWW.DRAGONFLI.CO.UK,ECONOMY & ENVIRONMENT,TREE TEAM,264.00,GENERAL MATERIALS,OTHER BUSINESS SERVICES
21 Apr 2015,REGISTRATION SERVICES,CHILDRENS SERVICES,LOOKED AFTER CHILDRENS SOCIAL WORK TEAM,40.00,REGISTRAR OF BIRTHS/DEATHS/MARRIAGES/CIVIL PARTNERSHIPS-SERV-FEES/CHARGES,OTHER RECREATION SERVICES
21 Apr 2015,TRAVEL WEST MIDLAN,CHILDRENS SERVICES,LOOKED AFTER CHILDRENS SOCIAL WORK TEAM,31.75,OFFICER/STAFF-PUBLIC TRANSPORT,BUS LINES
21 Apr 2015,CO-OP GROUP 070342,CHILDRENS SERVICES,FAMILY PLACEMENTS,14.98,DRINKS-PROVISIONS,GROCERY STORES AND SUPERMARKETS
21 Apr 2015,WWW.GLOS.AC.UK,CHILDRENS SERVICES,CENTRAL SUPPORT,20.00,,"COLLEGES, UNIVERSITIES, PROFESSIONAL SCHOOLS"
21 Apr 2015,STOKE ON TRENT CITY CO,CHILDRENS SERVICES,SAFEGUARDING & FAMILY SUPPORT,10.60,REGISTRAR OF BIRTHS/DEATHS/MARRIAGES/CIVIL PARTNERSHIPS-SERV-FEES/CHARGES,GOVERNMENT SERVICES
21 Apr 2015,"AMAZON SVCS EUROPE,SAR",ECONOMY & ENVIRONMENT,VP SCL VOCATIONAL & SUPPORTED LEARNING,24.50,GENERAL MATERIALS,BOOK STORES
21 Apr 2015,THE WORKS,CHILDRENS SERVICES,57 LICHFIELD ROAD,4.99,RESIDENTS PERSONAL EXPENSES-ALLOWANCES TO S/S CLIENTS,BOOK STORES
21 Apr 2015,WM MORRISON FOOD.COM,CHILDRENS SERVICES,57 LICHFIELD ROAD,22.86,GENERAL PROVISIONS-PROVISIONS,GROCERY STORES AND SUPERMARKETS
21 Apr 2015,WM MORRISON FOOD.COM,CHILDRENS SERVICES,57 LICHFIELD ROAD,119.34,GENERAL PROVISIONS-PROVISIONS,GROCERY STORES AND SUPERMARKETS
21 Apr 2015,W M MORRISONS,CHILDRENS SERVICES,FOOD TECHNOLOGY/HOSPITALITY,7.43,GENERAL MATERIALS,GROCERY STORES AND SUPERMARKETS
21 Apr 2015,W M MORRISON PLC,CHILDRENS SERVICES,"43A HILTON ROAD, WILLENHALL",2.50,GENERAL PROVISIONS-PROVISIONS,GROCERY STORES AND SUPERMARKETS
21 Apr 2015,W M MORRISON PLC,CHILDRENS SERVICES,"43A HILTON ROAD, WILLENHALL",2.40,GENERAL PROVISIONS-PROVISIONS,GROCERY STORES AND SUPERMARKETS
21 Apr 2015,W M MORRISON PLC,CHILDRENS SERVICES,"43A HILTON ROAD, WILLENHALL",2.65,GENERAL PROVISIONS-PROVISIONS,GROCERY STORES AND SUPERMARKETS
21 Apr 2015,W M MORRISON PLC,CHILDRENS SERVICES,"43A HILTON ROAD, WILLENHALL",8.96,NEW-FURNITURE & EQUIPMENT,GROCERY STORES AND SUPERMARKETS
21 Apr 2015,HIGH STREET VOUCHE,CHILDRENS SERVICES,ST FRANCIS OF ASSISI CATHOLIC TECHNOLOGY COLLEGE,3.50,GENERAL MATERIALS,"CARD, GIFT, NOVELTY, AND SOUVENIR SHOPS"
21 Apr 2015,HIGH STREET VOUCHE,CHILDRENS SERVICES,ST FRANCIS OF ASSISI CATHOLIC TECHNOLOGY COLLEGE,110.00,GENERAL MATERIALS,"CARD, GIFT, NOVELTY, AND SOUVENIR SHOPS"
21 Apr 2015,ASDA STORES,CHILDRENS SERVICES,PARENTING TEAM,11.27,FOOD AND BEVERAGES-PROVISIONS,GROCERY STORES AND SUPERMARKETS
21 Apr 2015,ASDA STORES,CHILDRENS SERVICES,PARENTING TEAM,2.00,FOOD AND BEVERAGES-PROVISIONS,GROCERY STORES AND SUPERMARKETS
21 Apr 2015,BRITISH PSYCHO SOC,CHILDRENS SERVICES,SEN,38.00,PROFESSIONAL FEES AND SERVICES,"HEALTH PRACTITIONERS, MEDICAL SERVICES"
21 Apr 2015,PHONAK GROUP LTD,CHILDRENS SERVICES,SEN,48.00,PROFESSIONAL FEES AND SERVICES,OTHER BUSINESS SERVICES
21 Apr 2015,PAYPAL,CHILDRENS SERVICES,SAFEGUARDING BOARD,126.90,GENERAL EXPENSES-OFFICE EXP,OTHER DURABLE GOODS
21 Apr 2015,WM MORRISON FOOD.COM,CHILDRENS SERVICES,CLUSTER 5 DARLASTON,34.08,GENERAL PROVISIONS-PROVISIONS,GROCERY STORES AND SUPERMARKETS
21 Apr 2015,WM MORRISON FOOD.COM,CHILDRENS SERVICES,CLUSTER 5 DARLASTON,111.68,FOOD AND BEVERAGES-PROVISIONS,GROCERY STORES AND SUPERMARKETS
21 Apr 2015,AMAZON UK RETAIL,CHILDRENS SERVICES,MEDIA,68.91,GENERAL MATERIALS,OTHER DIRECT MARKETING-OTHER DIRECT MARKETERS
21 Apr 2015,CRAZY HOUSE FURNITURE,RESOURCES,WALSALL CRISIS SUPPORT SCHEME,365.00,CRISIS SUPPORT PAYMENTS,"EQUIPMENT, FURNITURE, AND HOME FURNISHINGS STORES "
21 Apr 2015,CRAZY HOUSE FURNITURE,RESOURCES,WALSALL CRISIS SUPPORT SCHEME,60.00,CRISIS SUPPORT PAYMENTS,"EQUIPMENT, FURNITURE, AND HOME FURNISHINGS STORES "
21 Apr 2015,CRAZY HOUSE FURNITURE,RESOURCES,WALSALL CRISIS SUPPORT SCHEME,55.00,CRISIS SUPPORT PAYMENTS,"EQUIPMENT, FURNITURE, AND HOME FURNISHINGS STORES "
21 Apr 2015,WILKO.COM,RESOURCES,WALSALL CRISIS SUPPORT SCHEME,52.85,CRISIS SUPPORT PAYMENTS,HOUSEHOLD APPLIANCE STORES
21 Apr 2015,CRAZY HOUSE FURNITURE,RESOURCES,WALSALL CRISIS SUPPORT SCHEME,60.00,CRISIS SUPPORT PAYMENTS,"EQUIPMENT, FURNITURE, AND HOME FURNISHINGS STORES "
21 Apr 2015,CRAZY HOUSE FURNITURE,RESOURCES,WALSALL CRISIS SUPPORT SCHEME,85.00,CRISIS SUPPORT PAYMENTS,"EQUIPMENT, FURNITURE, AND HOME FURNISHINGS STORES "
21 Apr 2015,WILKO.COM,RESOURCES,WALSALL CRISIS SUPPORT SCHEME,44.00,CRISIS SUPPORT PAYMENTS,HOUSEHOLD APPLIANCE STORES
21 Apr 2015,WILKO.COM,RESOURCES,WALSALL CRISIS SUPPORT SCHEME,20.00,CRISIS SUPPORT PAYMENTS,HOUSEHOLD APPLIANCE STORES
21 Apr 2015,WILKO.COM,RESOURCES,WALSALL CRISIS SUPPORT SCHEME,23.20,CRISIS SUPPORT PAYMENTS,HOUSEHOLD APPLIANCE STORES
21 Apr 2015,WILKO.COM,RESOURCES,WALSALL CRISIS SUPPORT SCHEME,48.00,CRISIS SUPPORT PAYMENTS,HOUSEHOLD APPLIANCE STORES
21 Apr 2015,WWW.GIROFOOD.COM,ECONOMY & ENVIRONMENT,CA JOSEPH LECKIE COMMUNITY TECHNOLOGY COLLEGE,13.06,DISPOSABLES-PROVISIONS,WHOLESALE CLUBS
21 Apr 2015,WWW.GIROFOOD.COM,ECONOMY & ENVIRONMENT,CA CROFT COMMUNITY PRIMARY SCHOOL,13.06,DISPOSABLES-PROVISIONS,WHOLESALE CLUBS
21 Apr 2015,NOBISCO LTD,ECONOMY & ENVIRONMENT,CA NEW INVENTION INFANT,67.33,DISPOSABLES-PROVISIONS,"CLEANING AND MAINTENANCE, JANITORIAL SERVICES"
21 Apr 2015,ARTHUR BRETT CATER,ECONOMY & ENVIRONMENT,CA BIRCHILLS CE PRIMARY COMMUNITY SCHOOL,23.44,FRUIT & VEGETABLES OTHER-PROVISIONS,MISCELLANEOUS FOOD STORES & CONVENIENCE STORES
21 Apr 2015,SMART FOOD UK LIMITED,ECONOMY & ENVIRONMENT,CA BIRCHILLS CE PRIMARY COMMUNITY SCHOOL,305.60,FROZEN FOODS-PROVISIONS,CATERERS
21 Apr 2015,ARTHUR BRETT CATER,ECONOMY & ENVIRONMENT,CA BIRCHILLS CE PRIMARY COMMUNITY SCHOOL,24.32,FRUIT & VEGETABLES OTHER-PROVISIONS,MISCELLANEOUS FOOD STORES & CONVENIENCE STORES
21 Apr 2015,ARTHUR BRETT CATER,ECONOMY & ENVIRONMENT,CA BIRCHILLS CE PRIMARY COMMUNITY SCHOOL,74.10,FRUIT & VEGETABLES OTHER-PROVISIONS,MISCELLANEOUS FOOD STORES & CONVENIENCE STORES
21 Apr 2015,OFFICE DEPOT,CHILDRENS SERVICES,FAMILY PLACEMENTS,117.96,STATIONERY & GENERAL SUPPLIES-OFFICE EXP,"STATIONERY, OFFICE SUPPLIES AND WRITING PAPER"
21 Apr 2015,OFFICE DEPOT,CHILDRENS SERVICES,INITIAL RESPONSE SERVICE,121.82,STATIONERY & GENERAL SUPPLIES-OFFICE EXP,"STATIONERY, OFFICE SUPPLIES AND WRITING PAPER"
21 Apr 2015,OFFICE DEPOT,CHILDRENS SERVICES,CHILD PROTECTION & REVIEW SERVICES,221.36,STATIONERY & GENERAL SUPPLIES-OFFICE EXP,"STATIONERY, OFFICE SUPPLIES AND WRITING PAPER"
21 Apr 2015,OFFICE DEPOT,CHILDRENS SERVICES,CHILD PROTECTION & REVIEW SERVICES,77.99,STATIONERY & GENERAL SUPPLIES-OFFICE EXP,"STATIONERY, OFFICE SUPPLIES AND WRITING PAPER"
21 Apr 2015,OFFICE DEPOT,CHILDRENS SERVICES,FAMILY PLACEMENTS,7.56,STATIONERY & GENERAL SUPPLIES-OFFICE EXP,"STATIONERY, OFFICE SUPPLIES AND WRITING PAPER"
21 Apr 2015,ARTHUR BRETT CATER,ECONOMY & ENVIRONMENT,CA BLOXWICH C.E. JMI PRIMARY SCHOOL,45.67,FRUIT & VEGETABLES OTHER-PROVISIONS,MISCELLANEOUS FOOD STORES & CONVENIENCE STORES
21 Apr 2015,ARTHUR BRETT CATER,ECONOMY & ENVIRONMENT,CA FIBBERSLEY PARK PRIMARY SCHOOL,118.75,FRUIT & VEGETABLES OTHER-PROVISIONS,MISCELLANEOUS FOOD STORES & CONVENIENCE STORES
21 Apr 2015,ARTHUR BRETT CATER,ECONOMY & ENVIRONMENT,CA CALDMORE COMMUNITY PRIMARY SCHOOL,129.65,FRUIT & VEGETABLES OTHER-PROVISIONS,MISCELLANEOUS FOOD STORES & CONVENIENCE STORES
21 Apr 2015,OFFICE DEPOT,CHILDRENS SERVICES,SCHOOL IMPROVEMENT,12.48,STATIONERY & GENERAL SUPPLIES-OFFICE EXP,"STATIONERY, OFFICE SUPPLIES AND WRITING PAPER"
21 Apr 2015,ARTHUR BRETT CATER,ECONOMY & ENVIRONMENT,CA ELMWOOD SPECIAL SCHOOL,46.42,FRUIT & VEGETABLES OTHER-PROVISIONS,MISCELLANEOUS FOOD STORES & CONVENIENCE STORES
21 Apr 2015,OFFICE DEPOT,ECONOMY & ENVIRONMENT,OAK PARK,238.08,COMPUTER STATIONERY-OFFICE EXP,"STATIONERY, OFFICE SUPPLIES AND WRITING PAPER"
21 Apr 2015,OFFICE DEPOT,RESOURCES,RISK & INSURANCE,40.79,MISCELLANEOUS SUPPLIES,"STATIONERY, OFFICE SUPPLIES AND WRITING PAPER"
21 Apr 2015,NOBISCO LTD,ECONOMY & ENVIRONMENT,CA ST JOHNS C.E. PRIMARY SCHOOL,10.14,DISPOSABLES-PROVISIONS,"CLEANING AND MAINTENANCE, JANITORIAL SERVICES"
21 Apr 2015,OFFICE DEPOT,CHILDRENS SERVICES,LOOKED AFTER CHILDRENS SOCIAL WORK TEAM,117.96,STATIONERY & GENERAL SUPPLIES-OFFICE EXP,"STATIONERY, OFFICE SUPPLIES AND WRITING PAPER"
21 Apr 2015,ARTHUR BRETT CATER,ECONOMY & ENVIRONMENT,CA RUSHALL JMI SCHOOL,28.91,FRUIT & VEGETABLES OTHER-PROVISIONS,MISCELLANEOUS FOOD STORES & CONVENIENCE STORES
21 Apr 2015,ARTHUR BRETT CATER,ECONOMY & ENVIRONMENT,CA ST FRANCIS CATHOLIC PRIMARY SCHOOL,49.68,FRUIT & VEGETABLES OTHER-PROVISIONS,MISCELLANEOUS FOOD STORES & CONVENIENCE STORES
21 Apr 2015,WELSH BROS FOODS LTD,ECONOMY & ENVIRONMENT,CA LINDENS PRIMARY SCHOOL,54.37,MEAT-PROVISIONS,FREEZER AND LOCKER MEAT PROVISIONERS
21 Apr 2015,SMART FOOD UK LIMITED,ECONOMY & ENVIRONMENT,CA LINDENS PRIMARY SCHOOL,305.60,FROZEN FOODS-PROVISIONS,CATERERS
21 Apr 2015,NOBISCO LTD,ECONOMY & ENVIRONMENT,CA GREEN ROCK PRIMARY,44.64,DISPOSABLES-PROVISIONS,"CLEANING AND MAINTENANCE, JANITORIAL SERVICES"
21 Apr 2015,ARTHUR BRETT CATER,ECONOMY & ENVIRONMENT,CA LITTLE BLOXWICH CE PRIMARY SCHOOL,40.91,FRUIT & VEGETABLES OTHER-PROVISIONS,MISCELLANEOUS FOOD STORES & CONVENIENCE STORES
21 Apr 2015,ARTHUR BRETT CATER,ECONOMY & ENVIRONMENT,CA BEACON PRIMARY SCHOOL,47.96,FRUIT & VEGETABLES OTHER-PROVISIONS,MISCELLANEOUS FOOD STORES & CONVENIENCE STORES
21 Apr 2015,ARTHUR BRETT CATER,ECONOMY & ENVIRONMENT,CA BARCROFT D/C,75.31,FRUIT & VEGETABLES OTHER-PROVISIONS,MISCELLANEOUS FOOD STORES & CONVENIENCE STORES
21 Apr 2015,ARTHUR BRETT CATER,ECONOMY & ENVIRONMENT,CA NEW INVENTION INFANT,134.94,FRUIT & VEGETABLES OTHER-PROVISIONS,MISCELLANEOUS FOOD STORES & CONVENIENCE STORES
21 Apr 2015,ARTHUR BRETT CATER,ECONOMY & ENVIRONMENT,CA ST GILES C.E. PRIMARY SCHOOL,34.86,FRUIT & VEGETABLES OTHER-PROVISIONS,MISCELLANEOUS FOOD STORES & CONVENIENCE STORES
21 Apr 2015,ARTHUR BRETT CATER,ECONOMY & ENVIRONMENT,CA ST MICHAELS C.E. PRIMARY SCHOOL,62.60,FRUIT & VEGETABLES OTHER-PROVISIONS,MISCELLANEOUS FOOD STORES & CONVENIENCE STORES
21 Apr 2015,ARTHUR BRETT CATER,ECONOMY & ENVIRONMENT,TOWN HALL RESTAURANT BISTRO,35.12,FRUIT & VEGETABLES OTHER-PROVISIONS,MISCELLANEOUS FOOD STORES & CONVENIENCE STORES
21 Apr 2015,ARTHUR BRETT CATER,ECONOMY & ENVIRONMENT,CA TOWN HALL RESTAURANT - CATERING,49.59,FRUIT & VEGETABLES OTHER-PROVISIONS,MISCELLANEOUS FOOD STORES & CONVENIENCE STORES
21 Apr 2015,ARTHUR BRETT CATER,ECONOMY & ENVIRONMENT,CA CROFT COMMUNITY PRIMARY SCHOOL,65.87,FRUIT & VEGETABLES OTHER-PROVISIONS,MISCELLANEOUS FOOD STORES & CONVENIENCE STORES
21 Apr 2015,SMART FOOD UK LIMITED,ECONOMY & ENVIRONMENT,CA RADLEYS PRIMARY SCHOOL,305.60,FROZEN FOODS-PROVISIONS,CATERERS
21 Apr 2015,SMART FOOD UK LIMITED,ECONOMY & ENVIRONMENT,CA JOSEPH LECKIE COMMUNITY TECHNOLOGY COLLEGE,764.00,FROZEN FOODS-PROVISIONS,CATERERS
21 Apr 2015,ARTHUR BRETT CATER,ECONOMY & ENVIRONMENT,CA LEAMORE PRIMARY SCHOOL,43.56,FRUIT & VEGETABLES OTHER-PROVISIONS,MISCELLANEOUS FOOD STORES & CONVENIENCE STORES
21 Apr 2015,SMART FOOD UK LIMITED,ECONOMY & ENVIRONMENT,CA JANE LANE SPECIAL SCHOOL,267.40,FROZEN FOODS-PROVISIONS,CATERERS
21 Apr 2015,ARTHUR BRETT CATER,ECONOMY & ENVIRONMENT,CA JANE LANE SPECIAL SCHOOL,56.98,FRUIT & VEGETABLES OTHER-PROVISIONS,MISCELLANEOUS FOOD STORES & CONVENIENCE STORES
21 Apr 2015,ARTHUR BRETT CATER,ECONOMY & ENVIRONMENT,CA ELMORE GREEN PRIMARY SCHOOL,140.41,FRUIT & VEGETABLES OTHER-PROVISIONS,MISCELLANEOUS FOOD STORES & CONVENIENCE STORES
21 Apr 2015,ARTHUR BRETT CATER,ECONOMY & ENVIRONMENT,CA RADLEYS PRIMARY SCHOOL,161.02,FRUIT & VEGETABLES OTHER-PROVISIONS,MISCELLANEOUS FOOD STORES & CONVENIENCE STORES
21 Apr 2015,ARTHUR BRETT CATER,ECONOMY & ENVIRONMENT,CA JOSEPH LECKIE COMMUNITY TECHNOLOGY COLLEGE,167.33,FRUIT & VEGETABLES OTHER-PROVISIONS,MISCELLANEOUS FOOD STORES & CONVENIENCE STORES
21 Apr 2015,SMART FOOD UK LIMITED,ECONOMY & ENVIRONMENT,CA MOORCROFT WOOD,305.60,FROZEN FOODS-PROVISIONS,CATERERS
21 Apr 2015,ARTHUR BRETT CATER,ECONOMY & ENVIRONMENT,CA MOORCROFT WOOD,68.24,FRUIT & VEGETABLES OTHER-PROVISIONS,MISCELLANEOUS FOOD STORES & CONVENIENCE STORES
21 Apr 2015,SMART FOOD UK LIMITED,ECONOMY & ENVIRONMENT,CA BUSILL JONES PRIMARY SCHOOL,191.00,FROZEN FOODS-PROVISIONS,CATERERS
21 Apr 2015,ARTHUR BRETT CATER,ECONOMY & ENVIRONMENT,CA ABBEY PRIMARY SCHOOL,56.25,FOOD AND BEVERAGES-PROVISIONS,MISCELLANEOUS FOOD STORES & CONVENIENCE STORES
21 Apr 2015,ARTHUR BRETT CATER,ECONOMY & ENVIRONMENT,CA BUSILL JONES PRIMARY SCHOOL,120.14,FRUIT & VEGETABLES OTHER-PROVISIONS,MISCELLANEOUS FOOD STORES & CONVENIENCE STORES
21 Apr 2015,ARTHUR BRETT CATER,ECONOMY & ENVIRONMENT,CA BLAKENALL HEATH JUNIOR SCHOOL,55.73,FRUIT & VEGETABLES OTHER-PROVISIONS,MISCELLANEOUS FOOD STORES & CONVENIENCE STORES
21 Apr 2015,ARTHUR BRETT CATER,ECONOMY & ENVIRONMENT,CA POOL HAYES PRIMARY SCHOOL,43.95,FRUIT & VEGETABLES OTHER-PROVISIONS,MISCELLANEOUS FOOD STORES & CONVENIENCE STORES
21 Apr 2015,WELSH BROS FOODS LTD,ECONOMY & ENVIRONMENT,CA BUSILL JONES PRIMARY SCHOOL,-702.28,MEAT-PROVISIONS,FREEZER AND LOCKER MEAT PROVISIONERS
22 Apr 2015,B & Q,ECONOMY & ENVIRONMENT,ARBORETUM,-45.00,GENERAL MATERIALS,LUMBER & BUILDING MATERIALS STORES
22 Apr 2015,CROWNE PLAZA LIVERPOOL,ECONOMY & ENVIRONMENT,PRINCIPAL ADMINISTRATION,90.00,HOTEL ACCOMMODATION-EMPLOYEES,"HOTELS, MOTELS, RESORTS"
22 Apr 2015,CROWNE PLAZA LIVERPOOL,ECONOMY & ENVIRONMENT,PRINCIPAL ADMINISTRATION,90.00,HOTEL ACCOMMODATION-EMPLOYEES,"HOTELS, MOTELS, RESORTS"
22 Apr 2015,AVIEMORE,CHILDRENS SERVICES,INTERNAL FOSTER CARE PROVISION,85.00,HOTEL ACCOMMODATION-EMPLOYEES,"HOTELS, MOTELS, RESORTS"
22 Apr 2015,TRAINLINE.COM,CHILDRENS SERVICES,SCHOOL IMPROVEMENT,40.55,OFFICER/STAFF-PUBLIC TRANSPORT,PASSENGER RAILWAYS
22 Apr 2015,"AMAZON SVCS EUROPE,SAR",CHILDRENS SERVICES,PUPIL REFERAL UNIT EXCLUSIONS,103.96,LIBRARY BOOKS,BOOK STORES
22 Apr 2015,WWW.FLYBE.COE927FT,CHILDRENS SERVICES,INTERNAL FOSTER CARE PROVISION,139.99,OTHER-TRAVEL ALLOWANCES,AIRLINES AND AIR CARRIERS
22 Apr 2015,LONDON MIDLAND SEL,ECONOMY & ENVIRONMENT,NEW ART GALLERY - ADMIN,4.10,OFFICER/STAFF-PUBLIC TRANSPORT,PASSENGER RAILWAYS
22 Apr 2015,SCREWFIX,ECONOMY & ENVIRONMENT,INFRASTRUCTURE MAINTENANCE,12.78,GENERAL MATERIALS,LUMBER & BUILDING MATERIALS STORES
22 Apr 2015,TESCO STORES 6161,CHILDRENS SERVICES,LOOKED AFTER CHILDRENS SOCIAL WORK TEAM,2.13,TRANSFER PAYMENTS - SOCIAL SERVICES CLIENTS,GROCERY STORES AND SUPERMARKETS
22 Apr 2015,TESCO STORES 6161,CHILDRENS SERVICES,LOOKED AFTER CHILDRENS SOCIAL WORK TEAM,6.55,TRANSFER PAYMENTS - SOCIAL SERVICES CLIENTS,GROCERY STORES AND SUPERMARKETS
22 Apr 2015,WM MORRISON FOOD.COM,CHILDRENS SERVICES,BLUEBELLS,24.00,GENERAL PROVISIONS-PROVISIONS,GROCERY STORES AND SUPERMARKETS
22 Apr 2015,WM MORRISON FOOD.COM,CHILDRENS SERVICES,BLUEBELLS,130.07,GENERAL PROVISIONS-PROVISIONS,GROCERY STORES AND SUPERMARKETS
22 Apr 2015,AMAZON UK RETAIL,CHILDRENS SERVICES,GENERAL RESOURCES & MISC,59.65,GENERAL MATERIALS,OTHER DIRECT MARKETING-OTHER DIRECT MARKETERS
22 Apr 2015,NEC PARKING,ECONOMY & ENVIRONMENT,TOWN CENTRE MANAGEMENT,12.00,MISCELLANEOUS SUPPLIES,OTHER BUSINESS SERVICES
22 Apr 2015,EB TACKLING DOMESTIC,ECONOMY & ENVIRONMENT,COMMUNITY SAFETY 2012/2013,97.00,PROFESSIONAL FEES AND SERVICES,OTHER BUSINESS SERVICES
22 Apr 2015,MAPLIN WALSALL WS2,ECONOMY & ENVIRONMENT,NAG - TEMPORARY EXHIBITIONS,19.99,GENERAL MATERIALS,ELECTRONIC SALES
22 Apr 2015,MAPLIN WALSALL WS2,ECONOMY & ENVIRONMENT,NAG - GARMAN RYAN/PERMANENT COLLECTION,7.99,GENERAL MATERIALS,ELECTRONIC SALES
22 Apr 2015,ASDA STORES,CHILDRENS SERVICES,CLUSTER 5 DARLASTON,2.82,FOOD AND BEVERAGES-PROVISIONS,GROCERY STORES AND SUPERMARKETS
22 Apr 2015,ASDA STORES,CHILDRENS SERVICES,CLUSTER 5 DARLASTON,5.00,FOOD AND BEVERAGES-PROVISIONS,GROCERY STORES AND SUPERMARKETS
22 Apr 2015,ICELAND 421,CHILDRENS SERVICES,LOOKED AFTER CHILDRENS SOCIAL WORK TEAM,3.00,FOOD AND BEVERAGES-PROVISIONS,GROCERY STORES AND SUPERMARKETS
22 Apr 2015,HOME BARGAINS,CHILDRENS SERVICES,LOOKED AFTER CHILDRENS SOCIAL WORK TEAM,3.05,FOOD AND BEVERAGES-PROVISIONS,HARDWARE STORES
22 Apr 2015,THE TRAINLINE.COM,ECONOMY & ENVIRONMENT,HIGHWAYS MAINTENANCE GENERAL,190.23,OFFICER/STAFF-PUBLIC TRANSPORT,PASSENGER RAILWAYS
22 Apr 2015,MNA LTD CARDCHARGE,ECONOMY & ENVIRONMENT,DEVELOPMENT MANAGEMENT,195.60,PERIODICALS/MAGAZINES/NEWSPAPERS-SUBSCRIPTIONS,NEWS DEALERS AND NEWSSTANDS
22 Apr 2015,TESCO STORE 3351,CHILDRENS SERVICES,PARENTING TEAM,1.00,FOOD AND BEVERAGES-PROVISIONS,GROCERY STORES AND SUPERMARKETS
22 Apr 2015,TESCO STORE 3351,CHILDRENS SERVICES,PARENTING TEAM,8.70,FOOD AND BEVERAGES-PROVISIONS,GROCERY STORES AND SUPERMARKETS
22 Apr 2015,HMCOURTS-SERVICE.G,SOCIAL CARE & INCLUSION,MENTAL HEALTH OUT-OF-HOURS SERVICE,20.00,LEGAL FEES-PRIV CONTRACTOR FEES,FINES
22 Apr 2015,CO-OPERATIVE FOOD,CHILDRENS SERVICES,PARENTING TEAM,3.98,FOOD AND BEVERAGES-PROVISIONS,GROCERY STORES AND SUPERMARKETS
22 Apr 2015,A F BLAKEMORE & SON LTD,CHILDRENS SERVICES,MARY ELLIOTT SPECIAL SCHOOL,887.80,BREAD-GENERAL-PROVISIONS,GROCERY STORES AND SUPERMARKETS
22 Apr 2015,A F BLAKEMORE & SON LTD,CHILDRENS SERVICES,MARY ELLIOTT SPECIAL SCHOOL,8.45,BREAD-GENERAL-PROVISIONS,GROCERY STORES AND SUPERMARKETS
22 Apr 2015,B & Q,ECONOMY & ENVIRONMENT,ARBORETUM,136.50,GENERAL MATERIALS,LUMBER & BUILDING MATERIALS STORES
22 Apr 2015,WP-STAMPS DIRECT L,ECONOMY & ENVIRONMENT,WALSALL TOWN HALL,45.29,STATIONERY & GENERAL SUPPLIES-OFFICE EXP,"OFFICE, SCHOOL SUPPLY, AND STATIONERY STORES"
22 Apr 2015,HJ FLECHER&NEWMAN,ECONOMY & ENVIRONMENT,FOREST ARTS CENTRE,34.80,GENERAL MATERIALS,MUSIC STORES & MUSICAL INSTRUMENTS
22 Apr 2015,MAX SPIELMANN LTD,RESOURCES,LINK SERVICE,7.99,EXTERNAL PRINTING SERVICES,PHOTOGRAPHIC STUDIOS
22 Apr 2015,NATIONAL EXPRESS LIMITED,RESOURCES,LINK SERVICE,31.00,OFFICER/STAFF-PUBLIC TRANSPORT,BUS LINES
22 Apr 2015,VUE*NCS CITB HS&E TEST,ECONOMY & ENVIRONMENT,STRUCTURES & GEOTECHNICS,17.50,PROFESSIONAL SERVICES-PRIV CONTRACTOR & OTHER AGENCIES,OTHER SCHOOLS AND EDUCATIONAL SERVICES
22 Apr 2015,CRAZY HOUSE FURNITURE,RESOURCES,WALSALL CRISIS SUPPORT SCHEME,185.00,CRISIS SUPPORT PAYMENTS,"EQUIPMENT, FURNITURE, AND HOME FURNISHINGS STORES "
22 Apr 2015,WWW.GIROFOOD.COM,ECONOMY & ENVIRONMENT,CA JANE LANE SPECIAL SCHOOL,65.11,DISPOSABLES-PROVISIONS,WHOLESALE CLUBS
22 Apr 2015,WWW.GIROFOOD.COM,ECONOMY & ENVIRONMENT,CA BLUE COAT C OF E PERFORMING ARTS COLLEGE,41.16,DISPOSABLES-PROVISIONS,WHOLESALE CLUBS
22 Apr 2015,WWW.GIROFOOD.COM,ECONOMY & ENVIRONMENT,CA FIBBERSLEY PARK PRIMARY SCHOOL,42.28,DISPOSABLES-PROVISIONS,WHOLESALE CLUBS
22 Apr 2015,OFFICE DEPOT,CHILDRENS SERVICES,ADMINISTRATIVE SUPPLIES,189.65,STATIONERY & GENERAL SUPPLIES-OFFICE EXP,"STATIONERY, OFFICE SUPPLIES AND WRITING PAPER"
22 Apr 2015,OFFICE DEPOT,ECONOMY & ENVIRONMENT,VP SCL EMPLOYER GATEWAY,91.44,STATIONERY & GENERAL SUPPLIES-OFFICE EXP,"STATIONERY, OFFICE SUPPLIES AND WRITING PAPER"
22 Apr 2015,OFFICE DEPOT,ECONOMY & ENVIRONMENT,LOCAL HISTORY CENTRE,16.08,STATIONERY & GENERAL SUPPLIES-OFFICE EXP,"STATIONERY, OFFICE SUPPLIES AND WRITING PAPER"
22 Apr 2015,OFFICE DEPOT,ECONOMY & ENVIRONMENT,LOCAL HISTORY CENTRE,0.86,STATIONERY & GENERAL SUPPLIES-OFFICE EXP,"STATIONERY, OFFICE SUPPLIES AND WRITING PAPER"
22 Apr 2015,OFFICE DEPOT,ECONOMY & ENVIRONMENT,SCHOOL LIBRARY SUPPORT,36.60,STATIONERY & GENERAL SUPPLIES-OFFICE EXP,"STATIONERY, OFFICE SUPPLIES AND WRITING PAPER"
22 Apr 2015,OFFICE DEPOT,CHILDRENS SERVICES,TROUBLED FAMILIES GRANT (STRENGHTENING FAMILIES),187.50,STATIONERY & GENERAL SUPPLIES-OFFICE EXP,"STATIONERY, OFFICE SUPPLIES AND WRITING PAPER"
22 Apr 2015,OFFICE DEPOT,ECONOMY & ENVIRONMENT,LEISURE & CULTURE SUPPORT BUDGET,19.81,STATIONERY & GENERAL SUPPLIES-OFFICE EXP,"STATIONERY, OFFICE SUPPLIES AND WRITING PAPER"
22 Apr 2015,OFFICE DEPOT,ECONOMY & ENVIRONMENT,DARLASTON LEISURE CENTRE,111.85,STATIONERY & GENERAL SUPPLIES-OFFICE EXP,"STATIONERY, OFFICE SUPPLIES AND WRITING PAPER"
22 Apr 2015,OFFICE DEPOT,ECONOMY & ENVIRONMENT,CA CENTRAL SUPPORT SERVICES,56.69,STATIONERY & GENERAL SUPPLIES-OFFICE EXP,"STATIONERY, OFFICE SUPPLIES AND WRITING PAPER"
22 Apr 2015,OFFICE DEPOT,RESOURCES,ELECTORAL SERVICES,23.21,STATIONERY & GENERAL SUPPLIES-OFFICE EXP,"STATIONERY, OFFICE SUPPLIES AND WRITING PAPER"
22 Apr 2015,BLAKEMORE FOODSERVICE,ECONOMY & ENVIRONMENT,CA BUSILL JONES PRIMARY SCHOOL,13.13,DRY FOODS-PROVISIONS,CATERERS
22 Apr 2015,BLAKEMORE FOODSERVICE,ECONOMY & ENVIRONMENT,CA BUSILL JONES PRIMARY SCHOOL,17.07,DRY FOODS-PROVISIONS,CATERERS
22 Apr 2015,BLAKEMORE FOODSERVICE,ECONOMY & ENVIRONMENT,CA BUSILL JONES PRIMARY SCHOOL,158.59,FROZEN FOODS-PROVISIONS,CATERERS
22 Apr 2015,BLAKEMORE FOODSERVICE,ECONOMY & ENVIRONMENT,CA BUSILL JONES PRIMARY SCHOOL,706.38,DRY FOODS-PROVISIONS,CATERERS
22 Apr 2015,BLAKEMORE FOODSERVICE,ECONOMY & ENVIRONMENT,CA BUSILL JONES PRIMARY SCHOOL,12.21,DRY FOODS-PROVISIONS,CATERERS
22 Apr 2015,BLAKEMORE FOODSERVICE,ECONOMY & ENVIRONMENT,TOWN HALL RESTAURANT BISTRO,30.00,FROZEN FOODS-PROVISIONS,CATERERS
22 Apr 2015,BLAKEMORE FOODSERVICE,ECONOMY & ENVIRONMENT,CA TOWN HALL RESTAURANT - CATERING,103.22,FROZEN FOODS-PROVISIONS,CATERERS
22 Apr 2015,BLAKEMORE FOODSERVICE,ECONOMY & ENVIRONMENT,CA BROWNHILLS WEST PRIMARY SCHOOL,75.17,FROZEN FOODS-PROVISIONS,CATERERS
22 Apr 2015,BLAKEMORE FOODSERVICE,ECONOMY & ENVIRONMENT,CA BROWNHILLS WEST PRIMARY SCHOOL,8.07,FROZEN FOODS-PROVISIONS,CATERERS
22 Apr 2015,BLAKEMORE FOODSERVICE,ECONOMY & ENVIRONMENT,CA ST ANNES CATHOLIC PRIMARY SCHOOL,123.39,FROZEN FOODS-PROVISIONS,CATERERS
22 Apr 2015,BLAKEMORE FOODSERVICE,ECONOMY & ENVIRONMENT,CA ST ANNES CATHOLIC PRIMARY SCHOOL,16.15,FROZEN FOODS-PROVISIONS,CATERERS
22 Apr 2015,BLAKEMORE FOODSERVICE,ECONOMY & ENVIRONMENT,CA JOSEPH LECKIE COMMUNITY TECHNOLOGY COLLEGE,506.79,FROZEN FOODS-PROVISIONS,CATERERS
22 Apr 2015,BLAKEMORE FOODSERVICE,ECONOMY & ENVIRONMENT,CA JOSEPH LECKIE COMMUNITY TECHNOLOGY COLLEGE,818.10,DRY FOODS-PROVISIONS,CATERERS
22 Apr 2015,BLAKEMORE FOODSERVICE,ECONOMY & ENVIRONMENT,CA JOSEPH LECKIE COMMUNITY TECHNOLOGY COLLEGE,351.74,DRY FOODS-PROVISIONS,CATERERS
22 Apr 2015,BLAKEMORE FOODSERVICE,ECONOMY & ENVIRONMENT,CA JOSEPH LECKIE COMMUNITY TECHNOLOGY COLLEGE,-25.12,FROZEN FOODS-PROVISIONS,CATERERS
22 Apr 2015,BLAKEMORE FOODSERVICE,ECONOMY & ENVIRONMENT,CA RADLEYS PRIMARY SCHOOL,172.00,FROZEN FOODS-PROVISIONS,CATERERS
22 Apr 2015,BLAKEMORE FOODSERVICE,ECONOMY & ENVIRONMENT,CA ELMORE GREEN PRIMARY SCHOOL,253.15,DRY FOODS-PROVISIONS,CATERERS
22 Apr 2015,BLAKEMORE FOODSERVICE,ECONOMY & ENVIRONMENT,CA ELMORE GREEN PRIMARY SCHOOL,50.71,DRY FOODS-PROVISIONS,CATERERS
22 Apr 2015,BLAKEMORE FOODSERVICE,ECONOMY & ENVIRONMENT,CA ELMORE GREEN PRIMARY SCHOOL,157.37,FROZEN FOODS-PROVISIONS,CATERERS
22 Apr 2015,BLAKEMORE FOODSERVICE,ECONOMY & ENVIRONMENT,CA LEIGHSWOOD PRIMARY SCHOOL,66.15,DRY FOODS-PROVISIONS,CATERERS
22 Apr 2015,BLAKEMORE FOODSERVICE,ECONOMY & ENVIRONMENT,CA ST MICHAELS C.E. PRIMARY SCHOOL,99.37,FROZEN FOODS-PROVISIONS,CATERERS
22 Apr 2015,BLAKEMORE FOODSERVICE,ECONOMY & ENVIRONMENT,CA MEADOW VIEW JMI PRIMARY SCHOOL,169.68,FROZEN FOODS-PROVISIONS,CATERERS
22 Apr 2015,BLAKEMORE FOODSERVICE,ECONOMY & ENVIRONMENT,CA MEADOW VIEW JMI PRIMARY SCHOOL,32.30,FROZEN FOODS-PROVISIONS,CATERERS
22 Apr 2015,BLAKEMORE FOODSERVICE,ECONOMY & ENVIRONMENT,CA BEACON PRIMARY SCHOOL,106.73,FROZEN FOODS-PROVISIONS,CATERERS
22 Apr 2015,BLAKEMORE FOODSERVICE,ECONOMY & ENVIRONMENT,CA BEACON PRIMARY SCHOOL,668.10,DRY FOODS-PROVISIONS,CATERERS
22 Apr 2015,BLAKEMORE FOODSERVICE,ECONOMY & ENVIRONMENT,CA BEACON PRIMARY SCHOOL,50.71,DRY FOODS-PROVISIONS,CATERERS
22 Apr 2015,BLAKEMORE FOODSERVICE,ECONOMY & ENVIRONMENT,CA LINDENS PRIMARY SCHOOL,83.41,FROZEN FOODS-PROVISIONS,CATERERS
22 Apr 2015,BLAKEMORE FOODSERVICE,ECONOMY & ENVIRONMENT,CA LINDENS PRIMARY SCHOOL,24.22,FROZEN FOODS-PROVISIONS,CATERERS
22 Apr 2015,BLAKEMORE FOODSERVICE,ECONOMY & ENVIRONMENT,CA BARCROFT D/C,342.01,DRY FOODS-PROVISIONS,CATERERS
22 Apr 2015,BLAKEMORE FOODSERVICE,ECONOMY & ENVIRONMENT,CA BARCROFT D/C,49.78,DRY FOODS-PROVISIONS,CATERERS
22 Apr 2015,BLAKEMORE FOODSERVICE,ECONOMY & ENVIRONMENT,CA RUSHALL JMI SCHOOL,59.38,FROZEN FOODS-PROVISIONS,CATERERS
22 Apr 2015,BLAKEMORE FOODSERVICE,ECONOMY & ENVIRONMENT,CA WATLING STREET PRIMARY SCHOOL,47.88,FROZEN FOODS-PROVISIONS,CATERERS
22 Apr 2015,BLAKEMORE FOODSERVICE,ECONOMY & ENVIRONMENT,CA ST JOHNS C.E. PRIMARY SCHOOL,249.43,FROZEN FOODS-PROVISIONS,CATERERS
22 Apr 2015,BLAKEMORE FOODSERVICE,ECONOMY & ENVIRONMENT,CA COOPER JORDAN CE PRIMARY SCHOOL,166.55,FROZEN FOODS-PROVISIONS,CATERERS
22 Apr 2015,BLAKEMORE FOODSERVICE,ECONOMY & ENVIRONMENT,CA COOPER JORDAN CE PRIMARY SCHOOL,24.22,FROZEN FOODS-PROVISIONS,CATERERS
22 Apr 2015,BLAKEMORE FOODSERVICE,ECONOMY & ENVIRONMENT,CA ELMWOOD SPECIAL SCHOOL,19.32,FROZEN FOODS-PROVISIONS,CATERERS
22 Apr 2015,BLAKEMORE FOODSERVICE,ECONOMY & ENVIRONMENT,CA CASTLEFORT JMI SCHOOL,92.98,FROZEN FOODS-PROVISIONS,CATERERS
22 Apr 2015,BLAKEMORE FOODSERVICE,ECONOMY & ENVIRONMENT,CA CASTLEFORT JMI SCHOOL,8.07,FROZEN FOODS-PROVISIONS,CATERERS
22 Apr 2015,ARTHUR BRETT CATER,ECONOMY & ENVIRONMENT,CA CASTLEFORT JMI SCHOOL,40.27,FRUIT & VEGETABLES OTHER-PROVISIONS,MISCELLANEOUS FOOD STORES & CONVENIENCE STORES
22 Apr 2015,BLAKEMORE FOODSERVICE,ECONOMY & ENVIRONMENT,CA BLUE COAT C OF E PERFORMING ARTS COLLEGE,-53.12,DRY FOODS-PROVISIONS,CATERERS
22 Apr 2015,BLAKEMORE FOODSERVICE,ECONOMY & ENVIRONMENT,CA BLUE COAT C OF E PERFORMING ARTS COLLEGE,-43.59,FROZEN FOODS-PROVISIONS,CATERERS
22 Apr 2015,BLAKEMORE FOODSERVICE,ECONOMY & ENVIRONMENT,CA BLUE COAT C OF E PERFORMING ARTS COLLEGE,-20.52,FROZEN FOODS-PROVISIONS,CATERERS
22 Apr 2015,BLAKEMORE FOODSERVICE,ECONOMY & ENVIRONMENT,CA BLUE COAT C OF E PERFORMING ARTS COLLEGE,411.91,FROZEN FOODS-PROVISIONS,CATERERS
22 Apr 2015,BLAKEMORE FOODSERVICE,ECONOMY & ENVIRONMENT,CA BLUE COAT C OF E PERFORMING ARTS COLLEGE,41.04,FROZEN FOODS-PROVISIONS,CATERERS
22 Apr 2015,BLAKEMORE FOODSERVICE,ECONOMY & ENVIRONMENT,CA BLUE COAT C OF E PERFORMING ARTS COLLEGE,319.47,DRY FOODS-PROVISIONS,CATERERS
22 Apr 2015,BLAKEMORE FOODSERVICE,ECONOMY & ENVIRONMENT,CA BLUE COAT C OF E PERFORMING ARTS COLLEGE,118.39,DRY FOODS-PROVISIONS,CATERERS
22 Apr 2015,BLAKEMORE FOODSERVICE,ECONOMY & ENVIRONMENT,CA BLUE COAT C OF E PERFORMING ARTS COLLEGE,20.40,FROZEN FOODS-PROVISIONS,CATERERS
22 Apr 2015,BLAKEMORE FOODSERVICE,ECONOMY & ENVIRONMENT,CA CALDMORE COMMUNITY PRIMARY SCHOOL,249.95,DRY FOODS-PROVISIONS,CATERERS
22 Apr 2015,BLAKEMORE FOODSERVICE,ECONOMY & ENVIRONMENT,CA OAKWOOD SPECIAL SCHOOL,46.37,FROZEN FOODS-PROVISIONS,CATERERS
22 Apr 2015,BLAKEMORE FOODSERVICE,ECONOMY & ENVIRONMENT,CA FIBBERSLEY PARK PRIMARY SCHOOL,74.17,FROZEN FOODS-PROVISIONS,CATERERS
22 Apr 2015,BLAKEMORE FOODSERVICE,ECONOMY & ENVIRONMENT,CA FIBBERSLEY PARK PRIMARY SCHOOL,16.15,FROZEN FOODS-PROVISIONS,CATERERS
22 Apr 2015,BLAKEMORE FOODSERVICE,ECONOMY & ENVIRONMENT,CA FIBBERSLEY PARK PRIMARY SCHOOL,32.26,FROZEN FOODS-PROVISIONS,CATERERS
22 Apr 2015,BLAKEMORE FOODSERVICE,ECONOMY & ENVIRONMENT,CA FIBBERSLEY PARK PRIMARY SCHOOL,213.13,DRY FOODS-PROVISIONS,CATERERS
22 Apr 2015,BLAKEMORE FOODSERVICE,ECONOMY & ENVIRONMENT,CA FIBBERSLEY PARK PRIMARY SCHOOL,36.64,DRY FOODS-PROVISIONS,CATERERS
22 Apr 2015,BLAKEMORE FOODSERVICE,ECONOMY & ENVIRONMENT,CA BIRCHILLS CE PRIMARY COMMUNITY SCHOOL,211.11,DRY FOODS-PROVISIONS,CATERERS
22 Apr 2015,BLAKEMORE FOODSERVICE,ECONOMY & ENVIRONMENT,CA BIRCHILLS CE PRIMARY COMMUNITY SCHOOL,18.00,DRY FOODS-PROVISIONS,CATERERS
22 Apr 2015,WELSH BROS FOODS LTD,ECONOMY & ENVIRONMENT,CA OLD HALL SPECIAL SCHOOL,84.15,MEAT-PROVISIONS,FREEZER AND LOCKER MEAT PROVISIONERS
22 Apr 2015,BLAKEMORE FOODSERVICE,ECONOMY & ENVIRONMENT,CA OLD HALL SPECIAL SCHOOL,282.70,DRY FOODS-PROVISIONS,CATERERS
22 Apr 2015,BLAKEMORE FOODSERVICE,ECONOMY & ENVIRONMENT,CA OLD HALL SPECIAL SCHOOL,131.40,DRY FOODS-PROVISIONS,CATERERS
23 Apr 2015,LCS CONTAINER SERVICES,CHILDRENS SERVICES,PELSALL EDC,90.00,MISCELLANEOUS SUPPLIES,MISCELLANEOUS AND SPECIALTY RETAIL STORES
23 Apr 2015,WWW.GGRGLASS.CO.UK,ECONOMY & ENVIRONMENT,TECHNICAL/ART HANDLING,252.00,FURNITURE & EQUIPMENT,MISCELLANEOUS AND SPECIALTY RETAIL STORES
23 Apr 2015,PAYPAL,CHILDRENS SERVICES,ICT LEARNING RESOURCES,35.00,GENERAL MATERIALS,"SCHOOLS, ELEMENTARY AND SECONDARY"
23 Apr 2015,TV LICENSING,ECONOMY & ENVIRONMENT,CENTRAL OFFICE ACCOMMODATION,145.50,PROFESSIONAL SERVICES-PRIV CONTRACTOR & OTHER AGENCIES,"CONSULTING, MANAGEMENT, AND PR SERVICES"
23 Apr 2015,TRAINLINE.COM,CHILDRENS SERVICES,CHILDRENS RESIDENTIAL SVCS,41.62,EXTERNAL TRAINING,PASSENGER RAILWAYS
23 Apr 2015,TRAINLINE.COM,ECONOMY & ENVIRONMENT,LEISURE - MANAGEMENT AND ADMIN,53.04,OFFICER/STAFF-PUBLIC TRANSPORT,PASSENGER RAILWAYS
23 Apr 2015,PARK PLACE SHOE REPAIRS,ECONOMY & ENVIRONMENT,ARBORETUM,60.00,CLOTHING & LAUNDRY,"HAT CLEANING SHOPS, SHOE REPAIR SHOPS, SHOE SHINE "
23 Apr 2015,SPIRIT DATA CAPTURE LTD,ECONOMY & ENVIRONMENT,TREE TEAM,69.18,GENERAL MATERIALS,HARDWARE EQUIPMENT AND SUPPLIES
23 Apr 2015,SPIRIT DATA CAPTURE LTD,ECONOMY & ENVIRONMENT,TREE TEAM,2.08,GENERAL MATERIALS,HARDWARE EQUIPMENT AND SUPPLIES
23 Apr 2015,ASDA SUPERSTORE,RESOURCES,ACCOMMODATION SERVICES MANAGEMENT,7.39,FOOD AND BEVERAGES-PROVISIONS,GROCERY STORES AND SUPERMARKETS
23 Apr 2015,ASDA SUPERSTORE,RESOURCES,ACCOMMODATION SERVICES MANAGEMENT,15.95,FOOD AND BEVERAGES-PROVISIONS,GROCERY STORES AND SUPERMARKETS
23 Apr 2015,TRAVEL WEST MIDLAN,CHILDRENS SERVICES,PARENTING TEAM,80.00,OFFICER/STAFF-PUBLIC TRANSPORT,BUS LINES
23 Apr 2015,TRAINLINE.COM,CHILDRENS SERVICES,ADOPTION TEAM,255.00,OFFICER/STAFF-PUBLIC TRANSPORT,PASSENGER RAILWAYS
23 Apr 2015,WALSALL COUNCIL,CHILDRENS SERVICES,SUPPORT UNDER SECT 23 OF THE CHILDRENS ACT,15.00,SUPPORT UNDER SECTION 23 OF THE CHILDRENS ACT,GOVERNMENT SERVICES
23 Apr 2015,ASDA STORES,CHILDRENS SERVICES,CLUSTER 5 DARLASTON,32.00,FOOD AND BEVERAGES-PROVISIONS,GROCERY STORES AND SUPERMARKETS
23 Apr 2015,REGISTRARS OFFICE,CHILDRENS SERVICES,SAFEGUARDING & FAMILY SUPPORT,15.00,REGISTRAR OF BIRTHS/DEATHS/MARRIAGES/CIVIL PARTNERSHIPS-SERV-FEES/CHARGES,OTHER SCHOOLS AND EDUCATIONAL SERVICES
23 Apr 2015,YORKSHIRE PURCHASING O,CHILDRENS SERVICES,ALUMWELL CHILDRENS CENTRE,219.00,CLEANING MATERIALS,"STATIONERY, OFFICE SUPPLIES AND WRITING PAPER"
23 Apr 2015,DOMESTIC & GENERAL,CHILDRENS SERVICES,STANLEYS NURSERY,68.60,MISC INSURANCES - INSURANCE PREMIUMS,"INSURANCE SALES, UNDERWRITING, AND PREMIUMS"
23 Apr 2015,MCDONALDS REST.,CHILDRENS SERVICES,REWARDS,0.16,GENERAL MATERIALS,QUICK PAYMENT SERVICE-FAST-FOOD RESTAURANTS
23 Apr 2015,MCDONALDS REST.,CHILDRENS SERVICES,REWARDS,0.83,GENERAL MATERIALS,QUICK PAYMENT SERVICE-FAST-FOOD RESTAURANTS
23 Apr 2015,MCDONALDS REST.,CHILDRENS SERVICES,REWARDS,14.89,GENERAL MATERIALS,QUICK PAYMENT SERVICE-FAST-FOOD RESTAURANTS
23 Apr 2015,MCDONALDS REST.,CHILDRENS SERVICES,REWARDS,74.44,GENERAL MATERIALS,QUICK PAYMENT SERVICE-FAST-FOOD RESTAURANTS
23 Apr 2015,"AMAZON SVCS EUROPE,SAR",CHILDRENS SERVICES,CHUCKERY PRIMARY SCHOOL,49.70,LANDSCAPE WORK-OP MTCE,BOOK STORES
23 Apr 2015,"AMAZON SVCS EUROPE,SAR",CHILDRENS SERVICES,ADMINISTRATIVE SUPPLIES,6.32,GENERAL MATERIALS,BOOK STORES
23 Apr 2015,"AMAZON SVCS EUROPE,SAR",CHILDRENS SERVICES,GENERAL RESOURCES & MISC,39.43,GENERAL MATERIALS,BOOK STORES
23 Apr 2015,W M MORRISON PLC,CHILDRENS SERVICES,"43A HILTON ROAD, WILLENHALL",23.87,EQUIP NEW-CLEANING,GROCERY STORES AND SUPERMARKETS
23 Apr 2015,W M MORRISON PLC,CHILDRENS SERVICES,"43A HILTON ROAD, WILLENHALL",20.97,EQUIP NEW-CLEANING,GROCERY STORES AND SUPERMARKETS
23 Apr 2015,W M MORRISON PLC,CHILDRENS SERVICES,"43A HILTON ROAD, WILLENHALL",0.49,GENERAL PROVISIONS-PROVISIONS,GROCERY STORES AND SUPERMARKETS
23 Apr 2015,W M MORRISON PLC,CHILDRENS SERVICES,"43A HILTON ROAD, WILLENHALL",5.25,GENERAL PROVISIONS-PROVISIONS,GROCERY STORES AND SUPERMARKETS
23 Apr 2015,W M MORRISON PLC,CHILDRENS SERVICES,"43A HILTON ROAD, WILLENHALL",5.59,GENERAL PROVISIONS-PROVISIONS,GROCERY STORES AND SUPERMARKETS
23 Apr 2015,SPORTSDIRECT.COM,ECONOMY & ENVIRONMENT,RUNNING JOGGING WALKING,43.98,FURNITURE & EQUIPMENT,SPORTING GOODS STORES
23 Apr 2015,WILKO RETAIL LIMIT,RESOURCES,ADVICE & GUIDANCE SERVICE,15.00,FURNITURE & EQUIPMENT,HOUSEHOLD APPLIANCE STORES
23 Apr 2015,GIFFGAFF.COM,CHILDRENS SERVICES,ADMINISTRATIVE SUPPLIES,10.00,COST OF CALLS-TELEPHONES,TELECOMMUNICATION EQUIPMENT & SALES
23 Apr 2015,ASDA HOME SHOPPING,CHILDRENS SERVICES,SPINDLETREE,39.15,GENERAL PROVISIONS-PROVISIONS,GROCERY STORES AND SUPERMARKETS
23 Apr 2015,ASDA HOME SHOPPING,CHILDRENS SERVICES,SPINDLETREE,151.71,GENERAL PROVISIONS-PROVISIONS,GROCERY STORES AND SUPERMARKETS
23 Apr 2015,LONDON MIDLAND SEL,ECONOMY & ENVIRONMENT,NEW ART GALLERY - ADMIN,4.10,OFFICER/STAFF-PUBLIC TRANSPORT,PASSENGER RAILWAYS
23 Apr 2015,RENTALCARS.COM,CHILDRENS SERVICES,INTERNAL FOSTER CARE PROVISION,63.97,HIRE OF VEHICLES,OTHER AUTOMOBILE RENTAL AGENCY
23 Apr 2015,B&Q DIRECT,CHILDRENS SERVICES,SHEPWELL GREEN PUPIL REFERRAL UNIT,247.15,"REPAIRS,ALTERATIONS & MAINTENANCE-PREM",LUMBER & BUILDING MATERIALS STORES
23 Apr 2015,LONDON MIDLAND TIC,CHILDRENS SERVICES,SCHOOL IMPROVEMENT,84.00,OFFICER/STAFF-PUBLIC TRANSPORT,PASSENGER RAILWAYS
23 Apr 2015,THOMPSONSEPARTS.CO,ECONOMY & ENVIRONMENT,FLEET,38.39,GENERAL MATERIALS,"AUTOMOTIVE PARTS, ACCESSORIES STORES"
23 Apr 2015,BORSHCH LIMITED,RESOURCES,WALSALL CRISIS SUPPORT SCHEME,270.00,CRISIS SUPPORT PAYMENTS,ELECTRONIC SALES
23 Apr 2015,BORSHCH LIMITED,RESOURCES,WALSALL CRISIS SUPPORT SCHEME,390.00,CRISIS SUPPORT PAYMENTS,ELECTRONIC SALES
23 Apr 2015,BORSHCH LIMITED,RESOURCES,WALSALL CRISIS SUPPORT SCHEME,325.00,CRISIS SUPPORT PAYMENTS,ELECTRONIC SALES
23 Apr 2015,BORSHCH LIMITED,RESOURCES,WALSALL CRISIS SUPPORT SCHEME,140.00,CRISIS SUPPORT PAYMENTS,ELECTRONIC SALES
23 Apr 2015,BORSHCH LIMITED,RESOURCES,WALSALL CRISIS SUPPORT SCHEME,320.00,CRISIS SUPPORT PAYMENTS,ELECTRONIC SALES
23 Apr 2015,WWW.GIROFOOD.COM,ECONOMY & ENVIRONMENT,CA TOWN HALL RESTAURANT - CATERING,39.14,DISPOSABLES-PROVISIONS,WHOLESALE CLUBS
23 Apr 2015,WWW.GIROFOOD.COM,ECONOMY & ENVIRONMENT,CA TOWN HALL RESTAURANT - CATERING,398.12,DISPOSABLES-PROVISIONS,WHOLESALE CLUBS
23 Apr 2015,WWW.GIROFOOD.COM,ECONOMY & ENVIRONMENT,CA ELMWOOD SPECIAL SCHOOL,96.37,DISPOSABLES-PROVISIONS,WHOLESALE CLUBS
23 Apr 2015,OFFICE DEPOT,CHILDRENS SERVICES,INTENSIVE FAMILY SUPPORT TEAM,102.48,STATIONERY & GENERAL SUPPLIES-OFFICE EXP,"STATIONERY, OFFICE SUPPLIES AND WRITING PAPER"
23 Apr 2015,OFFICE DEPOT,CHILDRENS SERVICES,TRADED WORKFORCE DEVELOPMENT,15.79,STATIONERY & GENERAL SUPPLIES-OFFICE EXP,"STATIONERY, OFFICE SUPPLIES AND WRITING PAPER"
23 Apr 2015,OFFICE DEPOT,CHILDRENS SERVICES,FAMILY PLACEMENTS,39.79,STATIONERY & GENERAL SUPPLIES-OFFICE EXP,"STATIONERY, OFFICE SUPPLIES AND WRITING PAPER"
23 Apr 2015,OFFICE DEPOT,RESOURCES,PRINTING SERVICES,25.06,STATIONERY & GENERAL SUPPLIES-OFFICE EXP,"STATIONERY, OFFICE SUPPLIES AND WRITING PAPER"
23 Apr 2015,WELSH BROS FOODS LTD,ECONOMY & ENVIRONMENT,CA BARCROFT D/C,147.06,MEAT-PROVISIONS,FREEZER AND LOCKER MEAT PROVISIONERS
23 Apr 2015,ARTHUR BRETT CATER,ECONOMY & ENVIRONMENT,CA NEW INVENTION INFANT,116.78,FRUIT & VEGETABLES OTHER-PROVISIONS,MISCELLANEOUS FOOD STORES & CONVENIENCE STORES
23 Apr 2015,ARTHUR BRETT CATER,ECONOMY & ENVIRONMENT,TOWN HALL RESTAURANT BISTRO,29.73,FRUIT & VEGETABLES OTHER-PROVISIONS,MISCELLANEOUS FOOD STORES & CONVENIENCE STORES
23 Apr 2015,ARTHUR BRETT CATER,ECONOMY & ENVIRONMENT,CA TOWN HALL RESTAURANT - CATERING,24.72,FRUIT & VEGETABLES OTHER-PROVISIONS,MISCELLANEOUS FOOD STORES & CONVENIENCE STORES
23 Apr 2015,WELSH BROS FOODS LTD,ECONOMY & ENVIRONMENT,CA JANE LANE SPECIAL SCHOOL,62.20,MEAT-PROVISIONS,FREEZER AND LOCKER MEAT PROVISIONERS
23 Apr 2015,WELSH BROS FOODS LTD,ECONOMY & ENVIRONMENT,CA MOORCROFT WOOD,216.80,MEAT-PROVISIONS,FREEZER AND LOCKER MEAT PROVISIONERS
23 Apr 2015,ARTHUR BRETT CATER,ECONOMY & ENVIRONMENT,CA BUSILL JONES PRIMARY SCHOOL,182.80,FRUIT & VEGETABLES OTHER-PROVISIONS,MISCELLANEOUS FOOD STORES & CONVENIENCE STORES
23 Apr 2015,WELSH BROS FOODS LTD,ECONOMY & ENVIRONMENT,CA BUSILL JONES PRIMARY SCHOOL,409.08,MEAT-PROVISIONS,FREEZER AND LOCKER MEAT PROVISIONERS
24 Apr 2015,PEARSON ED LTD,CHILDRENS SERVICES,EDUCATIONAL PSYCHOLOGISTS,106.20,GENERAL MATERIALS,OTHER SCHOOLS AND EDUCATIONAL SERVICES
24 Apr 2015,ARGOS,CHILDRENS SERVICES,"CLUSTER 3 BLOXWICH,BLAKENALL,HATHERTON,E STAMMERS",11.96,FURNITURE & EQUIPMENT,DISCOUNT STORES
24 Apr 2015,TRAINLINE.COM,CHILDRENS SERVICES,WORKFORCE DEVELOPMENT,76.30,OTHER-TRAVEL ALLOWANCES,PASSENGER RAILWAYS
24 Apr 2015,CO-OPERATIVE FOOD,CHILDRENS SERVICES,"CLUSTER 1 BROWNHILLS,GREENFIELDS,PELSALL",1.00,FOOD AND BEVERAGES-PROVISIONS,GROCERY STORES AND SUPERMARKETS
24 Apr 2015,CO-OPERATIVE FOOD,CHILDRENS SERVICES,"CLUSTER 1 BROWNHILLS,GREENFIELDS,PELSALL",1.15,FOOD AND BEVERAGES-PROVISIONS,GROCERY STORES AND SUPERMARKETS
24 Apr 2015,W M MORRISON PLC,CHILDRENS SERVICES,"43A HILTON ROAD, WILLENHALL",4.50,GENERAL PROVISIONS-PROVISIONS,GROCERY STORES AND SUPERMARKETS
24 Apr 2015,W M MORRISON PLC,CHILDRENS SERVICES,"43A HILTON ROAD, WILLENHALL",1.79,GENERAL PROVISIONS-PROVISIONS,GROCERY STORES AND SUPERMARKETS
24 Apr 2015,W M MORRISON PLC,CHILDRENS SERVICES,"43A HILTON ROAD, WILLENHALL",3.45,GENERAL PROVISIONS-PROVISIONS,GROCERY STORES AND SUPERMARKETS
24 Apr 2015,W M MORRISON PLC,CHILDRENS SERVICES,"43A HILTON ROAD, WILLENHALL",29.51,GENERAL PROVISIONS-PROVISIONS,GROCERY STORES AND SUPERMARKETS
24 Apr 2015,W M MORRISON PLC,CHILDRENS SERVICES,"43A HILTON ROAD, WILLENHALL",44.67,GENERAL PROVISIONS-PROVISIONS,GROCERY STORES AND SUPERMARKETS
24 Apr 2015,W M MORRISON PLC,CHILDRENS SERVICES,"43A HILTON ROAD, WILLENHALL",75.04,GENERAL PROVISIONS-PROVISIONS,GROCERY STORES AND SUPERMARKETS
24 Apr 2015,ASDA SUPERSTORE 04236,CHILDRENS SERVICES,BLUEBELLS,19.00,FURNITURE & EQUIPMENT,GROCERY STORES AND SUPERMARKETS
24 Apr 2015,TESCO STORES 6161,CHILDRENS SERVICES,57 LICHFIELD ROAD,19.88,GENERAL PROVISIONS-PROVISIONS,GROCERY STORES AND SUPERMARKETS
24 Apr 2015,ASDA HOME SHOPPING,ECONOMY & ENVIRONMENT,VP SCL VOCATIONAL & SUPPORTED LEARNING,41.58,CATERING,GROCERY STORES AND SUPERMARKETS
24 Apr 2015,ASDA HOME SHOPPING,ECONOMY & ENVIRONMENT,VP SCL VOCATIONAL & SUPPORTED LEARNING,362.79,CATERING,GROCERY STORES AND SUPERMARKETS
24 Apr 2015,ASDA HOME SHOPPING,ECONOMY & ENVIRONMENT,VP SCL VOCATIONAL & SUPPORTED LEARNING,5.00,CATERING,GROCERY STORES AND SUPERMARKETS
24 Apr 2015,KAPLAN FINANCIAL LTD,ECONOMY & ENVIRONMENT,AP FINANCE & RESOURCES STAFF DEVELOPMENT,70.00,EXTERNAL TRAINING,"SCHOOLS, BUSINESS AND SECRETARIAL"
24 Apr 2015,WWW.GLADSTONEMRM.COM,ECONOMY & ENVIRONMENT,WALSALL GALA CENTRE,242.40,COMPUTER EQUIPMENT AND SUPPLIES,"OTHER COMPUTER MAINTENANCE, REPAIR"
24 Apr 2015,TRAINLINE.COM,RESOURCES,E-LEARNING,40.60,OFFICER/STAFF-PUBLIC TRANSPORT,PASSENGER RAILWAYS
24 Apr 2015,CROWNE PLAZA LONDON-BA,RESOURCES,E-LEARNING,304.00,HOTEL ACCOMMODATION-EMPLOYEES,"HOTELS, MOTELS, RESORTS"
24 Apr 2015,WALSALL COUNCIL,CHILDRENS SERVICES,LOOKED AFTER CHILDRENS SOCIAL WORK TEAM,10.00,SUPPORT UNDER SECTION 23 OF THE CHILDRENS ACT,GOVERNMENT SERVICES
24 Apr 2015,REGISTRATION SERVICES,CHILDRENS SERVICES,LOOKED AFTER CHILDRENS SOCIAL WORK TEAM,-10.00,REGISTRAR OF BIRTHS/DEATHS/MARRIAGES/CIVIL PARTNERSHIPS-SERV-FEES/CHARGES,OTHER RECREATION SERVICES
24 Apr 2015,CO-OPERATIVE FOOD,CHILDRENS SERVICES,REDRUTH ROAD,1.75,GENERAL PROVISIONS-PROVISIONS,GROCERY STORES AND SUPERMARKETS
24 Apr 2015,WM MORRISON 063,CHILDRENS SERVICES,REDRUTH ROAD,39.22,GENERAL PROVISIONS-PROVISIONS,GROCERY STORES AND SUPERMARKETS
24 Apr 2015,"AMAZON SVCS EUROPE,SAR",ECONOMY & ENVIRONMENT,RESOURCE MANAGEMENT,14.89,COMPUTER EQUIPMENT AND SUPPLIES,BOOK STORES
24 Apr 2015,PAYPAL,ECONOMY & ENVIRONMENT,SCHOOL LIBRARY SUPPORT,38.65,GENERAL MATERIALS,BOOK STORES
24 Apr 2015,B & Q,RESOURCES,ACCOMMODATION SERVICES MANAGEMENT,8.30,GENERAL MATERIALS,LUMBER & BUILDING MATERIALS STORES
24 Apr 2015,AMAZON UK RETAIL,CHILDRENS SERVICES,ADMINISTRATIVE SUPPLIES,38.52,STATIONERY & GENERAL SUPPLIES-OFFICE EXP,OTHER DIRECT MARKETING-OTHER DIRECT MARKETERS
24 Apr 2015,THE TRAINLINE.COM,ECONOMY & ENVIRONMENT,CENTRALISED ENERGY,84.35,OFFICER/STAFF-PUBLIC TRANSPORT,PASSENGER RAILWAYS
24 Apr 2015,BORSHCH LIMITED,RESOURCES,WALSALL CRISIS SUPPORT SCHEME,400.00,CRISIS SUPPORT PAYMENTS,ELECTRONIC SALES
24 Apr 2015,BORSHCH LIMITED,RESOURCES,WALSALL CRISIS SUPPORT SCHEME,265.00,CRISIS SUPPORT PAYMENTS,ELECTRONIC SALES
24 Apr 2015,BORSHCH LIMITED,RESOURCES,WALSALL CRISIS SUPPORT SCHEME,140.00,CRISIS SUPPORT PAYMENTS,ELECTRONIC SALES
24 Apr 2015,CRAZY HOUSE FURNITURE,RESOURCES,WALSALL CRISIS SUPPORT SCHEME,55.00,CRISIS SUPPORT PAYMENTS,"EQUIPMENT, FURNITURE, AND HOME FURNISHINGS STORES "
24 Apr 2015,WWW.GIROFOOD.COM,ECONOMY & ENVIRONMENT,CA CROFT COMMUNITY PRIMARY SCHOOL,-16.45,DISPOSABLES-PROVISIONS,WHOLESALE CLUBS
24 Apr 2015,WWW.GIROFOOD.COM,ECONOMY & ENVIRONMENT,CA BLUE COAT C OF E PERFORMING ARTS COLLEGE,19.58,DISPOSABLES-PROVISIONS,WHOLESALE CLUBS
24 Apr 2015,JOHAL DAIRIES LTD,ECONOMY & ENVIRONMENT,TOWN HALL RESTAURANT BISTRO,21.51,MISC DAIRY PRODUCTS-PROVISIONS,OTHER NONDURABLE GOODS
24 Apr 2015,JOHAL DAIRIES LTD,ECONOMY & ENVIRONMENT,TOWN HALL RESTAURANT BISTRO,35.79,MISC DAIRY PRODUCTS-PROVISIONS,OTHER NONDURABLE GOODS
24 Apr 2015,ARTHUR BRETT CATER,ECONOMY & ENVIRONMENT,CA COOPER JORDAN CE PRIMARY SCHOOL,181.11,FRUIT & VEGETABLES OTHER-PROVISIONS,MISCELLANEOUS FOOD STORES & CONVENIENCE STORES
24 Apr 2015,JOHAL DAIRIES LTD,ECONOMY & ENVIRONMENT,CA JOSEPH LECKIE COMMUNITY TECHNOLOGY COLLEGE,28.78,MISC DAIRY PRODUCTS-PROVISIONS,OTHER NONDURABLE GOODS
24 Apr 2015,JOHAL DAIRIES LTD,ECONOMY & ENVIRONMENT,CA BUSILL JONES PRIMARY SCHOOL,48.48,MISC DAIRY PRODUCTS-PROVISIONS,OTHER NONDURABLE GOODS
24 Apr 2015,JOHAL DAIRIES LTD,ECONOMY & ENVIRONMENT,CA ELMORE GREEN PRIMARY SCHOOL,11.06,MISC DAIRY PRODUCTS-PROVISIONS,OTHER NONDURABLE GOODS
24 Apr 2015,JOHAL DAIRIES LTD,ECONOMY & ENVIRONMENT,CA BEACON PRIMARY SCHOOL,18.54,MISC DAIRY PRODUCTS-PROVISIONS,OTHER NONDURABLE GOODS
24 Apr 2015,JOHAL DAIRIES LTD,ECONOMY & ENVIRONMENT,CA ST MICHAELS C.E. PRIMARY SCHOOL,36.09,MISC DAIRY PRODUCTS-PROVISIONS,OTHER NONDURABLE GOODS
24 Apr 2015,JOHAL DAIRIES LTD,ECONOMY & ENVIRONMENT,CA MOORCROFT WOOD,21.23,MISC DAIRY PRODUCTS-PROVISIONS,OTHER NONDURABLE GOODS
24 Apr 2015,ARTHUR BRETT CATER,ECONOMY & ENVIRONMENT,CA LEIGHSWOOD PRIMARY SCHOOL,114.41,FRUIT & VEGETABLES OTHER-PROVISIONS,MISCELLANEOUS FOOD STORES & CONVENIENCE STORES
24 Apr 2015,JOHAL DAIRIES LTD,ECONOMY & ENVIRONMENT,CA BROWNHILLS WEST PRIMARY SCHOOL,16.80,MISC DAIRY PRODUCTS-PROVISIONS,OTHER NONDURABLE GOODS
24 Apr 2015,JOHAL DAIRIES LTD,ECONOMY & ENVIRONMENT,CA RADLEYS PRIMARY SCHOOL,81.38,MISC DAIRY PRODUCTS-PROVISIONS,OTHER NONDURABLE GOODS
24 Apr 2015,ARTHUR BRETT CATER,ECONOMY & ENVIRONMENT,CA BEACON PRIMARY SCHOOL,50.57,FRUIT & VEGETABLES OTHER-PROVISIONS,MISCELLANEOUS FOOD STORES & CONVENIENCE STORES
24 Apr 2015,ARTHUR BRETT CATER,ECONOMY & ENVIRONMENT,CA BARCROFT D/C,36.92,FRUIT & VEGETABLES OTHER-PROVISIONS,MISCELLANEOUS FOOD STORES & CONVENIENCE STORES
24 Apr 2015,THE TRAINLINE.COM,RESOURCES,RISK & INSURANCE,36.21,OFFICER/STAFF-PUBLIC TRANSPORT,PASSENGER RAILWAYS
24 Apr 2015,JOHAL DAIRIES LTD,CHILDRENS SERVICES,57 LICHFIELD ROAD,13.34,FOOD AND BEVERAGES-PROVISIONS,OTHER NONDURABLE GOODS
24 Apr 2015,JOHAL DAIRIES LTD,ECONOMY & ENVIRONMENT,CA FIBBERSLEY PARK PRIMARY SCHOOL,55.06,MISC DAIRY PRODUCTS-PROVISIONS,OTHER NONDURABLE GOODS
24 Apr 2015,JOHAL DAIRIES LTD,ECONOMY & ENVIRONMENT,CA BIRCHILLS CE PRIMARY COMMUNITY SCHOOL,31.16,MISC DAIRY PRODUCTS-PROVISIONS,OTHER NONDURABLE GOODS
24 Apr 2015,JOHAL DAIRIES LTD,ECONOMY & ENVIRONMENT,CA BIRCHILLS CE PRIMARY COMMUNITY SCHOOL,5.68,MISC DAIRY PRODUCTS-PROVISIONS,OTHER NONDURABLE GOODS
24 Apr 2015,JOHAL DAIRIES LTD,ECONOMY & ENVIRONMENT,CA ST GILES C.E. PRIMARY SCHOOL,45.22,MISC DAIRY PRODUCTS-PROVISIONS,OTHER NONDURABLE GOODS
24 Apr 2015,JOHAL DAIRIES LTD,ECONOMY & ENVIRONMENT,CA BARCROFT D/C,22.52,MISC DAIRY PRODUCTS-PROVISIONS,OTHER NONDURABLE GOODS
24 Apr 2015,JOHAL DAIRIES LTD,ECONOMY & ENVIRONMENT,CA ST JOHNS C.E. PRIMARY SCHOOL,12.60,MISC DAIRY PRODUCTS-PROVISIONS,OTHER NONDURABLE GOODS
24 Apr 2015,JOHAL DAIRIES LTD,SOCIAL CARE & INCLUSION,FALLINGS HEATH,22.90,MISC DAIRY PRODUCTS-PROVISIONS,OTHER NONDURABLE GOODS
24 Apr 2015,JOHAL DAIRIES LTD,ECONOMY & ENVIRONMENT,CA COOPER JORDAN CE PRIMARY SCHOOL,25.20,MISC DAIRY PRODUCTS-PROVISIONS,OTHER NONDURABLE GOODS
24 Apr 2015,OFFICE DEPOT,ECONOMY & ENVIRONMENT,DARLASTON TOWN HALL,21.42,STATIONERY & GENERAL SUPPLIES-OFFICE EXP,"STATIONERY, OFFICE SUPPLIES AND WRITING PAPER"
24 Apr 2015,ARTHUR BRETT CATER,ECONOMY & ENVIRONMENT,CA ELMWOOD SPECIAL SCHOOL,5.02,FRUIT & VEGETABLES OTHER-PROVISIONS,MISCELLANEOUS FOOD STORES & CONVENIENCE STORES
24 Apr 2015,JOHAL DAIRIES LTD,ECONOMY & ENVIRONMENT,CA ELMWOOD SPECIAL SCHOOL,4.20,MISC DAIRY PRODUCTS-PROVISIONS,OTHER NONDURABLE GOODS
24 Apr 2015,JOHAL DAIRIES LTD,ECONOMY & ENVIRONMENT,CA RUSHALL JMI SCHOOL,41.73,MISC DAIRY PRODUCTS-PROVISIONS,OTHER NONDURABLE GOODS
24 Apr 2015,JOHAL DAIRIES LTD,ECONOMY & ENVIRONMENT,CA MEADOW VIEW JMI PRIMARY SCHOOL,6.31,MISC DAIRY PRODUCTS-PROVISIONS,OTHER NONDURABLE GOODS
24 Apr 2015,OFFICE DEPOT,RESOURCES,TENANCY SERVICE,21.86,STATIONERY & GENERAL SUPPLIES-OFFICE EXP,"STATIONERY, OFFICE SUPPLIES AND WRITING PAPER"
24 Apr 2015,OFFICE DEPOT,CHILDRENS SERVICES,PLACEMENTS & RESOURCES TEAM,68.06,STATIONERY & GENERAL SUPPLIES-OFFICE EXP,"STATIONERY, OFFICE SUPPLIES AND WRITING PAPER"
24 Apr 2015,JOHAL DAIRIES LTD,ECONOMY & ENVIRONMENT,CA WATLING STREET PRIMARY SCHOOL,17.71,MISC DAIRY PRODUCTS-PROVISIONS,OTHER NONDURABLE GOODS
24 Apr 2015,JOHAL DAIRIES LTD,ECONOMY & ENVIRONMENT,CA LEAMORE PRIMARY SCHOOL,4.34,MISC DAIRY PRODUCTS-PROVISIONS,OTHER NONDURABLE GOODS
24 Apr 2015,JOHAL DAIRIES LTD,ECONOMY & ENVIRONMENT,CA BLUE COAT C OF E PERFORMING ARTS COLLEGE,18.50,MISC DAIRY PRODUCTS-PROVISIONS,OTHER NONDURABLE GOODS
24 Apr 2015,JOHAL DAIRIES LTD,SOCIAL CARE & INCLUSION,REABLEMENT TEAM - HOLLY BANK,119.27,MISC DAIRY PRODUCTS-PROVISIONS,OTHER NONDURABLE GOODS
24 Apr 2015,JOHAL DAIRIES LTD,ECONOMY & ENVIRONMENT,CA WALSALL WOOD PRIMARY SCHOOL,4.20,MISC DAIRY PRODUCTS-PROVISIONS,OTHER NONDURABLE GOODS
24 Apr 2015,JOHAL DAIRIES LTD,ECONOMY & ENVIRONMENT,CA OLD HALL SPECIAL SCHOOL,71.62,MISC DAIRY PRODUCTS-PROVISIONS,OTHER NONDURABLE GOODS
24 Apr 2015,JOHAL DAIRIES LTD,ECONOMY & ENVIRONMENT,CA ABBEY PRIMARY SCHOOL,34.04,MISC DAIRY PRODUCTS-PROVISIONS,OTHER NONDURABLE GOODS
24 Apr 2015,JOHAL DAIRIES LTD,ECONOMY & ENVIRONMENT,CA BLAKENALL HEATH JUNIOR SCHOOL,13.95,MISC DAIRY PRODUCTS-PROVISIONS,OTHER NONDURABLE GOODS
24 Apr 2015,JOHAL DAIRIES LTD,ECONOMY & ENVIRONMENT,CA CALDMORE COMMUNITY PRIMARY SCHOOL,12.78,MISC DAIRY PRODUCTS-PROVISIONS,OTHER NONDURABLE GOODS
24 Apr 2015,JOHAL DAIRIES LTD,ECONOMY & ENVIRONMENT,CA CROFT COMMUNITY PRIMARY SCHOOL,2.73,MISC DAIRY PRODUCTS-PROVISIONS,OTHER NONDURABLE GOODS
24 Apr 2015,ARTHUR BRETT CATER,ECONOMY & ENVIRONMENT,CA CALDMORE COMMUNITY PRIMARY SCHOOL,69.35,FRUIT & VEGETABLES OTHER-PROVISIONS,MISCELLANEOUS FOOD STORES & CONVENIENCE STORES
24 Apr 2015,JOHAL DAIRIES LTD,ECONOMY & ENVIRONMENT,CA ST BERNADETTES CATHOLIC PRIMARY SCHOOL,31.20,MISC DAIRY PRODUCTS-PROVISIONS,OTHER NONDURABLE GOODS
24 Apr 2015,JOHAL DAIRIES LTD,ECONOMY & ENVIRONMENT,CA POOL HAYES PRIMARY SCHOOL,10.38,MISC DAIRY PRODUCTS-PROVISIONS,OTHER NONDURABLE GOODS
24 Apr 2015,JOHAL DAIRIES LTD,ECONOMY & ENVIRONMENT,CA LEIGHSWOOD PRIMARY SCHOOL,36.80,MISC DAIRY PRODUCTS-PROVISIONS,OTHER NONDURABLE GOODS
24 Apr 2015,JOHAL DAIRIES LTD,ECONOMY & ENVIRONMENT,CA LITTLE BLOXWICH CE PRIMARY SCHOOL,25.65,MISC DAIRY PRODUCTS-PROVISIONS,OTHER NONDURABLE GOODS
24 Apr 2015,JOHAL DAIRIES LTD,ECONOMY & ENVIRONMENT,CA ST FRANCIS CATHOLIC PRIMARY SCHOOL,5.04,MISC DAIRY PRODUCTS-PROVISIONS,OTHER NONDURABLE GOODS
24 Apr 2015,JOHAL DAIRIES LTD,ECONOMY & ENVIRONMENT,CA ST ANNES CATHOLIC PRIMARY SCHOOL,15.15,MISC DAIRY PRODUCTS-PROVISIONS,OTHER NONDURABLE GOODS
24 Apr 2015,OFFICE DEPOT,ECONOMY & ENVIRONMENT,CENTRALISED STATIONERY,67.54,STATIONERY & GENERAL SUPPLIES-OFFICE EXP,"STATIONERY, OFFICE SUPPLIES AND WRITING PAPER"
24 Apr 2015,JOHAL DAIRIES LTD,ECONOMY & ENVIRONMENT,CA CASTLEFORT JMI SCHOOL,47.50,MISC DAIRY PRODUCTS-PROVISIONS,OTHER NONDURABLE GOODS
24 Apr 2015,JOHAL DAIRIES LTD,ECONOMY & ENVIRONMENT,CA LINDENS PRIMARY SCHOOL,27.68,MISC DAIRY PRODUCTS-PROVISIONS,OTHER NONDURABLE GOODS
24 Apr 2015,JOHAL DAIRIES LTD,ECONOMY & ENVIRONMENT,CA JANE LANE SPECIAL SCHOOL,12.73,MISC DAIRY PRODUCTS-PROVISIONS,OTHER NONDURABLE GOODS
24 Apr 2015,OFFICE DEPOT,ECONOMY & ENVIRONMENT,RESOURCE MANAGEMENT,85.15,STATIONERY & GENERAL SUPPLIES-OFFICE EXP,"STATIONERY, OFFICE SUPPLIES AND WRITING PAPER"
24 Apr 2015,OFFICE DEPOT,ECONOMY & ENVIRONMENT,STREET CLEANSING,34.72,GENERAL MATERIALS,"STATIONERY, OFFICE SUPPLIES AND WRITING PAPER"
24 Apr 2015,JOHAL DAIRIES LTD,CHILDRENS SERVICES,STROUD FAMILY CENTRE,5.97,FOOD AND BEVERAGES-PROVISIONS,OTHER NONDURABLE GOODS
25 Apr 2015,VIRGIN MEDIA PYMTS,CHILDRENS SERVICES,57 LICHFIELD ROAD,31.50,RESIDENTS PERSONAL EXPENSES-ALLOWANCES TO S/S CLIENTS,TELECOMMUNICATION SERVICES
25 Apr 2015,AMAZON UK RETAIL,CHILDRENS SERVICES,ICT LEARNING RESOURCES,239.88,NEW-FURNITURE & EQUIPMENT,OTHER DIRECT MARKETING-OTHER DIRECT MARKETERS
25 Apr 2015,HOME BARGAINS,CHILDRENS SERVICES,"CLUSTER 1 BROWNHILLS,GREENFIELDS,PELSALL",14.17,"CROCKERY,HARDWARE & DISPOSABLES-MATERIALS",HARDWARE STORES
25 Apr 2015,CHASE MULTI SERVIC,ECONOMY & ENVIRONMENT,SCHOOL LIBRARY SUPPORT,33.99,CLOTHING & LAUNDRY,"HAT CLEANING SHOPS, SHOE REPAIR SHOPS, SHOE SHINE "
25 Apr 2015,OFFICE DEPOT,CHILDRENS SERVICES,FAMILY PLACEMENTS,-7.56,STATIONERY & GENERAL SUPPLIES-OFFICE EXP,"STATIONERY, OFFICE SUPPLIES AND WRITING PAPER"
25 Apr 2015,OFFICE DEPOT,CHILDRENS SERVICES,SAFEGUARDING & FAMILY SUPPORT,45.84,STATIONERY & GENERAL SUPPLIES-OFFICE EXP,"STATIONERY, OFFICE SUPPLIES AND WRITING PAPER"
25 Apr 2015,OFFICE DEPOT,CHILDRENS SERVICES,EDUCATION BUSINESS PARTNERSHIP (EBP),47.90,STATIONERY & GENERAL SUPPLIES-OFFICE EXP,"STATIONERY, OFFICE SUPPLIES AND WRITING PAPER"
26 Apr 2015,"AMAZON SVCS EUROPE,SAR",CHILDRENS SERVICES,CHUCKERY PRIMARY SCHOOL,12.80,GENERAL MATERIALS,BOOK STORES
26 Apr 2015,TESCO STORE 3351,CHILDRENS SERVICES,PARENTING TEAM,14.00,FOOD AND BEVERAGES-PROVISIONS,GROCERY STORES AND SUPERMARKETS
26 Apr 2015,TESCO STORE 3351,CHILDRENS SERVICES,PARENTING TEAM,3.84,FOOD AND BEVERAGES-PROVISIONS,GROCERY STORES AND SUPERMARKETS
26 Apr 2015,HOME BARGAINS,CHILDRENS SERVICES,SCHOOL COUNCIL LH,20.99,GENERAL MATERIALS,HARDWARE STORES
27 Apr 2015,ASDA HOME SHOPPING,CHILDRENS SERVICES,"CLUSTER 1 BROWNHILLS,GREENFIELDS,PELSALL",17.94,FOOD AND BEVERAGES-PROVISIONS,GROCERY STORES AND SUPERMARKETS
27 Apr 2015,ASDA HOME SHOPPING,CHILDRENS SERVICES,"CLUSTER 1 BROWNHILLS,GREENFIELDS,PELSALL",39.25,FOOD AND BEVERAGES-PROVISIONS,GROCERY STORES AND SUPERMARKETS
27 Apr 2015,ASDA STORES,CHILDRENS SERVICES,PARENTING TEAM,1.55,FOOD AND BEVERAGES-PROVISIONS,GROCERY STORES AND SUPERMARKETS
27 Apr 2015,ASDA STORES,CHILDRENS SERVICES,PARENTING TEAM,9.64,FOOD AND BEVERAGES-PROVISIONS,GROCERY STORES AND SUPERMARKETS
27 Apr 2015,ASDA HOME SHOPPING,CHILDRENS SERVICES,"43A HILTON ROAD, WILLENHALL",24.47,GENERAL PROVISIONS-PROVISIONS,GROCERY STORES AND SUPERMARKETS
27 Apr 2015,ASDA HOME SHOPPING,CHILDRENS SERVICES,"43A HILTON ROAD, WILLENHALL",38.19,GENERAL PROVISIONS-PROVISIONS,GROCERY STORES AND SUPERMARKETS
27 Apr 2015,ASDA HOME SHOPPING,CHILDRENS SERVICES,STANLEYS NURSERY,90.27,FOOD AND BEVERAGES-PROVISIONS,GROCERY STORES AND SUPERMARKETS
27 Apr 2015,ASDA HOME SHOPPING,CHILDRENS SERVICES,BIRCHILLS CHILDREN CENTRE - PREMISES,18.53,FOOD AND BEVERAGES-PROVISIONS,GROCERY STORES AND SUPERMARKETS
27 Apr 2015,ASDA HOME SHOPPING,CHILDRENS SERVICES,BIRCHILLS CHILDREN CENTRE - PREMISES,1.28,FOOD AND BEVERAGES-PROVISIONS,GROCERY STORES AND SUPERMARKETS
27 Apr 2015,ASDA HOME SHOPPING,CHILDRENS SERVICES,STANLEYS NURSERY,1.85,CLEANING MATERIALS,GROCERY STORES AND SUPERMARKETS
27 Apr 2015,ASDA HOME SHOPPING,CHILDRENS SERVICES,STANLEYS NURSERY,4.50,FOOD AND BEVERAGES-PROVISIONS,GROCERY STORES AND SUPERMARKETS
27 Apr 2015,ASDA HOME SHOPPING,CHILDRENS SERVICES,STANLEYS NURSERY,38.10,GENERAL MATERIALS,GROCERY STORES AND SUPERMARKETS
27 Apr 2015,ASDA HOME SHOPPING,CHILDRENS SERVICES,ALUMWELL CHILDRENS CENTRE,26.86,FOOD AND BEVERAGES-PROVISIONS,GROCERY STORES AND SUPERMARKETS
27 Apr 2015,ASDA HOME SHOPPING,CHILDRENS SERVICES,ALUMWELL CHILDRENS CENTRE,4.00,FOOD AND BEVERAGES-PROVISIONS,GROCERY STORES AND SUPERMARKETS
27 Apr 2015,ASDA HOME SHOPPING,ECONOMY & ENVIRONMENT,VP SCL VOCATIONAL & SUPPORTED LEARNING,81.09,CATERING,GROCERY STORES AND SUPERMARKETS
27 Apr 2015,ASDA HOME SHOPPING,ECONOMY & ENVIRONMENT,VP SCL VOCATIONAL & SUPPORTED LEARNING,4.00,CATERING,GROCERY STORES AND SUPERMARKETS
27 Apr 2015,ASDA STORES,CHILDRENS SERVICES,CLUSTER 5 DARLASTON,30.00,FOOD AND BEVERAGES-PROVISIONS,GROCERY STORES AND SUPERMARKETS
27 Apr 2015,ASDA HOME SHOPPING,CHILDRENS SERVICES,"CLUSTER 1 BROWNHILLS,GREENFIELDS,PELSALL",12.63,FOOD AND BEVERAGES-PROVISIONS,GROCERY STORES AND SUPERMARKETS
27 Apr 2015,ASDA HOME SHOPPING,CHILDRENS SERVICES,"CLUSTER 1 BROWNHILLS,GREENFIELDS,PELSALL",59.61,FOOD AND BEVERAGES-PROVISIONS,GROCERY STORES AND SUPERMARKETS
27 Apr 2015,ASDA HOME SHOPPING,CHILDRENS SERVICES,"CLUSTER 3 BLOXWICH,BLAKENALL,HATHERTON,E STAMMERS",51.08,FOOD AND BEVERAGES-PROVISIONS,GROCERY STORES AND SUPERMARKETS
27 Apr 2015,ASDA HOME SHOPPING,CHILDRENS SERVICES,"CLUSTER 3 BLOXWICH,BLAKENALL,HATHERTON,E STAMMERS",5.99,FOOD AND BEVERAGES-PROVISIONS,GROCERY STORES AND SUPERMARKETS
27 Apr 2015,ASDA HOME SHOPPING,CHILDRENS SERVICES,"CLUSTER 3 BLOXWICH,BLAKENALL,HATHERTON,E STAMMERS",33.77,FOOD AND BEVERAGES-PROVISIONS,GROCERY STORES AND SUPERMARKETS
27 Apr 2015,ASDA HOME SHOPPING,CHILDRENS SERVICES,"CLUSTER 3 BLOXWICH,BLAKENALL,HATHERTON,E STAMMERS",13.18,FOOD AND BEVERAGES-PROVISIONS,GROCERY STORES AND SUPERMARKETS
27 Apr 2015,TRAINLINE.COM,ECONOMY & ENVIRONMENT,REGENERATION MANAGEMENT,8.82,OFFICER/STAFF-PUBLIC TRANSPORT,PASSENGER RAILWAYS
27 Apr 2015,LIDL UK,ECONOMY & ENVIRONMENT,MOBILE PROVISION,34.99,NEW-FURNITURE & EQUIPMENT,GROCERY STORES AND SUPERMARKETS
27 Apr 2015,ASDA 4387,CHILDRENS SERVICES,SAFEGUARDING & FAMILY SUPPORT,87.95,FURNITURE & EQUIPMENT,GROCERY STORES AND SUPERMARKETS
27 Apr 2015,COMFORT BEDS AND F,CHILDRENS SERVICES,SAFEGUARDING & FAMILY SUPPORT,129.00,FURNITURE & EQUIPMENT,"EQUIPMENT, FURNITURE, AND HOME FURNISHINGS STORES "
27 Apr 2015,PAYPAL,RESOURCES,COMMUNICATIONS,26.52,SOFTWARE ACQ-COMPUTER,COMPUTER SOFTWARE STORES
27 Apr 2015,B&M RETAIL LTD,ECONOMY & ENVIRONMENT,WALSALL OUTDOOR ADVENTURE CENTRE,46.43,GENERAL MATERIALS,DISCOUNT STORES
27 Apr 2015,CURRYS,ECONOMY & ENVIRONMENT,DARLASTON LEISURE CENTRE,8.99,FURNITURE & EQUIPMENT,ELECTRONIC SALES
27 Apr 2015,B & Q,ECONOMY & ENVIRONMENT,DARLASTON LEISURE CENTRE,140.01,GENERAL MATERIALS,LUMBER & BUILDING MATERIALS STORES
27 Apr 2015,"AMAZON SVCS EUROPE,SAR",ECONOMY & ENVIRONMENT,NAG - TEMPORARY EXHIBITIONS,16.21,LIBRARY BOOKS,BOOK STORES
27 Apr 2015,"AMAZON SVCS EUROPE,SAR",ECONOMY & ENVIRONMENT,NAG - TEMPORARY EXHIBITIONS,22.80,LIBRARY BOOKS,BOOK STORES
27 Apr 2015,WH SMITH,ECONOMY & ENVIRONMENT,NAG - TEMPORARY EXHIBITIONS,44.97,STATIONERY & GENERAL SUPPLIES-OFFICE EXP,NEWS DEALERS AND NEWSSTANDS
27 Apr 2015,AMAZON UK MARKETPLACE,ECONOMY & ENVIRONMENT,NAG - TEMPORARY EXHIBITIONS,14.79,LIBRARY BOOKS,MISCELLANEOUS AND SPECIALTY RETAIL STORES
27 Apr 2015,AMAZON UK MARKETPLACE,ECONOMY & ENVIRONMENT,NAG - TEMPORARY EXHIBITIONS,17.20,LIBRARY BOOKS,BOOK STORES
27 Apr 2015,MNA LTD CARDCHARGE,ECONOMY & ENVIRONMENT,DEVELOPMENT MANAGEMENT,84.00,PERIODICALS/MAGAZINES/NEWSPAPERS-SUBSCRIPTIONS,NEWS DEALERS AND NEWSSTANDS
27 Apr 2015,TRAINLINE.COM,CHILDRENS SERVICES,SAFEGUARDING & FAMILY SUPPORT,138.41,OFFICER/STAFF-PUBLIC TRANSPORT,PASSENGER RAILWAYS
27 Apr 2015,PARENTPAY.COM,CHILDRENS SERVICES,57 LICHFIELD ROAD,23.65,GENERAL PROVISIONS-PROVISIONS,"COLLEGES, UNIVERSITIES, PROFESSIONAL SCHOOLS"
27 Apr 2015,AB WASTE MANAGEMENT LT,CHILDRENS SERVICES,ALUMWELL NURSERY,120.00,DISPOSAL OF WASTE-SERVICES-FEES,OTHER INDUSTRIAL SUPPLIES
27 Apr 2015,TESCO STORES 6161,CHILDRENS SERVICES,FOOD TECHNOLOGY/HOSPITALITY,12.60,GENERAL MATERIALS,GROCERY STORES AND SUPERMARKETS
27 Apr 2015,TESCO STORES 6161,CHILDRENS SERVICES,ELMWOOD SECONDARY SPECIAL SCHOOL,16.25,BREAD-GENERAL-PROVISIONS,GROCERY STORES AND SUPERMARKETS
27 Apr 2015,WM MORRISON FOOD.COM,CHILDRENS SERVICES,"CLUSTER 6 BENTLEY,LIGHTHOUSE,FIBBERSLEY",8.10,FOOD AND BEVERAGES-PROVISIONS,GROCERY STORES AND SUPERMARKETS
27 Apr 2015,WM MORRISON FOOD.COM,CHILDRENS SERVICES,"CLUSTER 6 BENTLEY,LIGHTHOUSE,FIBBERSLEY",78.46,FOOD AND BEVERAGES-PROVISIONS,GROCERY STORES AND SUPERMARKETS
27 Apr 2015,TRAINLINE.COM,ECONOMY & ENVIRONMENT,AP FINANCE & RESOURCES STAFF DEVELOPMENT,11.99,OFFICER/STAFF-PUBLIC TRANSPORT,PASSENGER RAILWAYS
27 Apr 2015,ARGOS RETAIL GROUP,CHILDRENS SERVICES,GENERAL RESOURCES & MISC,12.92,GENERAL MATERIALS,DISCOUNT STORES
27 Apr 2015,INVICTA RETAIL SYSTEMS,CHILDRENS SERVICES,CHUCKERY PRIMARY SCHOOL,23.64,BREAD-GENERAL-PROVISIONS,HOUSEHOLD APPLIANCE STORES
27 Apr 2015,ARGOS RETAIL GROUP,CHILDRENS SERVICES,GENERAL RESOURCES & MISC,12.92,GENERAL MATERIALS,DISCOUNT STORES
27 Apr 2015,"AMAZON SVCS EUROPE,SAR",ECONOMY & ENVIRONMENT,DARLASTON LEISURE & CULTURE HUB,58.96,LIBRARY BOOKS,BOOK STORES
27 Apr 2015,W M MORRISON PLC,CHILDRENS SERVICES,"43A HILTON ROAD, WILLENHALL",15.65,FOOD AND BEVERAGES-PROVISIONS,GROCERY STORES AND SUPERMARKETS
27 Apr 2015,AVFC COMERL,CHILDRENS SERVICES,SCHOOL IMPROVEMENT,596.25,COURSE/CONFERENCE EXPENSES,"CLUBS COUNTRY CLUBS, MEMBERSHIP"
27 Apr 2015,ARGOS RETAIL GROUP,CHILDRENS SERVICES,VIRTUAL SCHOOL CENTRAL PUPIL PREMIUM,31.98,STATIONERY & GENERAL SUPPLIES-OFFICE EXP,DISCOUNT STORES
27 Apr 2015,WM MORRISON FOOD.COM,CHILDRENS SERVICES,CLUSTER 5 DARLASTON,17.04,GENERAL PROVISIONS-PROVISIONS,GROCERY STORES AND SUPERMARKETS
27 Apr 2015,WM MORRISON FOOD.COM,CHILDRENS SERVICES,CLUSTER 5 DARLASTON,56.51,FOOD AND BEVERAGES-PROVISIONS,GROCERY STORES AND SUPERMARKETS
27 Apr 2015,WM MORRISON FOOD.COM,CHILDRENS SERVICES,"CLUSTER 3 BLOXWICH,BLAKENALL,HATHERTON,E STAMMERS",12.06,FOOD AND BEVERAGES-PROVISIONS,GROCERY STORES AND SUPERMARKETS
27 Apr 2015,WM MORRISON FOOD.COM,CHILDRENS SERVICES,"CLUSTER 3 BLOXWICH,BLAKENALL,HATHERTON,E STAMMERS",46.85,FOOD AND BEVERAGES-PROVISIONS,GROCERY STORES AND SUPERMARKETS
27 Apr 2015,CO-OPERATIVE FUNER,RESOURCES,WALSALL CRISIS SUPPORT SCHEME,807.00,CRISIS SUPPORT PAYMENTS,FUNERAL SERVICE AND CREMATORIES
27 Apr 2015,WWW.GIROFOOD.COM,ECONOMY & ENVIRONMENT,CA BIRCHILLS CE PRIMARY COMMUNITY SCHOOL,78.89,DISPOSABLES-PROVISIONS,WHOLESALE CLUBS
27 Apr 2015,WWW.GIROFOOD.COM,ECONOMY & ENVIRONMENT,CA ST JOHNS C.E. PRIMARY SCHOOL,117.84,DISPOSABLES-PROVISIONS,WHOLESALE CLUBS
27 Apr 2015,BLAKEMORE FOODSERVICE,ECONOMY & ENVIRONMENT,CA OLD HALL SPECIAL SCHOOL,78.73,FROZEN FOODS-PROVISIONS,CATERERS
27 Apr 2015,OFFICE DEPOT,CHILDRENS SERVICES,TRADED WORKFORCE DEVELOPMENT,2.45,STATIONERY & GENERAL SUPPLIES-OFFICE EXP,"STATIONERY, OFFICE SUPPLIES AND WRITING PAPER"
27 Apr 2015,BLAKEMORE FOODSERVICE,ECONOMY & ENVIRONMENT,CA BIRCHILLS CE PRIMARY COMMUNITY SCHOOL,259.45,FROZEN FOODS-PROVISIONS,CATERERS
27 Apr 2015,ARTHUR BRETT CATER,ECONOMY & ENVIRONMENT,CA ST BERNADETTES CATHOLIC PRIMARY SCHOOL,33.50,FRUIT & VEGETABLES OTHER-PROVISIONS,MISCELLANEOUS FOOD STORES & CONVENIENCE STORES
27 Apr 2015,BLAKEMORE FOODSERVICE,ECONOMY & ENVIRONMENT,CA CALDMORE COMMUNITY PRIMARY SCHOOL,150.51,FROZEN FOODS-PROVISIONS,CATERERS
27 Apr 2015,WELSH BROS FOODS LTD,ECONOMY & ENVIRONMENT,CA FIBBERSLEY PARK PRIMARY SCHOOL,77.82,MEAT-PROVISIONS,FREEZER AND LOCKER MEAT PROVISIONERS
27 Apr 2015,WELSH BROS FOODS LTD,ECONOMY & ENVIRONMENT,CA OAKWOOD SPECIAL SCHOOL,39.14,MEAT-PROVISIONS,FREEZER AND LOCKER MEAT PROVISIONERS
27 Apr 2015,BLAKEMORE FOODSERVICE,ECONOMY & ENVIRONMENT,CA OAKWOOD SPECIAL SCHOOL,248.14,DRY FOODS-PROVISIONS,CATERERS
27 Apr 2015,ARTHUR BRETT CATER,ECONOMY & ENVIRONMENT,CA OAKWOOD SPECIAL SCHOOL,43.87,FRUIT & VEGETABLES OTHER-PROVISIONS,MISCELLANEOUS FOOD STORES & CONVENIENCE STORES
27 Apr 2015,BLAKEMORE FOODSERVICE,ECONOMY & ENVIRONMENT,CA BLUE COAT C OF E PERFORMING ARTS COLLEGE,43.59,FROZEN FOODS-PROVISIONS,CATERERS
27 Apr 2015,BLAKEMORE FOODSERVICE,ECONOMY & ENVIRONMENT,CA BLUE COAT C OF E PERFORMING ARTS COLLEGE,20.52,FROZEN FOODS-PROVISIONS,CATERERS
27 Apr 2015,OFFICE DEPOT,RESOURCES,TENANCY SERVICE,0.42,STATIONERY & GENERAL SUPPLIES-OFFICE EXP,"STATIONERY, OFFICE SUPPLIES AND WRITING PAPER"
27 Apr 2015,ARTHUR BRETT CATER,ECONOMY & ENVIRONMENT,CA CASTLEFORT JMI SCHOOL,56.52,FRUIT & VEGETABLES OTHER-PROVISIONS,MISCELLANEOUS FOOD STORES & CONVENIENCE STORES
27 Apr 2015,WELSH BROS FOODS LTD,ECONOMY & ENVIRONMENT,CA CASTLEFORT JMI SCHOOL,55.02,MEAT-PROVISIONS,FREEZER AND LOCKER MEAT PROVISIONERS
27 Apr 2015,OFFICE DEPOT,CHILDRENS SERVICES,TROUBLED FAMILIES GRANT (STRENGHTENING FAMILIES),4.74,STATIONERY & GENERAL SUPPLIES-OFFICE EXP,"STATIONERY, OFFICE SUPPLIES AND WRITING PAPER"
27 Apr 2015,BLAKEMORE FOODSERVICE,ECONOMY & ENVIRONMENT,CA COOPER JORDAN CE PRIMARY SCHOOL,345.57,DRY FOODS-PROVISIONS,CATERERS
27 Apr 2015,BLAKEMORE FOODSERVICE,ECONOMY & ENVIRONMENT,CA COOPER JORDAN CE PRIMARY SCHOOL,12.21,DRY FOODS-PROVISIONS,CATERERS
27 Apr 2015,BLAKEMORE FOODSERVICE,ECONOMY & ENVIRONMENT,CA ST JOHNS C.E. PRIMARY SCHOOL,332.48,DRY FOODS-PROVISIONS,CATERERS
27 Apr 2015,OFFICE DEPOT,ECONOMY & ENVIRONMENT,LEISURE & CULTURE SUPPORT BUDGET,6.24,STATIONERY & GENERAL SUPPLIES-OFFICE EXP,"STATIONERY, OFFICE SUPPLIES AND WRITING PAPER"
27 Apr 2015,BLAKEMORE FOODSERVICE,ECONOMY & ENVIRONMENT,CA BARCROFT D/C,164.03,FROZEN FOODS-PROVISIONS,CATERERS
27 Apr 2015,BLAKEMORE FOODSERVICE,ECONOMY & ENVIRONMENT,CA BARCROFT D/C,33.50,FROZEN FOODS-PROVISIONS,CATERERS
27 Apr 2015,WELSH BROS FOODS LTD,ECONOMY & ENVIRONMENT,CA BARCROFT D/C,256.48,MEAT-PROVISIONS,FREEZER AND LOCKER MEAT PROVISIONERS
27 Apr 2015,BLAKEMORE FOODSERVICE,ECONOMY & ENVIRONMENT,CA RUSHALL JMI SCHOOL,244.51,DRY FOODS-PROVISIONS,CATERERS
27 Apr 2015,BLAKEMORE FOODSERVICE,ECONOMY & ENVIRONMENT,CA RUSHALL JMI SCHOOL,50.70,DRY FOODS-PROVISIONS,CATERERS
27 Apr 2015,WELSH BROS FOODS LTD,ECONOMY & ENVIRONMENT,CA RUSHALL JMI SCHOOL,65.02,MEAT-PROVISIONS,FREEZER AND LOCKER MEAT PROVISIONERS
27 Apr 2015,WELSH BROS FOODS LTD,ECONOMY & ENVIRONMENT,CA WATLING STREET PRIMARY SCHOOL,155.31,MEAT-PROVISIONS,FREEZER AND LOCKER MEAT PROVISIONERS
27 Apr 2015,BLAKEMORE FOODSERVICE,ECONOMY & ENVIRONMENT,CA WATLING STREET PRIMARY SCHOOL,22.00,FROZEN FOODS-PROVISIONS,CATERERS
27 Apr 2015,ARTHUR BRETT CATER,ECONOMY & ENVIRONMENT,CA WATLING STREET PRIMARY SCHOOL,36.92,FRUIT & VEGETABLES OTHER-PROVISIONS,MISCELLANEOUS FOOD STORES & CONVENIENCE STORES
27 Apr 2015,BLAKEMORE FOODSERVICE,ECONOMY & ENVIRONMENT,CA WATLING STREET PRIMARY SCHOOL,220.98,DRY FOODS-PROVISIONS,CATERERS
27 Apr 2015,BLAKEMORE FOODSERVICE,ECONOMY & ENVIRONMENT,CA WATLING STREET PRIMARY SCHOOL,12.21,DRY FOODS-PROVISIONS,CATERERS
27 Apr 2015,ARTHUR BRETT CATER,ECONOMY & ENVIRONMENT,CA WATLING STREET PRIMARY SCHOOL,70.23,FRUIT & VEGETABLES OTHER-PROVISIONS,MISCELLANEOUS FOOD STORES & CONVENIENCE STORES
27 Apr 2015,BLAKEMORE FOODSERVICE,ECONOMY & ENVIRONMENT,CA WATLING STREET PRIMARY SCHOOL,76.15,FROZEN FOODS-PROVISIONS,CATERERS
27 Apr 2015,BLAKEMORE FOODSERVICE,ECONOMY & ENVIRONMENT,CA WATLING STREET PRIMARY SCHOOL,16.15,FROZEN FOODS-PROVISIONS,CATERERS
27 Apr 2015,ARTHUR BRETT CATER,ECONOMY & ENVIRONMENT,CA WALSALL WOOD PRIMARY SCHOOL,48.72,FRUIT & VEGETABLES OTHER-PROVISIONS,MISCELLANEOUS FOOD STORES & CONVENIENCE STORES
27 Apr 2015,WELSH BROS FOODS LTD,ECONOMY & ENVIRONMENT,CA ST JOHNS C.E. PRIMARY SCHOOL,183.31,MEAT-PROVISIONS,FREEZER AND LOCKER MEAT PROVISIONERS
27 Apr 2015,ARTHUR BRETT CATER,ECONOMY & ENVIRONMENT,CA ST JOHNS C.E. PRIMARY SCHOOL,168.95,FRUIT & VEGETABLES OTHER-PROVISIONS,MISCELLANEOUS FOOD STORES & CONVENIENCE STORES
27 Apr 2015,BLAKEMORE FOODSERVICE,ECONOMY & ENVIRONMENT,CA LINDENS PRIMARY SCHOOL,321.16,DRY FOODS-PROVISIONS,CATERERS
27 Apr 2015,ARTHUR BRETT CATER,ECONOMY & ENVIRONMENT,CA LINDENS PRIMARY SCHOOL,123.46,FRUIT & VEGETABLES OTHER-PROVISIONS,MISCELLANEOUS FOOD STORES & CONVENIENCE STORES
27 Apr 2015,THE TRAINLINE.COM,RESOURCES,FINANCE,6.27,OFFICER/STAFF-PUBLIC TRANSPORT,PASSENGER RAILWAYS
27 Apr 2015,BLAKEMORE FOODSERVICE,ECONOMY & ENVIRONMENT,CA BEACON PRIMARY SCHOOL,166.62,FROZEN FOODS-PROVISIONS,CATERERS
27 Apr 2015,BLAKEMORE FOODSERVICE,ECONOMY & ENVIRONMENT,CA ST MICHAELS C.E. PRIMARY SCHOOL,246.64,DRY FOODS-PROVISIONS,CATERERS
27 Apr 2015,BLAKEMORE FOODSERVICE,ECONOMY & ENVIRONMENT,CA ST MICHAELS C.E. PRIMARY SCHOOL,75.14,DRY FOODS-PROVISIONS,CATERERS
27 Apr 2015,WELSH BROS FOODS LTD,ECONOMY & ENVIRONMENT,CA ST MICHAELS C.E. PRIMARY SCHOOL,102.43,MEAT-PROVISIONS,FREEZER AND LOCKER MEAT PROVISIONERS
27 Apr 2015,BLAKEMORE FOODSERVICE,ECONOMY & ENVIRONMENT,CA MEADOW VIEW JMI PRIMARY SCHOOL,466.81,DRY FOODS-PROVISIONS,CATERERS
